Workbook

Sheet C1
A2: CUADRO 1 COSTA RICA: JUNTAS, ELECTORADO,VOTOS RECIBIDOS, NULOS, BLANCOS
A3: ABSTENCIONISMO, DENSIDAD ELECTORAL POR KM2 Y RELACIÓN CON POBLACIÓN
A4: TOTAL DEL PAÍS, ELECCIONES MUNICIPALES 2002 - 2016
A6: INDICADORES | B6: AÑO ELECTORAL
B7: 2002 | C7: 2006 | D7: 2010 | E7: 2016
A9: JUNTAS | B9: 6819 | C9: 4852 | D9: 5250 | E9: 5630
A10: ELECTORADO | B10: 2331459 | C10: 2603770 | D10: 2865509 | E10: 3178364
A11: VOTOS RECIBIDOS | B11: =+B10-B16 -> 531659 | C11: =+C10-C16 -> 620614 | D11: =+D10-D16 -> 799171 | E11: 1125556
A12: VOTOS VÁLIDOS | B12: =+B11-B13-B14 -> 513691 | C12: =+C11-C13-C14 -> 605195 | D12: =+D11-D13-D14 -> 782354 | E12: 1096563
A13: VOTOS NULOS | B13: 12940 | C13: 11064 | D13: 13281 | E13: 21886
A14: VOTOS BLANCOS | B14: 5028 | C14: 4355 | D14: 3536 | E14: 7107
A15: ABSTENCIONISMO
A16: ABSOLUTO | B16: 1799800 | C16: 1983156 | D16: 2066338 | E16: =+E10-E11 -> 2052808
A17: RELATIVO | B17: =+B16/B10*100 -> 77.1962964 | C17: =+C16/C10*100 -> 76.16479182 | D17: =+D16/D10*100 -> 72.11067911 | E17: =+E16/E10*100 -> 64.58693844
A18: DENSIDAD ELECTORAL POR KM2 1/ | B18: =+B10/$B$30 -> 45.62542074 | C18: =+C10/$B$30 -> 50.95440313 | D18: =+D10/$B$30 -> 56.07649706 | E18: =+E10/$B$30 -> 62.19890411
A19: RELACIÓN CON LA POBLACIÓN 2/ | B19: =+B10/B28*100 -> 57.96144173 | C19: =+C10/C28*100 -> 60.85485723 | D19: =+D10/D28*100 -> 63.20194076 | E19: =+E10/E28*100 -> 64.99217558
A22: 1/ El área de Costa Rica es de 51.100 Km2 de acuerdo con información del Instituto Geográfico Nacional.
A24: 2/ Estimaciones y proyecciones de población distritales por sexo y grupos de edades 2000 – 2025, Instituto Nacional de Estadística y Censos (INEC) Setiembre 2014.
A25: Fuente: Cómputo de Votos Elecciones Municipales 2002, 2006, 2010 y 2016.
A28: POBLACIÓN | B28: 4022431 | C28: 4278656 | D28: 4533894 | E28: 4890379.452
A30: TERRITORIO | B30: 51100

Sheet G1
A2: GRÁFICO 1
A3: COSTA RICA: ELECTORADO, VOTOS RECIBIDOS Y ABSTENCIONISMO
A4: ELECCIONES MUNICIPALES 2002 - 2016
A30: FUENTE: Cuadro 1.

Sheet C2
A2: CUADRO 2 COSTA RICA: PORCENTAJE DE ABSTENCIONISMO, SEGÚN PROVINCIA
A3: ELECCIONES MUNICIPALES 2002 - 2016
A5: PROVINCIA | B5: AÑO ELECTORAL
B6: 2002 | C6: 2006 | D6: 2010 | E6: 2016
A8: COSTA RICA | B8: ='C1'!B16/'C1'!B10*100 -> 77.1962964 | C8: ='C1'!C16/'C1'!C10*100 -> 76.16479182 | D8: ='C1'!D16/'C1'!D10*100 -> 72.11067911 | E8: 64.58693844
A10: SAN JOSÉ | B10: =713319/871949*100 -> 81.80742222 | C10: =769006/952561*100 -> 80.73036792 | D10: =780835/1016678*100 -> 76.80258646 | E10: 69.71888096
A11: ALAJUELA | B11: =307916/421540*100 -> 73.04549983 | C11: =351569/476942*100 -> 73.7131559 | D11: =371959/533285*100 -> 69.74863347 | E11: 61.97911235
A12: CARTAGO | B12: =211556/268172*100 -> 78.88817625 | C12: =230890/301688*100 -> 76.53270929 | D12: =242239/334473*100 -> 72.42408206 | E12: 63.38063551
A13: HEREDIA | B13: =178412/220983*100 -> 80.7356222 | C13: =193718/251999*100 -> 76.87252727 | D13: =208512/283771*100 -> 73.4789672 | E13: 65.21143415
A14: GUANACASTE | B14: =99930/158595*100 -> 63.00955263 | C14: =116358/178788*100 -> 65.0815491 | D14: =122101/203614*100 -> 59.96689815 | E14: 55.93417625
A15: PUNTARENAS | B15: =150389/210252*100 -> 71.52797595 | C15: =167528/236660*100 -> 70.78847291 | D15: =176372/265197*100 -> 66.50603137 | E15: 61.23591375
A16: LIMÓN | B16: =138278/179968*100 -> 76.83477063 | C16: =154087/205132*100 -> 75.11602285 | D16: =164320/228491*100 -> 71.9153052 | E16: 61.6844144
A19: Fuente: Cómputo de Votos Elecciones Municipales 2002, 2006, 2010 y 2016.

Sheet G2
A2: GRÁFICO 2
A3: COSTA RICA: PORCENTAJE DE ABSTENCIONISMO
A4: ELECCIONES MUNICIPALES 2002 - 2016
A25: FUENTE: Cuadro 2.

Sheet C3
A2: CUADRO 3 COSTA RICA: PROPORCIÓN DEL ELECTORADO INSCRITO
A3: RESPECTO A LA POBLACIÓN DEL PAÍS1/, SEGÚN PROVINCIA
A4: ELECCIONES MUNICIPALES 2002 - 2016
A6: PROVINCIA | B6: AÑO ELECTORAL
B7: 2002 | C7: 2006 | D7: 2010 | E7: 2016 | F7: POBLACIÓN | G7: 2002 | H7: 2006 | I7: 2010 | J7: 2016
A9: COSTA RICA | B9: =+G21/G9*100 -> 57.96151377 | C9: =+H21/H9*100 -> 60.85489989 | D9: =+I21/I9*100 -> 63.20194076 | E9: =+J21/J9*100 -> 64.99227462 | G9: =SUM(G11:G17) -> 4022426 | H9: =SUM(H11:H17) -> 4278653 | I9: =SUM(I11:I17) -> 4533894 | J9: =SUM(J11:J17) -> 4890372
A11: SAN JOSÉ | B11: =+G23/G11*100 -> 62.16981051 | C11: 65.30191547 | D11: 67.15515442 | E11: 67.74809137 | F11: SAN JOSÉ | G11: 1402528 | H11: 1458703 | I11: 1513924 | J11: 1607170
A12: ALAJUELA | B12: 55.19677781 | C12: 57.70720859 | D12: 59.99192286 | E12: 61.95638462 | F12: ALAJUELA | G12: 763704 | H12: 826486 | I12: 888928 | J12: 975023
A13: CARTAGO | B13: 59.15132586 | C13: 63.4072729 | D13: 67.22480826 | E13: 71.17613044 | F13: CARTAGO | G13: 453366 | H13: 475794 | I13: 497544 | J13: 525724
A14: HEREDIA | B14: 57.99956956 | C14: 60.35065787 | D14: 62.51206091 | E14: 64.21671136 | F14: HEREDIA | G14: 381008 | H14: 417558 | I14: 453946 | J14: 497805
A15: GUANACASTE | B15: 55.95008784 | C15: 57.60535108 | D15: 60.37282698 | E15: 62.22874453 | F15: GUANACASTE | G15: 283458 | H15: 310367 | I15: 337261 | J15: 371375
A16: PUNTARENAS | B16: 55.45731739 | C16: 58.17429181 | D16: 60.79320906 | E16: 63.09339563 | F16: PUNTARENAS | G16: 379124 | H16: 406812 | I16: 436228 | J16: 474262
A17: LIMÓN | B17: 50.09715008 | C17: 53.56863994 | D17: 56.2698399 | E17: 59.50939949 | F17: LIMÓN | G17: 359238 | H17: 382933 | I17: 406063 | J17: 439013
A20: 1/ Estimaciones y proyecciones de población distritales por sexo y grupos de edades 2000 – 2025, Instituto Nacional de Estadística y Censos (INEC) Setiembre 2014.
A21: Fuente: Cómputo de Votos Elecciones Municipales 2002, 2006, 2010 y 2016. | F21: ELECTORES/AS | G21: =SUM(G23:G29) -> 2331459 | H21: =SUM(H23:H29) -> 2603770 | I21: =SUM(I23:I29) -> 2865509 | J21: =SUM(J23:J29) -> 3178364
F23: SAN JOSÉ | G23: 871949 | H23: 952561 | I23: 1016678 | J23: 1088827
F24: ALAJUELA | G24: 421540 | H24: 476942 | I24: 533285 | J24: 604089
F25: CARTAGO | G25: 268172 | H25: 301688 | I25: 334473 | J25: 374190
F26: HEREDIA | G26: 220983 | H26: 251999 | I26: 283771 | J26: 319674
F27: GUANACASTE | G27: 158595 | H27: 178788 | I27: 203614 | J27: 231102
F28: PUNTARENAS | G28: 210252 | H28: 236660 | I28: 265197 | J28: 299228
F29: LIMÓN | G29: 179968 | H29: 205132 | I29: 228491 | J29: 261254

Sheet G3
A2: GRÁFICO 3
A3: COSTA RICA: PROPORCIÓN DEL ELECTORADO INSCRITO, RESPECTO A LA
A4: POBLACIÓN DEL PAÍS, ELECCIONES MUNICIPALES 2002 - 2016
A29: FUENTE: Cuadro 3.

Sheet C4
A2: CUADRO 4 COSTA RICA: PORCENTAJE DE PARTICIPACIÓN, SEGÚN PROVINCIA Y
A3: CANTÓN, ELECCIONES MUNICIPALES 2002 - 2016
A5: PROVINCIA Y CANTÓN | B5: PARTCIPACIÓN
B6: 2002 | C6: 2006 | D6: 2010 | E6: 2016
B7: % | C7: % | D7: %
A9: COSTA RICA | B9: 22.8037036 | C9: 23.83520818 | D9: 27.88932089 | E9: 35.41306156
A10: SAN JOSÉ | B10: 18.19257778 | C10: 19.26963208 | D10: 23.19741354 | E10: 30.28111904
A11: SAN JOSÉ | B11: 17.12094208 | C11: 11.88091388 | D11: 18.35356608 | E11: 26.39264164
A12: ESCAZÚ | B12: 20.8265827 | C12: 22.4355129 | D12: 27.2269654 | E12: 38.89555822
A13: DESAMPARADOS | B13: 12.59317089 | C13: 15.07706735 | D13: 15.70865625 | E13: 24.34008045
A14: PURISCAL | B14: 29.21089525 | C14: 39.60431981 | D14: 31.73174391 | E14: 38.08725444
A15: TARRAZÚ | B15: 28.1301386 | C15: 34.08223824 | D15: 36.21891485 | E15: 39.08638014
A16: ASERRÍ | B16: 22.47559204 | C16: 23.09828365 | D16: 29.24287537 | E16: 28.27449292
A17: MORA | B17: 28.07322793 | C17: 31.09216136 | D17: 35.33566875 | E17: 40.69979766
A18: GOICOECHEA | B18: 12.29358038 | C18: 15.21123693 | D18: 18.71627213 | E18: 24.26517067
A19: SANTA ANA | B19: 27.38329888 | C19: 35.6267594 | D19: 30.49282417 | E19: 42.78672063
A20: ALAJUELITA | B20: 13.2036155 | C20: 16.7830303 | D20: 19.37337163 | E20: 30.4738612
A21: VÁZQUEZ DE CORONADO | B21: 24.79175282 | C21: 25.75049366 | D21: 26.14605834 | E21: 30.35589672
A22: ACOSTA | B22: 33.88808695 | C22: 33.15019732 | D22: 34.58966142 | E22: 40.51035688
A23: TIBÁS | B23: 13.93014404 | C23: 12.72144029 | D23: 18.05116153 | E23: 24.35692617
A24: MORAVIA | B24: 14.55393482 | C24: 17.40524232 | D24: 20.77391563 | E24: 28.96420026
A25: MONTES DE OCA | B25: 16.23099668 | C25: 19.07415238 | D25: 20.18718853 | E25: 31.20167987
A26: TURRUBARES | B26: 62.32571937 | C26: 77.65392781 | D26: 67.32744208 | E26: 64.3175736
A27: DOTA | B27: 24.94974874 | C27: 34.33340853 | D27: 43.36228288 | E27: 55.33854167
A28: CURRIDABAT | B28: 17.99017491 | C28: 18.15738499 | D28: 23.04791582 | E28: 32.61286313
A29: PÉREZ ZELEDÓN | B29: 23.62273315 | C29: 28.11756004 | D29: 36.27723336 | E29: 37.46340655
A30: LEÓN CORTÉS CASTRO | B30: 40.59696876 | C30: 52.4293165 | D30: 50.9142226 | E30: 42.83499446
A31: ALAJUELA | B31: 26.95450017 | C31: 26.2868441 | D31: 30.25136653 | E31: 38.02088765
A32: ALAJUELA | B32: 20.03995434 | C32: 16.85788317 | D32: 21.14363929 | E32: 29.39948752
A33: SAN RAMÓN | B33: 25.87325758 | C33: 27.12228715 | D33: 26.26320774 | E33: 37.17784141
A34: GRECIA | B34: 22.18455836 | C34: 29.16975376 | D34: 28.82253698 | E34: 37.67813999
A35: SAN MATEO | B35: 38.65336658 | C35: 48.22134387 | D35: 54.10779696 | E35: 61.92439863
A36: ATENAS | B36: 29.62437987 | C36: 34.85153498 | D36: 47.15143278 | E36: 49.06159402
A37: NARANJO | B37: 29.87114748 | C37: 26.63045602 | D37: 34.94951657 | E37: 42.41745398
A38: PALMARES | B38: 38.98860543 | C38: 35.03924786 | D38: 34.44598064 | E38: 45.11740258
A39: POÁS | B39: 40.0281988 | C39: 29.98705861 | D39: 21.68046948 | E39: 43.3495169
A40: OROTINA | B40: 26.35786022 | C40: 28.20717839 | D40: 37.10337374 | E40: 43.78810459
A41: SAN CARLOS | B41: 28.04492487 | C41: 28.56808489 | D41: 36.02729358 | E41: 41.60884691
A42: ZARCERO | B42: 37.8453465 | C42: 39.50824253 | D42: 57.48150006 | E42: 54.26039536
A43: VALVERDE VEGA | B43: 40.73011476 | C43: 47.18622249 | D43: 46.08003744 | E43: 47.64921171
A44: UPALA | B44: 40.86254668 | C44: 29.17415671 | D44: 35.6471074 | E44: 41.66102205
A45: LOS CHILES | B45: 33.68523406 | C45: 44.73619329 | D45: 45.91582819 | E45: 43.34641456
A46: GUATUSO | B46: 39.98825602 | C46: 39.34791148 | D46: 42.64804469 | E46: 45.87341285
A47: CARTAGO | B47: 21.11182375 | C47: 23.46729071 | D47: 27.57591794 | E47: 36.61936449
A48: CARTAGO | B48: 15.23337283 | C48: 21.59118979 | D48: 23.1811193 | E48: 35.83408904
A49: PARAÍSO | B49: 25.84949127 | C49: 23.11987877 | D49: 35.61602571 | E49: 42.72757735
A50: LA UNIÓN | B50: 17.95311855 | C50: 20.72259295 | D50: 21.76934001 | E50: 28.54944437
A51: JIMÉNEZ | B51: 44.69082181 | C51: 37.06647399 | D51: 52.5754717 | E51: 55.89418714
A52: TURRIALBA | B52: 24.47871712 | C52: 24.45567409 | D52: 31.05926326 | E52: 36.45544731
A53: ALVARADO | B53: 38.72968981 | C53: 25.36788644 | D53: 41.52006439 | E53: 48.37255884
A54: OREAMUNO | B54: 19.67420662 | C54: 28.20380475 | D54: 26.5504886 | E54: 34.64179446
A55: EL GUARCO | B55: 24.41978287 | C55: 24.1493463 | D55: 25.8895216 | E55: 39.8274209
A56: HEREDIA | B56: 19.2643778 | C56: 23.12747273 | D56: 26.5210328 | E56: 34.78856585
A57: HEREDIA | B57: 11.09746344 | C57: 14.88115786 | D57: 18.04676883 | E57: 27.47352658
A58: BARVA | B58: 27.34876483 | C58: 33.20875379 | D58: 36.35670732 | E58: 35.75220114
A59: SANTO DOMINGO | B59: 20.04150728 | C59: 23.26923077 | D59: 31.9087299 | E59: 36.10878411
A60: SANTA BÁRBARA | B60: 17.7628896 | C60: 24.81641686 | D60: 26.57539056 | E60: 36.96311858
A61: SAN RAFAEL | B61: 16.74938501 | C61: 17.36680909 | D61: 19.96411402 | E61: 32.48069642
A62: SAN ISIDRO | B62: 20.04622186 | C62: 25.05250263 | D62: 35.05186089 | E62: 44.42193321
A63: BELÉN | B63: 28.85746067 | C63: 32.26166399 | D63: 36.72256288 | E63: 44.74546161
A64: FLORES | B64: 26.80432453 | C64: 30.88197916 | D64: 36.42177167 | E64: 44.46046774
A65: SAN PABLO | B65: 22.55113425 | C65: 27.40252257 | D65: 31.04181432 | E65: 36.93022815
A66: SARAPIQUÍ | B66: 30.71766357 | C66: 32.22256596 | D66: 25.96460908 | E66: 38.0937362
A67: GUANACASTE | B67: 36.99044737 | C67: 34.9184509 | D67: 40.03310185 | E67: 44.06582375
A68: LIBERIA | B68: 17.77463973 | C68: 24.34139244 | D68: 28.80651904 | E68: 31.1835199
A69: NICOYA | B69: 40.44758869 | C69: 35.54735547 | D69: 36.26678629 | E69: 45.30290394
A70: SANTA CRUZ | B70: 43.5317021 | C70: 39.39434544 | D70: 38.18670987 | E70: 45.89673362
A71: BAGACES | B71: 24.99151488 | C71: 33.29617996 | D71: 35.66918631 | E71: 37.96586822
A72: CARRILLO | B72: 40.96997691 | C72: 35.02407153 | D72: 44.04987531 | E72: 46.00594905
A73: CAÑAS | B73: 35.12932529 | C73: 24.50485682 | D73: 35.89714022 | E73: 37.09415159
A74: ABANGARES | B74: 35.81964641 | C74: 45.48624199 | D74: 55.10499022 | E74: 55.45818539
A75: TILARÁN | B75: 42.33968339 | C75: 39.05106488 | D75: 45.03719288 | E75: 56.75010259
A76: NANDAYURE | B76: 54.17708854 | C76: 61.01262019 | D76: 65.18894378 | E76: 57.76757671
A77: LA CRUZ | B77: 44.5559162 | C77: 44.62365591 | D77: 47.95940402 | E77: 47.35772358
A78: HOJANCHA | B78: 67.30276937 | C78: 25.05538325 | D78: 70.7169369 | E78: 63.57650321
A79: PUNTARENAS | B79: 28.47202405 | C79: 29.21152709 | D79: 33.49396863 | E79: 38.76408625
A80: PUNTARENAS | B80: 20.92622745 | C80: 26.16387337 | D80: 28.85755716 | E80: 35.35842166
A81: ESPARZA | B81: 39.85067337 | C81: 39.16433183 | D81: 43.21381142 | E81: 48.41595573
A82: BUENOS AIRES | B82: 30.76044305 | C82: 26.37102234 | D82: 31.51285047 | E82: 34.21809835
A83: MONTES DE ORO | B83: 49.92 | C83: 57.07733469 | D83: 48.49142857 | E83: 65.33547933
A84: OSA | B84: 28.40078329 | C84: 26.31959945 | D84: 38.18581226 | E84: 44.41565783
A85: QUEPOS | B85: 29.80359382 | C85: 32.73551989 | D85: 40.93332535 | E85: 43.47270986
A86: GOLFITO | B86: 23.22877499 | C86: 23.14806581 | D86: 30.47284064 | E86: 33.74960646
A87: COTO BRUS | B87: 28.98449747 | C87: 27.74374163 | D87: 32.90438369 | E87: 36.25366058
A88: PARRITA | B88: 45.10915792 | C88: 49.1847493 | D88: 57.82528642 | E88: 47.69162605
A89: CORREDORES | B89: 26.01260543 | C89: 21.29727532 | D89: 22.42983963 | E89: 32.31777981
A90: GARABITO | B90: 52.08473436 | C90: 43.70589896 | D90: 39.07755851 | E90: 45.32676159
A91: LIMÓN | B91: 23.16522937 | C91: 24.88397715 | D91: 28.0846948 | E91: 38.3155856
A92: LIMÓN | B92: 14.9788386 | C92: 18.05096419 | D92: 23.97285846 | E92: 39.75355706
A93: POCOCÍ | B93: 20.35681692 | C93: 23.63259032 | D93: 24.48011091 | E93: 33.38110349
A94: SIQUIRRES | B94: 24.32817292 | C94: 21.84193754 | D94: 27.26956925 | E94: 38.16907555
A95: TALAMANCA | B95: 47.80725501 | C95: 53.68985573 | D95: 46.66839177 | E95: 47.98852074
A96: MATINA | B96: 37.12578782 | C96: 37.33897901 | D96: 42.8548026 | E96: 50.87526306
A97: GUÁCIMO | B97: 27.00094818 | C97: 24.08440456 | D97: 27.83461392 | E97: 34.54965859
A99: Fuente: Cómputo de Votos Elecciones Municipales 2002, 2006, 2010 y 2016.

Sheet C5
A2: CUADRO 5 COSTA RICA: PORCENTAJE DE ABSTENCIONISMO, SEGÚN PROVINCIA Y
A3: CANTÓN, ELECCIONES MUNICIPALES 2002 - 2016
A5: PROVINCIA Y CANTÓN | B5: ABSTENCIONISMO
B6: 2002 | C6: 2006 | D6: 2010 | E6: 2016
B7: % | C7: % | D7: % | E7: %
A9: COSTA RICA | B9: 77.1962964 | C9: 76.16479182 | D9: 72.11067911 | E9: 64.58693844
A10: SAN JOSÉ | B10: 81.80742222 | C10: 80.73036792 | D10: 76.80258646 | E10: 69.71888096
A11: SAN JOSÉ | B11: 82.87905792 | C11: 88.11908612 | D11: 81.64643392 | E11: 73.60735836
A12: ESCAZÚ | B12: 79.1734173 | C12: 77.5644871 | D12: 72.7730346 | E12: 61.10444178
A13: DESAMPARADOS | B13: 87.40682911 | C13: 84.92293265 | D13: 84.29134375 | E13: 75.65991955
A14: PURISCAL | B14: 70.78910475 | C14: 60.39568019 | D14: 68.26825609 | E14: 61.91274556
A15: TARRAZÚ | B15: 71.8698614 | C15: 65.91776176 | D15: 63.78108515 | E15: 60.91361986
A16: ASERRÍ | B16: 77.52440796 | C16: 76.90171635 | D16: 70.75712463 | E16: 71.72550708
A17: MORA | B17: 71.92677207 | C17: 68.90783864 | D17: 64.66433125 | E17: 59.30020234
A18: GOICOECHEA | B18: 87.70641962 | C18: 84.78876307 | D18: 81.28372787 | E18: 75.73482933
A19: SANTA ANA | B19: 72.61670112 | C19: 64.3732406 | D19: 69.50717583 | E19: 57.21327937
A20: ALAJUELITA | B20: 86.7963845 | C20: 83.2169697 | D20: 80.62662837 | E20: 69.5261388
A21: VÁZQUEZ DE CORONADO | B21: 75.20824718 | C21: 74.24950634 | D21: 73.85394166 | E21: 69.64410328
A22: ACOSTA | B22: 66.11191305 | C22: 66.84980268 | D22: 65.41033858 | E22: 59.48964312
A23: TIBÁS | B23: 86.06985596 | C23: 87.27855971 | D23: 81.94883847 | E23: 75.64307383
A24: MORAVIA | B24: 85.44606518 | C24: 82.59475768 | D24: 79.22608437 | E24: 71.03579974
A25: MONTES DE OCA | B25: 83.76900332 | C25: 80.92584762 | D25: 79.81281147 | E25: 68.79832013
A26: TURRUBARES | B26: 37.67428063 | C26: 22.34607219 | D26: 32.67255792 | E26: 35.6824264
A27: DOTA | B27: 75.05025126 | C27: 65.66659147 | D27: 56.63771712 | E27: 44.66145833
A28: CURRIDABAT | B28: 82.00982509 | C28: 81.84261501 | D28: 76.95208418 | E28: 67.38713687
A29: PÉREZ ZELEDÓN | B29: 76.37726685 | C29: 71.88243996 | D29: 63.72276664 | E29: 62.53659345
A30: LEÓN CORTÉS CASTRO | B30: 59.40303124 | C30: 47.5706835 | D30: 49.0857774 | E30: 57.16500554
A31: ALAJUELA | B31: 73.04549983 | C31: 73.7131559 | D31: 69.74863347 | E31: 61.97911235
A32: ALAJUELA | B32: 79.96004566 | C32: 83.14211683 | D32: 78.85636071 | E32: 70.60051248
A33: SAN RAMÓN | B33: 74.12674242 | C33: 72.87771285 | D33: 73.73679226 | E33: 62.82215859
A34: GRECIA | B34: 77.81544164 | C34: 70.83024624 | D34: 71.17746302 | E34: 62.32186001
A35: SAN MATEO | B35: 61.34663342 | C35: 51.77865613 | D35: 45.89220304 | E35: 38.07560137
A36: ATENAS | B36: 70.37562013 | C36: 65.14846502 | D36: 52.84856722 | E36: 50.93840598
A37: NARANJO | B37: 70.12885252 | C37: 73.36954398 | D37: 65.05048343 | E37: 57.58254602
A38: PALMARES | B38: 61.01139457 | C38: 64.96075214 | D38: 65.55401936 | E38: 54.88259742
A39: POÁS | B39: 59.9718012 | C39: 70.01294139 | D39: 78.31953052 | E39: 56.6504831
A40: OROTINA | B40: 73.64213978 | C40: 71.79282161 | D40: 62.89662626 | E40: 56.21189541
A41: SAN CARLOS | B41: 71.95507513 | C41: 71.43191511 | D41: 63.97270642 | E41: 58.39115309
A42: ZARCERO | B42: 62.1546535 | C42: 60.49175747 | D42: 42.51849994 | E42: 45.73960464
A43: VALVERDE VEGA | B43: 59.26988524 | C43: 52.81377751 | D43: 53.91996256 | E43: 52.35078829
A44: UPALA | B44: 59.13745332 | C44: 70.82584329 | D44: 64.3528926 | E44: 58.33897795
A45: LOS CHILES | B45: 66.31476594 | C45: 55.26380671 | D45: 54.08417181 | E45: 56.65358544
A46: GUATUSO | B46: 60.01174398 | C46: 60.65208852 | D46: 57.35195531 | E46: 54.12658715
A47: CARTAGO | B47: 78.88817625 | C47: 76.53270929 | D47: 72.42408206 | E47: 63.38063551
A48: CARTAGO | B48: 84.76662717 | C48: 78.40881021 | D48: 76.8188807 | E48: 64.16591096
A49: PARAÍSO | B49: 74.15050873 | C49: 76.88012123 | D49: 64.38397429 | E49: 57.27242265
A50: LA UNIÓN | B50: 82.04688145 | C50: 79.27740705 | D50: 78.23065999 | E50: 71.45055563
A51: JIMÉNEZ | B51: 55.30917819 | C51: 62.93352601 | D51: 47.4245283 | E51: 44.10581286
A52: TURRIALBA | B52: 75.52128288 | C52: 75.54432591 | D52: 68.94073674 | E52: 63.54455269
A53: ALVARADO | B53: 61.27031019 | C53: 74.63211356 | D53: 58.47993561 | E53: 51.62744116
A54: OREAMUNO | B54: 80.32579338 | C54: 71.79619525 | D54: 73.4495114 | E54: 65.35820554
A55: EL GUARCO | B55: 75.58021713 | C55: 75.8506537 | D55: 74.1104784 | E55: 60.1725791
A56: HEREDIA | B56: 80.7356222 | C56: 76.87252727 | D56: 73.4789672 | E56: 65.21143415
A57: HEREDIA | B57: 88.90253656 | C57: 85.11884214 | D57: 81.95323117 | E57: 72.52647342
A58: BARVA | B58: 72.65123517 | C58: 66.79124621 | D58: 63.64329268 | E58: 64.24779886
A59: SANTO DOMINGO | B59: 79.95849272 | C59: 76.73076923 | D59: 68.0912701 | E59: 63.89121589
A60: SANTA BÁRBARA | B60: 82.2371104 | C60: 75.18358314 | D60: 73.42460944 | E60: 63.03688142
A61: SAN RAFAEL | B61: 83.25061499 | C61: 82.63319091 | D61: 80.03588598 | E61: 67.51930358
A62: SAN ISIDRO | B62: 79.95377814 | C62: 74.94749737 | D62: 64.94813911 | E62: 55.57806679
A63: BELÉN | B63: 71.14253933 | C63: 67.73833601 | D63: 63.27743712 | E63: 55.25453839
A64: FLORES | B64: 73.19567547 | C64: 69.11802084 | D64: 63.57822833 | E64: 55.53953226
A65: SAN PABLO | B65: 77.44886575 | C65: 72.59747743 | D65: 68.95818568 | E65: 63.06977185
A66: SARAPIQUÍ | B66: 69.28233643 | C66: 67.77743404 | D66: 74.03539092 | E66: 61.9062638
A67: GUANACASTE | B67: 63.00955263 | C67: 65.0815491 | D67: 59.96689815 | E67: 55.93417625
A68: LIBERIA | B68: 82.22536027 | C68: 75.65860756 | D68: 71.19348096 | E68: 68.8164801
A69: NICOYA | B69: 59.55241131 | C69: 64.45264453 | D69: 63.73321371 | E69: 54.69709606
A70: SANTA CRUZ | B70: 56.4682979 | C70: 60.60565456 | D70: 61.81329013 | E70: 54.10326638
A71: BAGACES | B71: 75.00848512 | C71: 66.70382004 | D71: 64.33081369 | E71: 62.03413178
A72: CARRILLO | B72: 59.03002309 | C72: 64.97592847 | D72: 55.95012469 | E72: 53.99405095
A73: CAÑAS | B73: 64.87067471 | C73: 75.49514318 | D73: 64.10285978 | E73: 62.90584841
A74: ABANGARES | B74: 64.18035359 | C74: 54.51375801 | D74: 44.89500978 | E74: 44.54181461
A75: TILARÁN | B75: 57.66031661 | C75: 60.94893512 | D75: 54.96280712 | E75: 43.24989741
A76: NANDAYURE | B76: 45.82291146 | C76: 38.98737981 | D76: 34.81105622 | E76: 42.23242329
A77: LA CRUZ | B77: 55.4440838 | C77: 55.37634409 | D77: 52.04059598 | E77: 52.64227642
A78: HOJANCHA | B78: 32.69723063 | C78: 74.94461675 | D78: 29.2830631 | E78: 36.42349679
A79: PUNTARENAS | B79: 71.52797595 | C79: 70.78847291 | D79: 66.50603137 | E79: 61.23591375
A80: PUNTARENAS | B80: 79.07377255 | C80: 73.83612663 | D80: 71.14244284 | E80: 64.64157834
A81: ESPARZA | B81: 60.14932663 | C81: 60.83566817 | D81: 56.78618858 | E81: 51.58404427
A82: BUENOS AIRES | B82: 69.23955695 | C82: 73.62897766 | D82: 68.48714953 | E82: 65.78190165
A83: MONTES DE ORO | B83: 50.08 | C83: 42.92266531 | D83: 51.50857143 | E83: 34.66452067
A84: OSA | B84: 71.59921671 | C84: 73.68040055 | D84: 61.81418774 | E84: 55.58434217
A85: QUEPOS | B85: 70.19640618 | C85: 67.26448011 | D85: 59.06667465 | E85: 56.52729014
A86: GOLFITO | B86: 76.77122501 | C86: 76.85193419 | D86: 69.52715936 | E86: 66.25039354
A87: COTO BRUS | B87: 71.01550253 | C87: 72.25625837 | D87: 67.09561631 | E87: 63.74633942
A88: PARRITA | B88: 54.89084208 | C88: 50.8152507 | D88: 42.17471358 | E88: 52.30837395
A89: CORREDORES | B89: 73.98739457 | C89: 78.70272468 | D89: 77.57016037 | E89: 67.68222019
A90: GARABITO | B90: 47.91526564 | C90: 56.29410104 | D90: 60.92244149 | E90: 54.67323841
A91: LIMÓN | B91: 76.83477063 | C91: 75.11602285 | D91: 71.9153052 | E91: 61.6844144
A92: LIMÓN | B92: 85.0211614 | C92: 81.94903581 | D92: 76.02714154 | E92: 60.24644294
A93: POCOCÍ | B93: 79.64318308 | C93: 76.36740968 | D93: 75.51988909 | E93: 66.61889651
A94: SIQUIRRES | B94: 75.67182708 | C94: 78.15806246 | D94: 72.73043075 | E94: 61.83092445
A95: TALAMANCA | B95: 52.19274499 | C95: 46.31014427 | D95: 53.33160823 | E95: 52.01147926
A96: MATINA | B96: 62.87421218 | C96: 62.66102099 | D96: 57.1451974 | E96: 49.12473694
A97: GUÁCIMO | B97: 72.99905182 | C97: 75.91559544 | D97: 72.16538608 | E97: 65.45034141
A99: Fuente: Cómputo de Votos Elecciones Municipales 2002, 2006, 2010 y 2016.

Sheet C6
A2: CUADRO 6 COSTA RICA: VOTOS VÁLIDOS PARA ALCALDÍAS, SEGÚN PARTIDO POLÍTICO
A3: ELECCIONES MUNICIPALES 2002 - 2016
A5: PARTIDO POLÍTICO | B5: AÑO ELECTORAL
B6: 2002 | C6: 2006 | D6: 2010 | E6: 2016
A8: TOTAL DE VOTOS VÁLIDOS | B8: =SUM(B10:B130) -> 513691 | C8: =SUM(C10:C130) -> 605195 | D8: =SUM(D10:D130) -> 782354 | E8: =SUM(E10:E130) -> 1096563
A10: ACCESIBILIDAD SIN EXCLUSIÓN | B10: 0 | C10: 0 | D10: 26163 | E10: 18624
A11: ACCIÓN CANTONAL SIQUIRRES INDEPENDIENTE | B11: 1658 | C11: 1997 | D11: 773 | E11: 363
A12: ACCIÓN CIUDADANA | B12: 65968 | C12: 88630 | D12: 98719 | E12: 127466
A13: ACCIÓN LABORISTA AGRÍCOLA | B13: 569 | C13: 79 | D13: 0 | E13: 0
A14: ACCIÓN NARANJEÑA | B14: 0 | C14: 0 | D14: 987 | E14: 0
A15: ACCIÓN QUEPEÑA | B15: 889 | C15: 612 | D15: 278 | E15: 0
A16: ACUERDO CANTONAL DESAMPARADEÑO | B16: 0 | C16: 0 | D16: 1687 | E16: 0
A17: ACUERDO DE ALIANZA DE QUEPOS | B17: 0 | C17: 0 | D17: 0 | E17: 404
A18: ALAJUELITA NUEVA | B18: 0 | C18: 664 | D18: 0 | E18: 0
A19: ALIANZA CRISTIANA SANTANEÑA | B19: 0 | C19: 0 | D19: 0 | E19: 365
A20: ALIANZA DEMÓCRATA CRISTIANA | B20: 0 | C20: 0 | D20: 0 | E20: 12389
A21: ALIANZA DEMOCRÁTICA NACIONALISTA | B21: 0 | C21: 1132 | D21: 0 | E21: 0
A22: ALIANZA PATRIÓTICA | B22: 0 | C22: 0 | D22: 2277 | E22: 0
A23: ALIANZA PARA AVANZAR | B23: 5692 | C23: 0 | D23: 0 | E23: 0
A24: ALIANZA POR PALMARES | B24: 0 | C24: 0 | D24: 0 | E24: 2349
A25: ALIANZA POR SAN JOSÉ | B25: 4939 | C25: 1309 | D25: 0 | E25: 23925
A26: ALIANZA SANCARLEÑA | B26: 0 | C26: 0 | D26: 0 | E26: 702
A27: ALIANZA SOCIAL POR LA UNIÓN | B27: 0 | C27: 0 | D27: 0 | E27: 3107
A28: AUTÉNTICO LABRADOR DE CORONADO | B28: 0 | C28: 0 | D28: 0 | E28: 2686
A29: AUTÉNTICO LIMONENSE | B29: 0 | C29: 0 | D29: 0 | E29: 13612
A30: AUTÉNTICO PARAISEÑO | B30: 3696 | C30: 0 | D30: 0 | E30: 0
A31: AUTÉNTICO PILARICO | B31: 0 | C31: 454 | D31: 0 | E31: 0
A32: AUTÉNTICO SANTANEÑO | B32: 0 | C32: 541 | D32: 0 | E32: 0
A33: AUTÉNTICO SARAPIQUEÑO | B33: 799 | C33: 0 | D33: 0 | E33: 0
A34: AUTÉNTICO SIQUIRREÑO | B34: 0 | C34: 0 | D34: 0 | E34: 2774
A35: AUTÉNTICO TURRIALBEÑO CARTAGINÉS | B35: 0 | C35: 592 | D35: 0 | E35: 0
A36: AUTÓNOMO OROMONTANO | B36: 0 | C36: 369 | D36: 835 | E36: 185
A37: AVANCE MONTES DE OCA | B37: 0 | C37: 0 | D37: 0 | E37: 1953
A38: CAMBIO YA | B38: 822 | C38: 0 | D38: 0 | E38: 0
A39: CÍVICO DE TIBÁS FUENTEOVEJUNA | B39: 0 | C39: 0 | D39: 2080 | E39: 0
A40: COALICIÓN ALIANZA POR BELEN | B40: 0 | C40: 0 | D40: 0 | E40: 1242
A41: COALICIÓN BARVA UNIDA | B41: 0 | C41: 0 | D41: 811 | E41: 628
A42: COALICIÓN CAMBIO 2000 | B42: 4272 | C42: 0 | D42: 0 | E42: 0
A43: COALICIÓN CARTAGO UNIDO | B43: 0 | C43: 0 | D43: 11353 | E43: 0
A44: COALICIÓN GENTE MONTES DE OCA | B44: 0 | C44: 0 | D44: 0 | E44: 3707
A45: COALICIÓN MONTES DE OCA UNIDA | B45: 0 | C45: 0 | D45: 1248 | E45: 0
A46: COALICIÓN PARTIDO ALIANZA ZARCEREÑA | B46: 0 | C46: 0 | D46: 570 | E46: 0
A47: COALICIÓN RAMONENSE | B47: 0 | C47: 0 | D47: 4804 | E47: 0
A48: COALICIÓN SOMOS TIBÁS | B48: 0 | C48: 0 | D48: 0 | E48: 2510
A49: COALICIÓN UNIDOS POR GUATUSO | B49: 0 | C49: 0 | D49: 0 | E49: 458
A50: COALICIÓN UNIDOS POR SAN CARLOS | B50: 0 | C50: 0 | D50: 13097 | E50: 0
A51: COALICIÓN UNIÓN LIBERIANA | B51: 0 | C51: 0 | D51: 1234 | E51: 0
A52: COMUNAL PRO-CURRI | B52: 0 | C52: 953 | D52: 0 | E52: 0
A53: CONCIENCIA LIMONENSE | B53: 219 | C53: 0 | D53: 0 | E53: 0
A54: CURRIDABAT SIGLO XXI | B54: 1560 | C54: 3414 | D54: 7412 | E54: 7713
A55: DE LOS TRABAJADORES | B55: 0 | C55: 0 | D55: 0 | E55: 1048
A56: DEL PUEBLO Y PARA EL PUEBLO | B56: 0 | C56: 378 | D56: 0 | E56: 0
A57: DEL SOL | B57: 1662 | C57: 1942 | D57: 2334 | E57: 1903
A58: DEMÓCRATA | B58: 0 | C58: 0 | D58: 0 | E58: 286
A59: DESAMPARADOS UNIDO | B59: 0 | C59: 0 | D59: 0 | E59: 1413
A60: EL PUENTE Y LOS CAMINOS DE MORA | B60: 0 | C60: 1478 | D60: 1315 | E60: 0
A61: ECOLÓGICO COMUNAL COSTARRICENSE | B61: 0 | C61: 0 | D61: 0 | E61: 3663
A62: FRENTE AMPLIO | B62: 0 | C62: 502 | D62: 5354 | E62: 51778
A63: FUERZA COMUNAL DESAMPARADEÑA | B63: 0 | C63: 414 | D63: 0 | E63: 0
A64: FUERZA DEMOCRÁTICA | B64: 6606 | C64: 2827 | D64: 0 | E64: 0
A65: FUERZA DEMOCRÁTICA DESAMPARADEÑA | B65: 0 | C65: 0 | D65: 0 | E65: 1115
A66: FUERZAS UNIDAS PARA EL CAMBIO | B66: 0 | C66: 0 | D66: 0 | E66: 523
A67: GARABITO ECOLÓGICO | B67: 795 | C67: 0 | D67: 884 | E67: 273
A68: GOICOECHEA EN ACCIÓN | B68: 0 | C68: 1696 | D68: 2047 | E68: 0
A69: GUANACASTE INDEPENDIENTE | B69: 1259 | C69: 6925 | D69: 0 | E69: 0
A70: HUMANISTA DE HEREDIA | B70: 81 | C70: 0 | D70: 0 | E70: 0
A71: HUMANISTA DE MONTES DE OCA | B71: 269 | C71: 0 | D71: 0 | E71: 0
A72: INDEPENDIENTE BELEMITA | B72: 546 | C72: 721 | D72: 740 | E72: 0
A73: INDEPENDIENTE ESCAZUCEÑO | B73: 0 | C73: 0 | D73: 0 | E73: 880
A74: INDEPENDIENTE OBRERO | B74: 4904 | C74: 0 | D74: 0 | E74: 0
A75: INTEGRACIÓN BARBAREÑA | B75: 0 | C75: 1878 | D75: 873 | E75: 0
A76: INTEGRACIÓN NACIONAL | B76: 3119 | C76: 8516 | D76: 9434 | E76: 13366
A77: INTEGRACIÓN PROVINCIAL TRES | B77: 0 | C77: 37 | D77: 0 | E77: 0
A78: JUSTICIA GENERALEÑA | B78: 0 | C78: 0 | D78: 0 | E78: 2128
A79: LIBERACIÓN NACIONAL | B79: 168410 | C79: 277589 | D79: 342563 | E79: 350594
A80: LIGA RAMONENSE | B80: 0 | C80: 0 | D80: 0 | E80: 1675
A81: LIMÓN INDEPENDIENTE | B81: 0 | C81: 0 | D81: 0 | E81: 486
A82: MORAVIA PROGRESISTA | B82: 0 | C82: 528 | D82: 0 | E82: 0
A83: MOVIMIENTO AVANCE SANTO DOMINGO | B83: 0 | C83: 0 | D83: 2164 | E83: 3127
A84: MOVIMIENTO CURRIDABAT | B84: 673 | C84: 0 | D84: 0 | E84: 0
A85: MOVIMIENTO DE TRABAJADORES Y CAMPESINOS | B85: 0 | C85: 0 | D85: 1208 | E85: 0
A86: MOVIMIENTO LIBERTARIO | B86: 20655 | C86: 34073 | D86: 75441 | E86: 37317
A87: MOVIMIENTO OPCIÓN CANTONAL AUTÉNTICA | B87: 867 | C87: 0 | D87: 0 | E87: 0
A88: NUEVA GENERACIÓN | B88: 0 | C88: 0 | D88: 0 | E88: 40919
A89: NUEVA MAYORÍA GRIEGA | B89: 0 | C89: 0 | D89: 0 | E89: 4985
A90: NUEVO CORREDORES | B90: 279 | C90: 0 | D90: 0 | E90: 0
A91: ORGANIZACIÓN LABORISTA DE QUEPOS | B91: 0 | C91: 1485 | D91: 52 | E91: 0
A92: ORGANIZACIÓN SOCIAL ACTIVA | B92: 0 | C92: 0 | D92: 960 | E92: 0
A93: PATRIA PRIMERO | B93: 0 | C93: 297 | D93: 0 | E93: 0
A94: PARRITA INDEPENDIENTE | B94: 0 | C94: 0 | D94: 0 | E94: 1026
A95: PROGRESO COMUNAL DESAMPARADEÑO | B95: 0 | C95: 0 | D95: 0 | E95: 1000
A96: PUEBLO GARABITO | B96: 0 | C96: 0 | D96: 0 | E96: 753
A97: PURISCALEÑOS DE CORAZON | B97: 0 | C97: 0 | D97: 0 | E97: 300
A98: RECUPERANDO VALORES | B98: 0 | C98: 0 | D98: 0 | E98: 1744
A99: RENACER SANTACRUCEÑO | B99: 666 | C99: 0 | D99: 0 | E99: 0
A100: RENOVACIÓN CARTAGO | B100: 0 | C100: 0 | D100: 0 | E100: 2944
A101: RENOVACIÓN COSTARICENSE | B101: 15497 | C101: 9883 | D101: 20512 | E101: 28923
A102: RENOVEMOS ALAJUELA | B102: 0 | C102: 0 | D102: 8504 | E102: 5351
A103: REPUBLICANO SOCIAL CRISTIANO | B103: 0 | C103: 0 | D103: 0 | E103: 66538
A104: RESCATE CANTONAL LA UNIÓN | B104: 0 | C104: 0 | D104: 0 | E104: 2797
A105: RESCATE NACIONAL | B105: 3488 | C105: 1609 | D105: 0 | E105: 0
A106: RESTAURACIÓN HEREDIANA | B106: 0 | C106: 0 | D106: 625 | E106: 0
A107: RESTAURACIÓN NACIONAL | B107: 0 | C107: 0 | D107: 0 | E107: 11467
A108: RESTAURACIÓN PARRITEÑA | B108: 0 | C108: 0 | D108: 0 | E108: 422
A109: SAN JOSÉ SOMOS TODOS | B109: 981 | C109: 0 | D109: 0 | E109: 0
A110: SOLIDARIDAD | B110: 0 | C110: 0 | D110: 0 | E110: 1609
A111: SOLIDARIDAD RAMONENSE | B111: 0 | C111: 4131 | D111: 0 | E111: 0
A112: TALAMANCA UNIDA | B112: 0 | C112: 0 | D112: 219 | E112: 0
A113: TARRAZÚ PRIMERO | B113: 0 | C113: 0 | D113: 906 | E113: 0
A114: TODO POR FLORES | B114: 0 | C114: 0 | D114: 1732 | E114: 1349
A115: TRANSPARENCIA CARTAGINÉS | B115: 0 | C115: 0 | D115: 976 | E115: 0
A116: ÚNICO ABANGAREÑO | B116: 0 | C116: 0 | D116: 1090 | E116: 0
A117: UNIDAD SOCIAL CRISTIANA | B117: 188612 | C117: 107007 | D117: 113394 | E117: 201620
A118: UNIÓN AGRÍCOLA CARTIGINÉS | B118: 532 | C118: 0 | D118: 3498 | E118: 0
A119: UNIÓN ATENIENSE | B119: 0 | C119: 0 | D119: 1838 | E119: 0
A120: UNIÓN GENERAL | B120: 96 | C120: 0 | D120: 0 | E120: 0
A121: UNIÓN GUARQUEÑO | B121: 0 | C121: 0 | D121: 0 | E121: 2485
A122: UNIÓN NACIONAL | B122: 0 | C122: 16101 | D122: 0 | E122: 0
A123: UNIÓN PALMAREÑA | B123: 0 | C123: 2035 | D123: 2170 | E123: 0
A124: UNIÓN PARA EL CAMBIO | B124: 0 | C124: 15107 | D124: 0 | E124: 0
A125: UNIÓN POASEÑA | B125: 0 | C125: 265 | D125: 1634 | E125: 0
A126: VANGUARDIA POPULAR | B126: 0 | C126: 245 | D126: 0 | E126: 0
A127: VERDE | B127: 0 | C127: 0 | D127: 0 | E127: 4786
A128: VERDE ECOLOGISTA | B128: 0 | C128: 3265 | D128: 612 | E128: 0
A129: VIVA PUNTARENAS | B129: 0 | C129: 0 | D129: 0 | E129: 6134
A130: YUNTA PROGRESISTA ESCAZUCEÑA | B130: 2611 | C130: 3515 | D130: 4947 | E130: 10674
A132: Fuente: Cómputo de Votos Elecciones Municipales 2002, 2006, 2010 y 2016.

Sheet C7
A2: CUADRO 7 COSTA RICA: VOTOS PARA ALCALDÍAS, SEGÚN PARTIDO POLÍTICO
A3: ELECCIONES MUNICIPALES 2002 - 2016
A4: (CIFRAS RELATIVAS)
A6: PARTIDO POLÍTICO | B6: AÑO ELECTORAL
B7: 2002 | C7: 2006 | D7: 2010 | E7: 2016
A9: TOTAL DE VOTOS VÁLIDOS | B9: =SUM(B11:B131) -> 100 | C9: =SUM(C11:C131) -> 100 | D9: =SUM(D11:D131) -> 100 | E9: =SUM(E11:E131) -> 100
A11: ACCESIBILIDAD SIN EXCLUSIÓN | B11: =+'C6'!B10/'C6'!B$8*100 -> 0 | C11: =+'C6'!C10/'C6'!C$8*100 -> 0 | D11: =+'C6'!D10/'C6'!D$8*100 -> 3.344138331 | E11: =+'C6'!E10/'C6'!E$8*100 -> 1.69839763
A12: ACCIÓN CANTONAL SIQUIRRES INDEPENDIENTE | B12: =+'C6'!B11/'C6'!B$8*100 -> 0.3227621274 | C12: =+'C6'!C11/'C6'!C$8*100 -> 0.3299762886 | D12: =+'C6'!D11/'C6'!D$8*100 -> 0.09880437756 | E12: =+'C6'!E11/'C6'!E$8*100 -> 0.03310343318
A13: ACCIÓN CIUDADANA | B13: =+'C6'!B12/'C6'!B$8*100 -> 12.84196141 | C13: =+'C6'!C12/'C6'!C$8*100 -> 14.64486653 | D13: =+'C6'!D12/'C6'!D$8*100 -> 12.61820097 | E13: =+'C6'!E12/'C6'!E$8*100 -> 11.62413833
A14: ACCIÓN LABORISTA AGRÍCOLA | B14: =+'C6'!B13/'C6'!B$8*100 -> 0.1107669786 | C14: =+'C6'!C13/'C6'!C$8*100 -> 0.01305364387 | D14: =+'C6'!D13/'C6'!D$8*100 -> 0 | E14: =+'C6'!E13/'C6'!E$8*100 -> 0
A15: ACCIÓN NARANJEÑA | B15: =+'C6'!B14/'C6'!B$8*100 -> 0 | C15: =+'C6'!C14/'C6'!C$8*100 -> 0 | D15: =+'C6'!D14/'C6'!D$8*100 -> 0.126157724 | E15: =+'C6'!E14/'C6'!E$8*100 -> 0
A16: ACCIÓN QUEPEÑA | B16: =+'C6'!B15/'C6'!B$8*100 -> 0.1730612372 | C16: =+'C6'!C15/'C6'!C$8*100 -> 0.101124431 | D16: =+'C6'!D15/'C6'!D$8*100 -> 0.0355337865 | E16: =+'C6'!E15/'C6'!E$8*100 -> 0
A17: ACUERDO CANTONAL DESAMPARADEÑO | B17: =+'C6'!B16/'C6'!B$8*100 -> 0 | C17: =+'C6'!C16/'C6'!C$8*100 -> 0 | D17: =+'C6'!D16/'C6'!D$8*100 -> 0.2156312871 | E17: =+'C6'!E16/'C6'!E$8*100 -> 0
A18: ACUERDO DE ALIANZA DE QUEPOS | B18: =+'C6'!B17/'C6'!B$8*100 -> 0 | C18: =+'C6'!C17/'C6'!C$8*100 -> 0 | D18: =+'C6'!D17/'C6'!D$8*100 -> 0 | E18: =+'C6'!E17/'C6'!E$8*100 -> 0.03684238844
A19: ALAJUELITA NUEVA | B19: =+'C6'!B18/'C6'!B$8*100 -> 0 | C19: =+'C6'!C18/'C6'!C$8*100 -> 0.1097167029 | D19: =+'C6'!D18/'C6'!D$8*100 -> 0 | E19: =+'C6'!E18/'C6'!E$8*100 -> 0
A20: ALIANZA CRISTIANA SANTANEÑA | B20: =+'C6'!B19/'C6'!B$8*100 -> 0 | C20: =+'C6'!C19/'C6'!C$8*100 -> 0 | D20: =+'C6'!D19/'C6'!D$8*100 -> 0 | E20: =+'C6'!E19/'C6'!E$8*100 -> 0.03328582124
A21: ALIANZA DEMÓCRATA CRISTIANA | B21: =+'C6'!B20/'C6'!B$8*100 -> 0 | C21: =+'C6'!C20/'C6'!C$8*100 -> 0 | D21: =+'C6'!D20/'C6'!D$8*100 -> 0 | E21: =+'C6'!E20/'C6'!E$8*100 -> 1.129802848
A22: ALIANZA DEMOCRÁTICA NACIONALISTA | B22: =+'C6'!B21/'C6'!B$8*100 -> 0 | C22: =+'C6'!C21/'C6'!C$8*100 -> 0.1870471501 | D22: =+'C6'!D21/'C6'!D$8*100 -> 0 | E22: =+'C6'!E21/'C6'!E$8*100 -> 0
A23: ALIANZA PATRIÓTICA | B23: =+'C6'!B22/'C6'!B$8*100 -> 0 | C23: =+'C6'!C22/'C6'!C$8*100 -> 0 | D23: =+'C6'!D22/'C6'!D$8*100 -> 0.2910447189 | E23: =+'C6'!E22/'C6'!E$8*100 -> 0
A24: ALIANZA PARA AVANZAR | B24: =+'C6'!B23/'C6'!B$8*100 -> 1.108059125 | C24: =+'C6'!C23/'C6'!C$8*100 -> 0 | D24: =+'C6'!D23/'C6'!D$8*100 -> 0 | E24: =+'C6'!E23/'C6'!E$8*100 -> 0
A25: ALIANZA POR PALMARES | B25: =+'C6'!B24/'C6'!B$8*100 -> 0 | C25: =+'C6'!C24/'C6'!C$8*100 -> 0 | D25: =+'C6'!D24/'C6'!D$8*100 -> 0 | E25: =+'C6'!E24/'C6'!E$8*100 -> 0.2142147784
A26: ALIANZA POR SAN JOSÉ | B26: =+'C6'!B25/'C6'!B$8*100 -> 0.9614729477 | C26: =+'C6'!C25/'C6'!C$8*100 -> 0.2162939218 | D26: =+'C6'!D25/'C6'!D$8*100 -> 0 | E26: =+'C6'!E25/'C6'!E$8*100 -> 2.181817187
A27: ALIANZA SANCARLEÑA | B27: =+'C6'!B26/'C6'!B$8*100 -> 0 | C27: =+'C6'!C26/'C6'!C$8*100 -> 0 | D27: =+'C6'!D26/'C6'!D$8*100 -> 0 | E27: =+'C6'!E26/'C6'!E$8*100 -> 0.06401820962
A28: ALIANZA SOCIAL POR LA UNIÓN | B28: =+'C6'!B27/'C6'!B$8*100 -> 0 | C28: =+'C6'!C27/'C6'!C$8*100 -> 0 | D28: =+'C6'!D27/'C6'!D$8*100 -> 0 | E28: =+'C6'!E27/'C6'!E$8*100 -> 0.2833398537
A29: AUTÉNTICO LABRADOR DE CORONADO | B29: =+'C6'!B28/'C6'!B$8*100 -> 0 | C29: =+'C6'!C28/'C6'!C$8*100 -> 0 | D29: =+'C6'!D28/'C6'!D$8*100 -> 0 | E29: =+'C6'!E28/'C6'!E$8*100 -> 0.2449471667
A30: AUTÉNTICO LIMONENSE | B30: =+'C6'!B29/'C6'!B$8*100 -> 0 | C30: =+'C6'!C29/'C6'!C$8*100 -> 0 | D30: =+'C6'!D29/'C6'!D$8*100 -> 0 | E30: =+'C6'!E29/'C6'!E$8*100 -> 1.241333147
A31: AUTÉNTICO PARAISEÑO | B31: =+'C6'!B30/'C6'!B$8*100 -> 0.719498687 | C31: =+'C6'!C30/'C6'!C$8*100 -> 0 | D31: =+'C6'!D30/'C6'!D$8*100 -> 0 | E31: =+'C6'!E30/'C6'!E$8*100 -> 0
A32: AUTÉNTICO PILARICO | B32: =+'C6'!B31/'C6'!B$8*100 -> 0 | C32: =+'C6'!C31/'C6'!C$8*100 -> 0.07501714323 | D32: =+'C6'!D31/'C6'!D$8*100 -> 0 | E32: =+'C6'!E31/'C6'!E$8*100 -> 0
A33: AUTÉNTICO SANTANEÑO | B33: =+'C6'!B32/'C6'!B$8*100 -> 0 | C33: =+'C6'!C32/'C6'!C$8*100 -> 0.08939267509 | D33: =+'C6'!D32/'C6'!D$8*100 -> 0 | E33: =+'C6'!E32/'C6'!E$8*100 -> 0
A34: AUTÉNTICO SARAPIQUEÑO | B34: =+'C6'!B33/'C6'!B$8*100 -> 0.155540977 | C34: =+'C6'!C33/'C6'!C$8*100 -> 0 | D34: =+'C6'!D33/'C6'!D$8*100 -> 0 | E34: =+'C6'!E33/'C6'!E$8*100 -> 0
A35: AUTÉNTICO SIQUIRREÑO | B35: =+'C6'!B34/'C6'!B$8*100 -> 0 | C35: =+'C6'!C34/'C6'!C$8*100 -> 0 | D35: =+'C6'!D34/'C6'!D$8*100 -> 0 | E35: =+'C6'!E34/'C6'!E$8*100 -> 0.2529722414
A36: AUTÉNTICO TURRIALBEÑO CARTAGINÉS | B36: =+'C6'!B35/'C6'!B$8*100 -> 0 | C36: =+'C6'!C35/'C6'!C$8*100 -> 0.097819711 | D36: =+'C6'!D35/'C6'!D$8*100 -> 0 | E36: =+'C6'!E35/'C6'!E$8*100 -> 0
A37: AUTÓNOMO OROMONTANO | B37: =+'C6'!B36/'C6'!B$8*100 -> 0 | C37: =+'C6'!C36/'C6'!C$8*100 -> 0.06097208338 | D37: =+'C6'!D36/'C6'!D$8*100 -> 0.1067291789 | E37: =+'C6'!E36/'C6'!E$8*100 -> 0.0168708957
A38: AVANCE MONTES DE OCA | B38: =+'C6'!B37/'C6'!B$8*100 -> 0 | C38: =+'C6'!C37/'C6'!C$8*100 -> 0 | D38: =+'C6'!D37/'C6'!D$8*100 -> 0 | E38: =+'C6'!E37/'C6'!E$8*100 -> 0.1781019422
A39: CAMBIO YA | B39: =+'C6'!B38/'C6'!B$8*100 -> 0.1600183768 | C39: =+'C6'!C38/'C6'!C$8*100 -> 0 | D39: =+'C6'!D38/'C6'!D$8*100 -> 0 | E39: =+'C6'!E38/'C6'!E$8*100 -> 0
A40: CÍVICO DE TIBÁS FUENTEOVEJUNA | B40: =+'C6'!B39/'C6'!B$8*100 -> 0 | C40: =+'C6'!C39/'C6'!C$8*100 -> 0 | D40: =+'C6'!D39/'C6'!D$8*100 -> 0.2658643018 | E40: =+'C6'!E39/'C6'!E$8*100 -> 0
A41: COALICIÓN ALIANZA POR BELEN | B41: =+'C6'!B40/'C6'!B$8*100 -> 0 | C41: =+'C6'!C40/'C6'!C$8*100 -> 0 | D41: =+'C6'!D40/'C6'!D$8*100 -> 0 | E41: =+'C6'!E40/'C6'!E$8*100 -> 0.1132629863
A42: COALICIÓN BARVA UNIDA | B42: =+'C6'!B41/'C6'!B$8*100 -> 0 | C42: =+'C6'!C41/'C6'!C$8*100 -> 0 | D42: =+'C6'!D41/'C6'!D$8*100 -> 0.1036615138 | E42: =+'C6'!E41/'C6'!E$8*100 -> 0.05726985134
A43: COALICIÓN CAMBIO 2000 | B43: =+'C6'!B42/'C6'!B$8*100 -> 0.8316283525 | C43: =+'C6'!C42/'C6'!C$8*100 -> 0 | D43: =+'C6'!D42/'C6'!D$8*100 -> 0 | E43: =+'C6'!E42/'C6'!E$8*100 -> 0
A44: COALICIÓN CARTAGO UNIDO | B44: =+'C6'!B43/'C6'!B$8*100 -> 0 | C44: =+'C6'!C43/'C6'!C$8*100 -> 0 | D44: =+'C6'!D43/'C6'!D$8*100 -> 1.451133374 | E44: =+'C6'!E43/'C6'!E$8*100 -> 0
A45: COALICIÓN GENTE MONTES DE OCA | B45: =+'C6'!B44/'C6'!B$8*100 -> 0 | C45: =+'C6'!C44/'C6'!C$8*100 -> 0 | D45: =+'C6'!D44/'C6'!D$8*100 -> 0 | E45: =+'C6'!E44/'C6'!E$8*100 -> 0.3380562722
A46: COALICIÓN MONTES DE OCA UNIDA | B46: =+'C6'!B45/'C6'!B$8*100 -> 0 | C46: =+'C6'!C45/'C6'!C$8*100 -> 0 | D46: =+'C6'!D45/'C6'!D$8*100 -> 0.1595185811 | E46: =+'C6'!E45/'C6'!E$8*100 -> 0
A47: COALICIÓN PARTIDO ALIANZA ZARCEREÑA | B47: =+'C6'!B46/'C6'!B$8*100 -> 0 | C47: =+'C6'!C46/'C6'!C$8*100 -> 0 | D47: =+'C6'!D46/'C6'!D$8*100 -> 0.07285704425 | E47: =+'C6'!E46/'C6'!E$8*100 -> 0
A48: COALICIÓN RAMONENSE | B48: =+'C6'!B47/'C6'!B$8*100 -> 0 | C48: =+'C6'!C47/'C6'!C$8*100 -> 0 | D48: =+'C6'!D47/'C6'!D$8*100 -> 0.6140442817 | E48: =+'C6'!E47/'C6'!E$8*100 -> 0
A49: COALICIÓN SOMOS TIBÁS | B49: =+'C6'!B48/'C6'!B$8*100 -> 0 | C49: =+'C6'!C48/'C6'!C$8*100 -> 0 | D49: =+'C6'!D48/'C6'!D$8*100 -> 0 | E49: =+'C6'!E48/'C6'!E$8*100 -> 0.2288970173
A50: COALICIÓN UNIDOS POR GUATUSO | B50: =+'C6'!B49/'C6'!B$8*100 -> 0 | C50: =+'C6'!C49/'C6'!C$8*100 -> 0 | D50: =+'C6'!D49/'C6'!D$8*100 -> 0 | E50: =+'C6'!E49/'C6'!E$8*100 -> 0.04176686611
A51: COALICIÓN UNIDOS POR SAN CARLOS | B51: =+'C6'!B50/'C6'!B$8*100 -> 0 | C51: =+'C6'!C50/'C6'!C$8*100 -> 0 | D51: =+'C6'!D50/'C6'!D$8*100 -> 1.674050366 | E51: =+'C6'!E50/'C6'!E$8*100 -> 0
A52: COALICIÓN UNIÓN LIBERIANA | B52: =+'C6'!B51/'C6'!B$8*100 -> 0 | C52: =+'C6'!C51/'C6'!C$8*100 -> 0 | D52: =+'C6'!D51/'C6'!D$8*100 -> 0.1577291098 | E52: =+'C6'!E51/'C6'!E$8*100 -> 0
A53: COMUNAL PRO-CURRI | B53: =+'C6'!B52/'C6'!B$8*100 -> 0 | C53: =+'C6'!C52/'C6'!C$8*100 -> 0.1574699064 | D53: =+'C6'!D52/'C6'!D$8*100 -> 0 | E53: =+'C6'!E52/'C6'!E$8*100 -> 0
A54: CONCIENCIA LIMONENSE | B54: =+'C6'!B53/'C6'!B$8*100 -> 0.04263263324 | C54: =+'C6'!C53/'C6'!C$8*100 -> 0 | D54: =+'C6'!D53/'C6'!D$8*100 -> 0 | E54: =+'C6'!E53/'C6'!E$8*100 -> 0
A55: CURRIDABAT SIGLO XXI | B55: =+'C6'!B54/'C6'!B$8*100 -> 0.3036845107 | C55: =+'C6'!C54/'C6'!C$8*100 -> 0.5641156982 | D55: =+'C6'!D54/'C6'!D$8*100 -> 0.947397214 | E55: =+'C6'!E54/'C6'!E$8*100 -> 0.7033795596
A56: DE LOS TRABAJADORES | B56: =+'C6'!B55/'C6'!B$8*100 -> 0 | C56: =+'C6'!C55/'C6'!C$8*100 -> 0 | D56: =+'C6'!D55/'C6'!D$8*100 -> 0 | E56: =+'C6'!E55/'C6'!E$8*100 -> 0.09557134428
A57: DEL PUEBLO Y PARA EL PUEBLO | B57: =+'C6'!B56/'C6'!B$8*100 -> 0 | C57: =+'C6'!C56/'C6'!C$8*100 -> 0.06245920736 | D57: =+'C6'!D56/'C6'!D$8*100 -> 0 | E57: =+'C6'!E56/'C6'!E$8*100 -> 0
A58: DEL SOL | B58: =+'C6'!B57/'C6'!B$8*100 -> 0.3235408057 | C58: =+'C6'!C57/'C6'!C$8*100 -> 0.3208883087 | D58: =+'C6'!D57/'C6'!D$8*100 -> 0.2983304233 | E58: =+'C6'!E57/'C6'!E$8*100 -> 0.1735422406
A59: DEMÓCRATA | B59: =+'C6'!B58/'C6'!B$8*100 -> 0 | C59: =+'C6'!C58/'C6'!C$8*100 -> 0 | D59: =+'C6'!D58/'C6'!D$8*100 -> 0 | E59: =+'C6'!E58/'C6'!E$8*100 -> 0.02608149281
A60: DESAMPARADOS UNIDO | B60: =+'C6'!B59/'C6'!B$8*100 -> 0 | C60: =+'C6'!C59/'C6'!C$8*100 -> 0 | D60: =+'C6'!D59/'C6'!D$8*100 -> 0 | E60: =+'C6'!E59/'C6'!E$8*100 -> 0.1288571655
A61: EL PUENTE Y LOS CAMINOS DE MORA | B61: =+'C6'!B60/'C6'!B$8*100 -> 0 | C61: =+'C6'!C60/'C6'!C$8*100 -> 0.2442188055 | D61: =+'C6'!D60/'C6'!D$8*100 -> 0.1680824793 | E61: =+'C6'!E60/'C6'!E$8*100 -> 0
A62: ECOLÓGICO COMUNAL COSTARRICENSE | B62: =+'C6'!B61/'C6'!B$8*100 -> 0 | C62: =+'C6'!C61/'C6'!C$8*100 -> 0 | D62: =+'C6'!D61/'C6'!D$8*100 -> 0 | E62: =+'C6'!E61/'C6'!E$8*100 -> 0.3340437348
A63: FRENTE AMPLIO | B63: =+'C6'!B62/'C6'!B$8*100 -> 0 | C63: =+'C6'!C62/'C6'!C$8*100 -> 0.08294847115 | D63: =+'C6'!D62/'C6'!D$8*100 -> 0.6843449385 | E63: =+'C6'!E62/'C6'!E$8*100 -> 4.721844527
A64: FUERZA COMUNAL DESAMPARADEÑA | B64: =+'C6'!B63/'C6'!B$8*100 -> 0 | C64: =+'C6'!C63/'C6'!C$8*100 -> 0.0684077033 | D64: =+'C6'!D63/'C6'!D$8*100 -> 0 | E64: =+'C6'!E63/'C6'!E$8*100 -> 0
A65: FUERZA DEMOCRÁTICA | B65: =+'C6'!B64/'C6'!B$8*100 -> 1.285987101 | C65: =+'C6'!C64/'C6'!C$8*100 -> 0.4671221672 | D65: =+'C6'!D64/'C6'!D$8*100 -> 0 | E65: =+'C6'!E64/'C6'!E$8*100 -> 0
A66: FUERZA DEMOCRÁTICA DESAMPARADEÑA | B66: =+'C6'!B65/'C6'!B$8*100 -> 0 | C66: =+'C6'!C65/'C6'!C$8*100 -> 0 | D66: =+'C6'!D65/'C6'!D$8*100 -> 0 | E66: =+'C6'!E65/'C6'!E$8*100 -> 0.1016813443
A67: FUERZAS UNIDAS PARA EL CAMBIO | B67: =+'C6'!B66/'C6'!B$8*100 -> 0 | C67: =+'C6'!C66/'C6'!C$8*100 -> 0 | D67: =+'C6'!D66/'C6'!D$8*100 -> 0 | E67: =+'C6'!E66/'C6'!E$8*100 -> 0.04769447811
A68: GARABITO ECOLÓGICO | B68: =+'C6'!B67/'C6'!B$8*100 -> 0.1547622987 | C68: =+'C6'!C67/'C6'!C$8*100 -> 0 | D68: =+'C6'!D67/'C6'!D$8*100 -> 0.1129923283 | E68: =+'C6'!E67/'C6'!E$8*100 -> 0.02489597041
A69: GOICOECHEA EN ACCIÓN | B69: =+'C6'!B68/'C6'!B$8*100 -> 0 | C69: =+'C6'!C68/'C6'!C$8*100 -> 0.2802402531 | D69: =+'C6'!D68/'C6'!D$8*100 -> 0.2616462624 | E69: =+'C6'!E68/'C6'!E$8*100 -> 0
A70: GUANACASTE INDEPENDIENTE | B70: =+'C6'!B69/'C6'!B$8*100 -> 0.2450889737 | C70: =+'C6'!C69/'C6'!C$8*100 -> 1.144259288 | D70: =+'C6'!D69/'C6'!D$8*100 -> 0 | E70: =+'C6'!E69/'C6'!E$8*100 -> 0
A71: HUMANISTA DE HEREDIA | B71: =+'C6'!B70/'C6'!B$8*100 -> 0.01576823421 | C71: =+'C6'!C70/'C6'!C$8*100 -> 0 | D71: =+'C6'!D70/'C6'!D$8*100 -> 0 | E71: =+'C6'!E70/'C6'!E$8*100 -> 0
A72: HUMANISTA DE MONTES DE OCA | B72: =+'C6'!B71/'C6'!B$8*100 -> 0.05236611114 | C72: =+'C6'!C71/'C6'!C$8*100 -> 0 | D72: =+'C6'!D71/'C6'!D$8*100 -> 0 | E72: =+'C6'!E71/'C6'!E$8*100 -> 0
A73: INDEPENDIENTE BELEMITA | B73: =+'C6'!B72/'C6'!B$8*100 -> 0.1062895788 | C73: =+'C6'!C72/'C6'!C$8*100 -> 0.1191351548 | D73: =+'C6'!D72/'C6'!D$8*100 -> 0.09458633815 | E73: =+'C6'!E72/'C6'!E$8*100 -> 0
A74: INDEPENDIENTE ESCAZUCEÑO | B74: =+'C6'!B73/'C6'!B$8*100 -> 0 | C74: =+'C6'!C73/'C6'!C$8*100 -> 0 | D74: =+'C6'!D73/'C6'!D$8*100 -> 0 | E74: =+'C6'!E73/'C6'!E$8*100 -> 0.08025074711
A75: INDEPENDIENTE OBRERO | B75: =+'C6'!B74/'C6'!B$8*100 -> 0.9546595132 | C75: =+'C6'!C74/'C6'!C$8*100 -> 0 | D75: =+'C6'!D74/'C6'!D$8*100 -> 0 | E75: =+'C6'!E74/'C6'!E$8*100 -> 0
A76: INTEGRACIÓN BARBAREÑA | B76: =+'C6'!B75/'C6'!B$8*100 -> 0 | C76: =+'C6'!C75/'C6'!C$8*100 -> 0.3103132048 | D76: =+'C6'!D75/'C6'!D$8*100 -> 0.1115863151 | E76: =+'C6'!E75/'C6'!E$8*100 -> 0
A77: INTEGRACIÓN NACIONAL | B77: =+'C6'!B76/'C6'!B$8*100 -> 0.6071743519 | C77: =+'C6'!C76/'C6'!C$8*100 -> 1.407149762 | D77: =+'C6'!D76/'C6'!D$8*100 -> 1.205847992 | E77: =+'C6'!E76/'C6'!E$8*100 -> 1.218899416
A78: INTEGRACIÓN PROVINCIAL TRES | B78: =+'C6'!B77/'C6'!B$8*100 -> 0 | C78: =+'C6'!C77/'C6'!C$8*100 -> 0.006113731938 | D78: =+'C6'!D77/'C6'!D$8*100 -> 0 | E78: =+'C6'!E77/'C6'!E$8*100 -> 0
A79: JUSTICIA GENERALEÑA | B79: =+'C6'!B78/'C6'!B$8*100 -> 0 | C79: =+'C6'!C78/'C6'!C$8*100 -> 0 | D79: =+'C6'!D78/'C6'!D$8*100 -> 0 | E79: =+'C6'!E78/'C6'!E$8*100 -> 0.1940608975
A80: LIBERACIÓN NACIONAL | B80: =+'C6'!B79/'C6'!B$8*100 -> 32.78430029 | C80: =+'C6'!C79/'C6'!C$8*100 -> 45.86769554 | D80: =+'C6'!D79/'C6'!D$8*100 -> 43.78618886 | E80: =+'C6'!E79/'C6'!E$8*100 -> 31.97208004
A81: LIGA RAMONENSE | B81: =+'C6'!B80/'C6'!B$8*100 -> 0 | C81: =+'C6'!C80/'C6'!C$8*100 -> 0 | D81: =+'C6'!D80/'C6'!D$8*100 -> 0 | E81: =+'C6'!E80/'C6'!E$8*100 -> 0.1527500016
A82: LIMÓN INDEPENDIENTE | B82: =+'C6'!B81/'C6'!B$8*100 -> 0 | C82: =+'C6'!C81/'C6'!C$8*100 -> 0 | D82: =+'C6'!D81/'C6'!D$8*100 -> 0 | E82: =+'C6'!E81/'C6'!E$8*100 -> 0.04432029897
A83: MORAVIA PROGRESISTA | B83: =+'C6'!B82/'C6'!B$8*100 -> 0 | C83: =+'C6'!C82/'C6'!C$8*100 -> 0.08724460711 | D83: =+'C6'!D82/'C6'!D$8*100 -> 0 | E83: =+'C6'!E82/'C6'!E$8*100 -> 0
A84: MOVIMIENTO AVANCE SANTO DOMINGO | B84: =+'C6'!B83/'C6'!B$8*100 -> 0 | C84: =+'C6'!C83/'C6'!C$8*100 -> 0 | D84: =+'C6'!D83/'C6'!D$8*100 -> 0.2766011294 | E84: =+'C6'!E83/'C6'!E$8*100 -> 0.2851637343
A85: MOVIMIENTO CURRIDABAT | B85: =+'C6'!B84/'C6'!B$8*100 -> 0.1310126126 | C85: =+'C6'!C84/'C6'!C$8*100 -> 0 | D85: =+'C6'!D84/'C6'!D$8*100 -> 0 | E85: =+'C6'!E84/'C6'!E$8*100 -> 0
A86: MOVIMIENTO DE TRABAJADORES Y CAMPESINOS | B86: =+'C6'!B85/'C6'!B$8*100 -> 0 | C86: =+'C6'!C85/'C6'!C$8*100 -> 0 | D86: =+'C6'!D85/'C6'!D$8*100 -> 0.1544058061 | E86: =+'C6'!E85/'C6'!E$8*100 -> 0
A87: MOVIMIENTO LIBERTARIO | B87: =+'C6'!B86/'C6'!B$8*100 -> 4.020899724 | C87: =+'C6'!C86/'C6'!C$8*100 -> 5.630086171 | D87: =+'C6'!D86/'C6'!D$8*100 -> 9.642821536 | E87: =+'C6'!E86/'C6'!E$8*100 -> 3.403087647
A88: MOVIMIENTO OPCIÓN CANTONAL AUTÉNTICA | B88: =+'C6'!B87/'C6'!B$8*100 -> 0.1687785069 | C88: =+'C6'!C87/'C6'!C$8*100 -> 0 | D88: =+'C6'!D87/'C6'!D$8*100 -> 0 | E88: =+'C6'!E87/'C6'!E$8*100 -> 0
A89: NUEVA GENERACIÓN | B89: =+'C6'!B88/'C6'!B$8*100 -> 0 | C89: =+'C6'!C88/'C6'!C$8*100 -> 0 | D89: =+'C6'!D88/'C6'!D$8*100 -> 0 | E89: =+'C6'!E88/'C6'!E$8*100 -> 3.731568546
A90: NUEVA MAYORÍA GRIEGA | B90: =+'C6'!B89/'C6'!B$8*100 -> 0 | C90: =+'C6'!C89/'C6'!C$8*100 -> 0 | D90: =+'C6'!D89/'C6'!D$8*100 -> 0 | E90: =+'C6'!E89/'C6'!E$8*100 -> 0.4546022436
A91: NUEVO CORREDORES | B91: =+'C6'!B90/'C6'!B$8*100 -> 0.05431280673 | C91: =+'C6'!C90/'C6'!C$8*100 -> 0 | D91: =+'C6'!D90/'C6'!D$8*100 -> 0 | E91: =+'C6'!E90/'C6'!E$8*100 -> 0
A92: ORGANIZACIÓN LABORISTA DE QUEPOS | B92: =+'C6'!B91/'C6'!B$8*100 -> 0 | C92: =+'C6'!C91/'C6'!C$8*100 -> 0.2453754575 | D92: =+'C6'!D91/'C6'!D$8*100 -> 0.006646607546 | E92: =+'C6'!E91/'C6'!E$8*100 -> 0
A93: ORGANIZACIÓN SOCIAL ACTIVA | B93: =+'C6'!B92/'C6'!B$8*100 -> 0 | C93: =+'C6'!C92/'C6'!C$8*100 -> 0 | D93: =+'C6'!D92/'C6'!D$8*100 -> 0.1227066008 | E93: =+'C6'!E92/'C6'!E$8*100 -> 0
A94: PATRIA PRIMERO | B94: =+'C6'!B93/'C6'!B$8*100 -> 0 | C94: =+'C6'!C93/'C6'!C$8*100 -> 0.0490750915 | D94: =+'C6'!D93/'C6'!D$8*100 -> 0 | E94: =+'C6'!E93/'C6'!E$8*100 -> 0
A95: PARRITA INDEPENDIENTE | B95: =+'C6'!B94/'C6'!B$8*100 -> 0 | C95: =+'C6'!C94/'C6'!C$8*100 -> 0 | D95: =+'C6'!D94/'C6'!D$8*100 -> 0 | E95: =+'C6'!E94/'C6'!E$8*100 -> 0.0935650756
A96: PROGRESO COMUNAL DESAMPARADEÑO | B96: =+'C6'!B95/'C6'!B$8*100 -> 0 | C96: =+'C6'!C95/'C6'!C$8*100 -> 0 | D96: =+'C6'!D95/'C6'!D$8*100 -> 0 | E96: =+'C6'!E95/'C6'!E$8*100 -> 0.0911940308
A97: PUEBLO GARABITO | B97: =+'C6'!B96/'C6'!B$8*100 -> 0 | C97: =+'C6'!C96/'C6'!C$8*100 -> 0 | D97: =+'C6'!D96/'C6'!D$8*100 -> 0 | E97: =+'C6'!E96/'C6'!E$8*100 -> 0.0686691052
A98: PURISCALEÑOS DE CORAZON | B98: =+'C6'!B97/'C6'!B$8*100 -> 0 | C98: =+'C6'!C97/'C6'!C$8*100 -> 0 | D98: =+'C6'!D97/'C6'!D$8*100 -> 0 | E98: =+'C6'!E97/'C6'!E$8*100 -> 0.02735820924
A99: RECUPERANDO VALORES | B99: =+'C6'!B98/'C6'!B$8*100 -> 0 | C99: =+'C6'!C98/'C6'!C$8*100 -> 0 | D99: =+'C6'!D98/'C6'!D$8*100 -> 0 | E99: =+'C6'!E98/'C6'!E$8*100 -> 0.1590423897
A100: RENACER SANTACRUCEÑO | B100: =+'C6'!B99/'C6'!B$8*100 -> 0.1296499257 | C100: =+'C6'!C99/'C6'!C$8*100 -> 0 | D100: =+'C6'!D99/'C6'!D$8*100 -> 0 | E100: =+'C6'!E99/'C6'!E$8*100 -> 0
A101: RENOVACIÓN CARTAGO | B101: =+'C6'!B100/'C6'!B$8*100 -> 0 | C101: =+'C6'!C100/'C6'!C$8*100 -> 0 | D101: =+'C6'!D100/'C6'!D$8*100 -> 0 | E101: =+'C6'!E100/'C6'!E$8*100 -> 0.2684752267
A102: RENOVACIÓN COSTARICENSE | B102: =+'C6'!B101/'C6'!B$8*100 -> 3.016794143 | C102: =+'C6'!C101/'C6'!C$8*100 -> 1.633027371 | D102: =+'C6'!D101/'C6'!D$8*100 -> 2.621831038 | E102: =+'C6'!E101/'C6'!E$8*100 -> 2.637604953
A103: RENOVEMOS ALAJUELA | B103: =+'C6'!B102/'C6'!B$8*100 -> 0 | C103: =+'C6'!C102/'C6'!C$8*100 -> 0 | D103: =+'C6'!D102/'C6'!D$8*100 -> 1.086975973 | E103: =+'C6'!E102/'C6'!E$8*100 -> 0.4879792588
A104: REPUBLICANO SOCIAL CRISTIANO | B104: =+'C6'!B103/'C6'!B$8*100 -> 0 | C104: =+'C6'!C103/'C6'!C$8*100 -> 0 | D104: =+'C6'!D103/'C6'!D$8*100 -> 0 | E104: =+'C6'!E103/'C6'!E$8*100 -> 6.067868422
A105: RESCATE CANTONAL LA UNIÓN | B105: =+'C6'!B104/'C6'!B$8*100 -> 0 | C105: =+'C6'!C104/'C6'!C$8*100 -> 0 | D105: =+'C6'!D104/'C6'!D$8*100 -> 0 | E105: =+'C6'!E104/'C6'!E$8*100 -> 0.2550697042
A106: RESCATE NACIONAL | B106: =+'C6'!B105/'C6'!B$8*100 -> 0.6790074189 | C106: =+'C6'!C105/'C6'!C$8*100 -> 0.2658647213 | D106: =+'C6'!D105/'C6'!D$8*100 -> 0 | E106: =+'C6'!E105/'C6'!E$8*100 -> 0
A107: RESTAURACIÓN HEREDIANA | B107: =+'C6'!B106/'C6'!B$8*100 -> 0 | C107: =+'C6'!C106/'C6'!C$8*100 -> 0 | D107: =+'C6'!D106/'C6'!D$8*100 -> 0.07988710993 | E107: =+'C6'!E106/'C6'!E$8*100 -> 0
A108: RESTAURACIÓN NACIONAL | B108: =+'C6'!B107/'C6'!B$8*100 -> 0 | C108: =+'C6'!C107/'C6'!C$8*100 -> 0 | D108: =+'C6'!D107/'C6'!D$8*100 -> 0 | E108: =+'C6'!E107/'C6'!E$8*100 -> 1.045721951
A109: RESTAURACIÓN PARRITEÑA | B109: =+'C6'!B108/'C6'!B$8*100 -> 0 | C109: =+'C6'!C108/'C6'!C$8*100 -> 0 | D109: =+'C6'!D108/'C6'!D$8*100 -> 0 | E109: =+'C6'!E108/'C6'!E$8*100 -> 0.038483881
A110: SAN JOSÉ SOMOS TODOS | B110: =+'C6'!B109/'C6'!B$8*100 -> 0.1909708366 | C110: =+'C6'!C109/'C6'!C$8*100 -> 0 | D110: =+'C6'!D109/'C6'!D$8*100 -> 0 | E110: =+'C6'!E109/'C6'!E$8*100 -> 0
A111: SOLIDARIDAD | B111: =+'C6'!B110/'C6'!B$8*100 -> 0 | C111: =+'C6'!C110/'C6'!C$8*100 -> 0 | D111: =+'C6'!D110/'C6'!D$8*100 -> 0 | E111: =+'C6'!E110/'C6'!E$8*100 -> 0.1467311956
A112: SOLIDARIDAD RAMONENSE | B112: =+'C6'!B111/'C6'!B$8*100 -> 0 | C112: =+'C6'!C111/'C6'!C$8*100 -> 0.682589909 | D112: =+'C6'!D111/'C6'!D$8*100 -> 0 | E112: =+'C6'!E111/'C6'!E$8*100 -> 0
A113: TALAMANCA UNIDA | B113: =+'C6'!B112/'C6'!B$8*100 -> 0 | C113: =+'C6'!C112/'C6'!C$8*100 -> 0 | D113: =+'C6'!D112/'C6'!D$8*100 -> 0.02799244332 | E113: =+'C6'!E112/'C6'!E$8*100 -> 0
A114: TARRAZÚ PRIMERO | B114: =+'C6'!B113/'C6'!B$8*100 -> 0 | C114: =+'C6'!C113/'C6'!C$8*100 -> 0 | D114: =+'C6'!D113/'C6'!D$8*100 -> 0.1158043546 | E114: =+'C6'!E113/'C6'!E$8*100 -> 0
A115: TODO POR FLORES | B115: =+'C6'!B114/'C6'!B$8*100 -> 0 | C115: =+'C6'!C114/'C6'!C$8*100 -> 0 | D115: =+'C6'!D114/'C6'!D$8*100 -> 0.221383159 | E115: =+'C6'!E114/'C6'!E$8*100 -> 0.1230207476
A116: TRANSPARENCIA CARTAGINÉS | B116: =+'C6'!B115/'C6'!B$8*100 -> 0 | C116: =+'C6'!C115/'C6'!C$8*100 -> 0 | D116: =+'C6'!D115/'C6'!D$8*100 -> 0.1247517109 | E116: =+'C6'!E115/'C6'!E$8*100 -> 0
A117: ÚNICO ABANGAREÑO | B117: =+'C6'!B116/'C6'!B$8*100 -> 0 | C117: =+'C6'!C116/'C6'!C$8*100 -> 0 | D117: =+'C6'!D116/'C6'!D$8*100 -> 0.1393231197 | E117: =+'C6'!E116/'C6'!E$8*100 -> 0
A118: UNIDAD SOCIAL CRISTIANA | B118: =+'C6'!B117/'C6'!B$8*100 -> 36.7170147 | C118: =+'C6'!C117/'C6'!C$8*100 -> 17.68140847 | D118: =+'C6'!D117/'C6'!D$8*100 -> 14.49395031 | E118: =+'C6'!E117/'C6'!E$8*100 -> 18.38654049
A119: UNIÓN AGRÍCOLA CARTIGINÉS | B119: =+'C6'!B118/'C6'!B$8*100 -> 0.1035642049 | C119: =+'C6'!C118/'C6'!C$8*100 -> 0 | D119: =+'C6'!D118/'C6'!D$8*100 -> 0.4471121768 | E119: =+'C6'!E118/'C6'!E$8*100 -> 0
A120: UNIÓN ATENIENSE | B120: =+'C6'!B119/'C6'!B$8*100 -> 0 | C120: =+'C6'!C119/'C6'!C$8*100 -> 0 | D120: =+'C6'!D119/'C6'!D$8*100 -> 0.2349320129 | E120: =+'C6'!E119/'C6'!E$8*100 -> 0
A121: UNIÓN GENERAL | B121: =+'C6'!B120/'C6'!B$8*100 -> 0.01868827758 | C121: =+'C6'!C120/'C6'!C$8*100 -> 0 | D121: =+'C6'!D120/'C6'!D$8*100 -> 0 | E121: =+'C6'!E120/'C6'!E$8*100 -> 0
A122: UNIÓN GUARQUEÑO | B122: =+'C6'!B121/'C6'!B$8*100 -> 0 | C122: =+'C6'!C121/'C6'!C$8*100 -> 0 | D122: =+'C6'!D121/'C6'!D$8*100 -> 0 | E122: =+'C6'!E121/'C6'!E$8*100 -> 0.2266171665
A123: UNIÓN NACIONAL | B123: =+'C6'!B122/'C6'!B$8*100 -> 0 | C123: =+'C6'!C122/'C6'!C$8*100 -> 2.660464809 | D123: =+'C6'!D122/'C6'!D$8*100 -> 0 | E123: =+'C6'!E122/'C6'!E$8*100 -> 0
A124: UNIÓN PALMAREÑA | B124: =+'C6'!B123/'C6'!B$8*100 -> 0 | C124: =+'C6'!C123/'C6'!C$8*100 -> 0.3362552566 | D124: =+'C6'!D123/'C6'!D$8*100 -> 0.2773680457 | E124: =+'C6'!E123/'C6'!E$8*100 -> 0
A125: UNIÓN PARA EL CAMBIO | B125: =+'C6'!B124/'C6'!B$8*100 -> 0 | C125: =+'C6'!C124/'C6'!C$8*100 -> 2.496220227 | D125: =+'C6'!D124/'C6'!D$8*100 -> 0 | E125: =+'C6'!E124/'C6'!E$8*100 -> 0
A126: UNIÓN POASEÑA | B126: =+'C6'!B125/'C6'!B$8*100 -> 0 | C126: =+'C6'!C125/'C6'!C$8*100 -> 0.04378753955 | D126: =+'C6'!D125/'C6'!D$8*100 -> 0.2088568602 | E126: =+'C6'!E125/'C6'!E$8*100 -> 0
A127: VANGUARDIA POPULAR | B127: =+'C6'!B126/'C6'!B$8*100 -> 0 | C127: =+'C6'!C126/'C6'!C$8*100 -> 0.04048281959 | D127: =+'C6'!D126/'C6'!D$8*100 -> 0 | E127: =+'C6'!E126/'C6'!E$8*100 -> 0
A128: VERDE | B128: =+'C6'!B127/'C6'!B$8*100 -> 0 | C128: =+'C6'!C127/'C6'!C$8*100 -> 0 | D128: =+'C6'!D127/'C6'!D$8*100 -> 0 | E128: =+'C6'!E127/'C6'!E$8*100 -> 0.4364546314
A129: VERDE ECOLOGISTA | B129: =+'C6'!B128/'C6'!B$8*100 -> 0 | C129: =+'C6'!C128/'C6'!C$8*100 -> 0.5394955345 | D129: =+'C6'!D128/'C6'!D$8*100 -> 0.07822545804 | E129: =+'C6'!E128/'C6'!E$8*100 -> 0
A130: VIVA PUNTARENAS | B130: =+'C6'!B129/'C6'!B$8*100 -> 0 | C130: =+'C6'!C129/'C6'!C$8*100 -> 0 | D130: =+'C6'!D129/'C6'!D$8*100 -> 0 | E130: =+'C6'!E129/'C6'!E$8*100 -> 0.5593841849
A131: YUNTA PROGRESISTA ESCAZUCEÑA | B131: =+'C6'!B130/'C6'!B$8*100 -> 0.5082822164 | C131: =+'C6'!C130/'C6'!C$8*100 -> 0.5808045341 | D131: =+'C6'!D130/'C6'!D$8*100 -> 0.6323224525 | E131: =+'C6'!E130/'C6'!E$8*100 -> 0.9734050848
A134: Fuente: Cómputo de Votos Elecciones Municipales 2002, 2006, 2010 y 2016.

Sheet C8
A2: CUADRO 8 COSTA RICA: PUESTOS ELECTOS, SEGÚN TIPO DE CANDIDATURA Y CARGO
A3: ELECCIONES MUNICIPALES 2002 - 2016
A5: TIPO DE CANDIDATURA Y CARGO | B5: 2002 | C5: 2006 | D5: 2010 | E5: 2016
A7: REGIDORES/AS 1/ | B7: =+B8+B9 -> 1002 | C7: =+C8+C9 -> 1006 | D7: =+D8+D9 -> 990 | E7: =+E8+E9 -> 1010
A8: PROPIETARIO/A | B8: 501 | C8: 503 | D8: 495 | E8: 505
A9: SUPLENTE | B9: 501 | C9: 503 | D9: 495 | E9: 505
A10: SÍNDICOS/AS | B10: =+B11+B12 -> 899 | C10: =+C11+C12 -> 924 | D10: =+D11+D12 -> 927 | E10: =+E11+E12 -> 951
A11: PROPIETARIO/A | B11: 453 | C11: 469 | D11: 470 | E11: 480
A12: SUPLENTE | B12: 446 | C12: 455 | D12: 457 | E12: 471
A13: ALCALDÍAS | B13: =+B14+B15 -> 243 | C13: =+C14+C15 -> 242 | D13: =+D14+D16+D17 -> 243 | E13: =+E14+E16+E17 -> 243
A14: PROPIETARIO/A | B14: 81 | C14: 81 | D14: 81 | E14: 81
A15: SUPLENTE | B15: =81*2 -> 162 | C15: 161 | D15: NA | E15: NA
A16: VICEALCALDÍA PRIMERA | B16: NA | C16: NA | D16: 81 | E16: 81
A17: VICEALCALDÍA SEGUNDA | B17: NA | C17: NA | D17: 81 | E17: 81
A18: CONCEJAL DE DISTRITO | B18: =+B19+B20 -> 3469 | C18: =+C19+C20 -> 3628 | D18: =+D19+D20 -> 3662 | E18: =+E19+E20 -> 3736
A19: PROPIETARIO/A | B19: 1755 | C19: 1844 | D19: 1856 | E19: 1888
A20: SUPLENTE | B20: 1714 | C20: 1784 | D20: 1806 | E20: 1848
A21: CONCEJAL MUNICIPAL DE DISTRITO | B21: =+B22+B23 -> 61 | C21: =+C22+C23 -> 64 | D21: =+D22+D23 -> 64 | E21: =+E22+E23 -> 64
A22: PROPIETARIO/A | B22: 32 | C22: 32 | D22: 32 | E22: 32
A23: SUPLENTE | B23: 29 | C23: 32 | D23: 32 | E23: 32
A24: INTENDENCIA | B24: 8 | C24: 8 | D24: 8 | E24: 8
A25: VICEINTENDECIA | B25: NA | C25: NA | D25: 8 | E25: 8
A28: 1/ Para los años 2002, 2006 y 2010 se eligieron en la elecciones generales.
A29: NA: No Aplica.
A30: Fuente: Cómputo de votos y declaratorias de elección 2002, 2006, 2010 y 2016.

Sheet C9
A2: CUADRO 9 COSTA RICA: CANDIDATOS/AS ELECTOS/AS
A3: POR SEXO, SEGÚN TIPO DE CANDIDATURA Y CARGO
A4: ELECCIONES MUNICIPALES 2002 - 2016
A6: TIPO DE CANDIDATURA Y CARGO | B6: 2002 | D6: 2006 | F6: 2010 | H6: 2016
B7: HOMBRE | C7: MUJER | D7: HOMBRE | E7: MUJER | F7: HOMBRE | G7: MUJER | H7: HOMBRE | I7: MUJER
A9: REGIDORES/AS 1/ | B9: =+B10+B11 -> 500 | C9: 502 | D9: 569 | E9: 437 | F9: 566 | G9: 424 | H9: 549 | I9: 461
A10: PROPIETARIO/A | B10: 269 | C10: 232 | D10: 298 | E10: 205 | F10: 304 | G10: 191 | H10: 301 | I10: 204
A11: SUPLENTE | B11: 231 | C11: 270 | D11: 271 | E11: 232 | F11: 262 | G11: 233 | H11: 248 | I11: 257
A12: SÍNDICO/A | B12: ='C8'!B10-'C9'!C12 -> 434 | C12: =+C13+C14 -> 465 | D12: ='C8'!C10-'C9'!E12 -> 445 | E12: =+E13+E14 -> 479 | F12: ='C8'!D10-'C9'!G12 -> 466 | G12: =+G13+G14 -> 461 | H12: =+H13+H14 -> 476 | I12: =+I13+I14 -> 475
A13: PROPIETARIO/A | B13: ='C8'!B11-'C9'!C13 -> 321 | C13: 132 | D13: ='C8'!C11-'C9'!E13 -> 337 | E13: 132 | F13: ='C8'!D11-'C9'!G13 -> 342 | G13: 128 | H13: 306 | I13: 174
A14: SUPLENTE | B14: ='C8'!B12-'C9'!C14 -> 113 | C14: 333 | D14: ='C8'!C12-'C9'!E14 -> 108 | E14: 347 | F14: ='C8'!D12-'C9'!G14 -> 124 | G14: 333 | H14: 170 | I14: 301
A15: ALCALDES/AS Y VICEALCALDES/AS | B15: ='C8'!B13-'C9'!C15 -> 151 | C15: =+C16+C17 -> 92 | D15: ='C8'!C13-'C9'!E15 -> 149 | E15: =+E16+E17 -> 93 | F15: ='C8'!D13-'C9'!G15 -> 148 | G15: =+G16+G18+G19 -> 95 | H15: =+H16+H18+H19 -> 143 | I15: =+I16+I18+I19 -> 99
A16: PROPIETARIO/A | B16: ='C8'!B14-'C9'!C16 -> 74 | C16: 7 | D16: ='C8'!C14-'C9'!E16 -> 72 | E16: 9 | F16: ='C8'!D14-'C9'!G16 -> 71 | G16: 10 | H16: 69 | I16: 12
A17: SUPLENTE | B17: ='C8'!B15-'C9'!C17 -> 77 | C17: 85 | D17: ='C8'!C15-'C9'!E17 -> 77 | E17: 84 | F17: NA | G17: NA | H17: NA | I17: NA
A18: VICEALCALDE/SA PRIMERO/A | B18: NA | C18: NA | D18: NA | E18: NA | F18: ='C8'!D16-'C9'!G18 -> 10 | G18: 71 | H18: 12 | I18: 69
A19: VICEALCALDE/SA SEGUNDO/A | B19: NA | C19: NA | D19: NA | E19: NA | F19: ='C8'!D17-'C9'!G19 -> 67 | G19: 14 | H19: 62 | I19: 18
A20: CONCEJAL/A DE DISTRITO | B20: ='C8'!B18-'C9'!C20 -> 1827 | C20: =+C21+C22 -> 1642 | D20: ='C8'!C18-'C9'!E20 -> 1851 | E20: =+E21+E22 -> 1777 | F20: ='C8'!D18-'C9'!G20 -> 1880 | G20: =+G21+G22 -> 1782 | H20: =+H21+H22 -> 1918 | I20: =+I21+I22 -> 1818
A21: PROPIETARIO/A | B21: ='C8'!B19-'C9'!C21 -> 916 | C21: 839 | D21: ='C8'!C19-'C9'!E21 -> 983 | E21: 861 | F21: ='C8'!D19-'C9'!G21 -> 962 | G21: 894 | H21: 976 | I21: 912
A22: SUPLENTE | B22: ='C8'!B20-'C9'!C22 -> 911 | C22: 803 | D22: ='C8'!C20-'C9'!E22 -> 868 | E22: 916 | F22: ='C8'!D20-'C9'!G22 -> 918 | G22: 888 | H22: 942 | I22: 906
A23: CONCEJAL/A MUNICIPAL DE DISTRITO | B23: ='C8'!B21-'C9'!C23 -> 30 | C23: =+C24+C25 -> 31 | D23: ='C8'!C21-'C9'!E23 -> 35 | E23: =+E24+E25 -> 29 | F23: ='C8'!D21-'C9'!G23 -> 37 | G23: =+G24+G25 -> 27 | H23: =+H24+H25 -> 34 | I23: =+I24+I25 -> 30
A24: PROPIETARIO/A | B24: ='C8'!B22-'C9'!C24 -> 19 | C24: 13 | D24: ='C8'!C22-'C9'!E24 -> 19 | E24: 13 | F24: ='C8'!D22-'C9'!G24 -> 18 | G24: 14 | H24: 18 | I24: 14
A25: SUPLENTE | B25: ='C8'!B23-'C9'!C25 -> 11 | C25: 18 | D25: ='C8'!C23-'C9'!E25 -> 16 | E25: 16 | F25: ='C8'!D23-'C9'!G25 -> 19 | G25: 13 | H25: 16 | I25: 16
A26: INTENDENTE/A | B26: ='C8'!B24-'C9'!C26 -> 6 | C26: 2 | D26: ='C8'!C24-'C9'!E26 -> 6 | E26: 2 | F26: ='C8'!D24-'C9'!G26 -> 6 | G26: 2 | H26: 5 | I26: 3
A27: VICEINTENDENTE/A | B27: NA | C27: NA | D27: NA | E27: NA | F27: ='C8'!D25-'C9'!G27 -> 2 | G27: 6 | H27: 3 | I27: 5
A30: 1/ Para los años 2002, 2006 y 2010 se eligieron en la elecciones generales.
A31: NA: No Aplica
A32: Fuente: Cómputo de votos y declaratorias de elección 2002, 2006, 2010 y 2016.

Sheet C10
A2: CUADRO 10 COSTA RICA: CANDIDATOS/AS ELECTOS/AS, POR SEXO, SEGÚN TIPO
A3: DE CANDIDATURA Y CARGO, ELECCIONES MUNICIPALES 2002 - 2016
A4: (CIFRAS RELATIVAS)
A6: TIPO DE CANDIDATURA Y CARGO | B6: 2002 | D6: 2006 | F6: 2010 | H6: 2016
B7: HOMBRE | C7: MUJER | D7: HOMBRE | E7: MUJER | F7: HOMBRE | G7: MUJER | H7: HOMBRE | I7: MUJER
A9: REGIDORES/AS 1/ | B9: =+'C9'!B9/'C8'!B7*100 -> 49.9001996 | C9: ='C9'!C9/'C8'!B7*100 -> 50.0998004 | D9: ='C9'!D9/'C8'!C7*100 -> 56.56063618 | E9: ='C9'!E9/'C8'!C7*100 -> 43.43936382 | F9: =100-G9 -> 57.17171717 | G9: ='C9'!G9/'C8'!D7*100 -> 42.82828283 | H9: =100-I9 -> 54.35643564 | I9: ='C9'!I9/'C8'!E7*100 -> 45.64356436
A10: PROPIETARIO/A | B10: =+'C9'!B10/'C8'!B8*100 -> 53.69261477 | C10: ='C9'!C10/'C8'!B8*100 -> 46.30738523 | D10: ='C9'!D10/'C8'!C8*100 -> 59.2445328 | E10: ='C9'!E10/'C8'!C8*100 -> 40.7554672 | F10: 61.41414141 | G10: ='C9'!G10/'C8'!D8*100 -> 38.58585859 | H10: 59.6039604 | I10: ='C9'!I10/'C8'!E8*100 -> 40.3960396
A11: SUPLENTE | B11: =+'C9'!B11/'C8'!B9*100 -> 46.10778443 | C11: ='C9'!C11/'C8'!B9*100 -> 53.89221557 | D11: ='C9'!D11/'C8'!C9*100 -> 53.87673956 | E11: ='C9'!E11/'C8'!C9*100 -> 46.12326044 | F11: 52.92929293 | G11: ='C9'!G11/'C8'!D9*100 -> 47.07070707 | H11: 49.10891089 | I11: ='C9'!I11/'C8'!E9*100 -> 50.89108911
A12: SÍNDICOS/AS | B12: =100-C12 -> 48.27586207 | C12: ='C9'!C12/'C8'!B10*100 -> 51.72413793 | D12: ='C9'!D12/'C8'!C10*100 -> 48.16017316 | E12: ='C9'!E12/'C8'!C10*100 -> 51.83982684 | F12: 50.26968716 | G12: ='C9'!G12/'C8'!D10*100 -> 49.73031284 | H12: 50.05257624 | I12: ='C9'!I12/'C8'!E10*100 -> 49.94742376
A13: PROPIETARIO/A | B13: 70.86092715 | C13: ='C9'!C13/'C8'!B11*100 -> 29.13907285 | D13: =100-E13 -> 71.85501066 | E13: ='C9'!E13/'C8'!C11*100 -> 28.14498934 | F13: 72.76595745 | G13: ='C9'!G13/'C8'!D11*100 -> 27.23404255 | H13: 63.75 | I13: ='C9'!I13/'C8'!E11*100 -> 36.25
A14: SUPLENTE | B14: 25.33632287 | C14: ='C9'!C14/'C8'!B12*100 -> 74.66367713 | D14: =100-E14 -> 23.73626374 | E14: ='C9'!E14/'C8'!C12*100 -> 76.26373626 | F14: 27.13347921 | G14: ='C9'!G14/'C8'!D12*100 -> 72.86652079 | H14: 36.09341826 | I14: ='C9'!I14/'C8'!E12*100 -> 63.90658174
A15: ALCALDES/AS Y VICEALCALDES/AS | B15: 62.1399177 | C15: ='C9'!C15/'C8'!B13*100 -> 37.8600823 | D15: =100-E15 -> 61.57024793 | E15: ='C9'!E15/'C8'!C13*100 -> 38.42975207 | F15: 60.90534979 | G15: ='C9'!G15/'C8'!D13*100 -> 39.09465021 | H15: 59.25925926 | I15: ='C9'!I15/'C8'!E13*100 -> 40.74074074
A16: PROPIETARIO/A | B16: 91.35802469 | C16: ='C9'!C16/'C8'!B14*100 -> 8.641975309 | D16: =100-E16 -> 88.88888889 | E16: ='C9'!E16/'C8'!C14*100 -> 11.11111111 | F16: 87.65432099 | G16: ='C9'!G16/'C8'!D14*100 -> 12.34567901 | H16: 85.18518519 | I16: ='C9'!I16/'C8'!E14*100 -> 14.81481481
A17: SUPLENTE | B17: 47.5308642 | C17: ='C9'!C17/'C8'!B15*100 -> 52.4691358 | D17: =100-E17 -> 47.82608696 | E17: ='C9'!E17/'C8'!C15*100 -> 52.17391304 | F17: NA | G17: NA | H17: NA | I17: NA
A18: VICEALCALDE(SA) PRIMERO/A | B18: NA | C18: NA | D18: NA | E18: NA | F18: =100-G18 -> 12.34567901 | G18: ='C9'!G18/'C8'!D16*100 -> 87.65432099 | H18: =100-I18 -> 14.81481481 | I18: ='C9'!I18/'C8'!E16*100 -> 85.18518519
A19: VICEALCALDE(SA) SEGUNDO/A | B19: NA | C19: NA | D19: NA | E19: NA | F19: 82.71604938 | G19: ='C9'!G19/'C8'!D17*100 -> 17.28395062 | H19: 77.77777778 | I19: ='C9'!I19/'C8'!E17*100 -> 22.22222222
A20: CONCEJALA DE DISTRITO | B20: =100-C20 -> 52.66647449 | C20: ='C9'!C20/'C8'!B18*100 -> 47.33352551 | D20: =100-E20 -> 51.01984564 | E20: ='C9'!E20/'C8'!C18*100 -> 48.98015436 | F20: 51.33806663 | G20: ='C9'!G20/'C8'!D18*100 -> 48.66193337 | H20: 51.33832976 | I20: ='C9'!I20/'C8'!E18*100 -> 48.66167024
A21: PROPIETARIO/A | B21: 52.19373219 | C21: ='C9'!C21/'C8'!B19*100 -> 47.80626781 | D21: 53.30802603 | E21: ='C9'!E21/'C8'!C19*100 -> 46.69197397 | F21: 51.83189655 | G21: ='C9'!G21/'C8'!D19*100 -> 48.16810345 | H21: 51.69491525 | I21: ='C9'!I21/'C8'!E19*100 -> 48.30508475
A22: SUPLENTE | B22: 53.15052509 | C22: ='C9'!C22/'C8'!B20*100 -> 46.84947491 | D22: 48.65470852 | E22: ='C9'!E22/'C8'!C20*100 -> 51.34529148 | F22: 50.83056478 | G22: ='C9'!G22/'C8'!D20*100 -> 49.16943522 | H22: 50.97402597 | I22: ='C9'!I22/'C8'!E20*100 -> 49.02597403
A23: CONCEJALA MUNICIPAL DE DISTRITO | B23: 49.18032787 | C23: ='C9'!C23/'C8'!B21*100 -> 50.81967213 | D23: 54.6875 | E23: ='C9'!E23/'C8'!C21*100 -> 45.3125 | F23: 57.8125 | G23: ='C9'!G23/'C8'!D21*100 -> 42.1875 | H23: 53.125 | I23: ='C9'!I23/'C8'!E21*100 -> 46.875
A24: PROPIETARIO/A | B24: 59.375 | C24: ='C9'!C24/'C8'!B22*100 -> 40.625 | D24: 59.375 | E24: ='C9'!E24/'C8'!C22*100 -> 40.625 | F24: 56.25 | G24: ='C9'!G24/'C8'!D22*100 -> 43.75 | H24: 56.25 | I24: ='C9'!I24/'C8'!E22*100 -> 43.75
A25: SUPLENTE | B25: 37.93103448 | C25: ='C9'!C25/'C8'!B23*100 -> 62.06896552 | D25: 50 | E25: ='C9'!E25/'C8'!C23*100 -> 50 | F25: 59.375 | G25: ='C9'!G25/'C8'!D23*100 -> 40.625 | H25: 50 | I25: ='C9'!I25/'C8'!E23*100 -> 50
A26: INTENDENTE/A | B26: 75 | C26: ='C9'!C26/'C8'!B24*100 -> 25 | D26: 75 | E26: ='C9'!E26/'C8'!C24*100 -> 25 | F26: 75 | G26: ='C9'!G26/'C8'!D24*100 -> 25 | H26: 62.5 | I26: ='C9'!I26/'C8'!E24*100 -> 37.5
A27: VICEINTENDENTE/A | B27: NA | C27: NA | D27: NA | E27: NA | F27: 25 | G27: ='C9'!G27/'C8'!D25*100 -> 75 | H27: 37.5 | I27: ='C9'!I27/'C8'!E25*100 -> 62.5
A30: 1/ Para los años 2002, 2006 y 2010 se eligieron en la elecciones generales.
A31: NA: No Aplica.
A32: Fuente: Cómputo de Votos Elecciones Municipales 2002, 2006, 2010 y 2016.

Sheet C11
A2: CUADRO 11 COSTA RICA: ALCALDES/AS ELECTOS/AS, POR SEXO, SEGÚN PARTIDO POLÍTICO
A3: ELECCIONES MUNICIPALES 2002 - 2016
A4: (CIFRAS ABSOLUTAS Y RELATIVAS)
A6: PARTIDO POLÍTICO | B6: 2002 | E6: 2006 | H6: 2010 | K6: 2016
B7: TOTAL | C7: MUJER | D7: HOMBRE | E7: TOTAL | F7: MUJER | G7: HOMBRE | H7: TOTAL | I7: MUJER | J7: HOMBRE | K7: TOTAL | L7: MUJER | M7: HOMBRE
A9: ABSOLUTOS | B9: =SUM(B10:B30) -> 81 | C9: 7 | D9: 74 | E9: 81 | F9: 9 | G9: 72 | H9: 81 | I9: 10 | J9: 71 | K9: 81 | L9: 12 | M9: 69
A10: ACCESIBILIDAD SIN EXCLUSIÓN | B10: =+C10+D10 -> 0 | C10: 0 | D10: 0 | E10: =+F10+G10 -> 0 | F10: 0 | G10: 0 | H10: =+I10+J10 -> 2 | I10: 1 | J10: 1 | K10: =+L10+M10 -> 1 | L10: 0 | M10: 1
A11: ACCIÓN CANTONAL SIQUIRRES INDEPENDIENTE | B11: 0 | C11: 0 | D11: 0 | E11: =+F11+G11 -> 1 | F11: 0 | G11: 1 | H11: 0 | I11: 0 | J11: 0 | K11: 0 | L11: 0 | M11: 0
A12: ACCIÓN CIUDADANA | B12: =+C12+D12 -> 1 | C12: 1 | D12: 0 | E12: =+F12+G12 -> 5 | F12: 1 | G12: 4 | H12: =+I12+J12 -> 6 | I12: 0 | J12: 6 | K12: 6 | L12: 0 | M12: 6
A13: ALIANZA POR SAN JOSÉ | B13: 0 | C13: 0 | D13: 0 | E13: 0 | F13: 0 | G13: 0 | H13: 0 | I13: 0 | J13: 0 | K13: 1 | L13: 0 | M13: 1
A14: AUTÉNTICO LIMONENSE | B14: 0 | C14: 0 | D14: 0 | E14: 0 | F14: 0 | G14: 0 | H14: 0 | I14: 0 | J14: 0 | K14: 1 | L14: 0 | M14: 1
A15: AUTÉNTICO PARAISEÑO | B15: =+C15+D15 -> 1 | C15: 0 | D15: 1 | E15: 0 | F15: 0 | G15: 0 | H15: 0 | I15: 0 | J15: 0 | K15: 0 | L15: 0 | M15: 0
A16: COALICIÓN GENTE MONTES DE OCA | B16: 0 | C16: 0 | D16: 0 | E16: 0 | F16: 0 | G16: 0 | H16: 0 | I16: 0 | J16: 0 | K16: 1 | L16: 0 | M16: 1
A17: CURRIDABAT SIGLO XXI | B17: =+C17+D17 -> 1 | C17: 1 | D17: 0 | E17: =+F17+G17 -> 1 | F17: 0 | G17: 1 | H17: =+I17+J17 -> 1 | I17: 0 | J17: 1 | K17: 1 | L17: 0 | M17: 1
A18: FRENTE AMPLIO | B18: 0 | C18: 0 | D18: 0 | E18: 0 | F18: 0 | G18: 0 | H18: 0 | I18: 0 | J18: 0 | K18: 1 | L18: 0 | M18: 1
A19: GUANACASTE INDEPENDIENTE | B19: =+C19+D19 -> 1 | C19: 0 | D19: 1 | E19: 0 | F19: 0 | G19: 0 | H19: 0 | I19: 0 | J19: 0 | K19: 0 | L19: 0 | M19: 0
A20: INDEPENDIENTE OBRERO | B20: =+C20+D20 -> 1 | C20: 0 | D20: 1 | E20: 0 | F20: 0 | G20: 0 | H20: 0 | I20: 0 | J20: 0 | K20: 0 | L20: 0 | M20: 0
A21: LIBERACIÓN NACIONAL | B21: =+C21+D21 -> 27 | C21: 2 | D21: 25 | E21: =+F21+G21 -> 59 | F21: 6 | G21: 53 | H21: =+I21+J21 -> 59 | I21: 8 | J21: 51 | K21: 50 | L21: 8 | M21: 42
A22: MOVIMIENTO LIBERTARIO | B22: =+C22+D22 -> 0 | C22: 0 | D22: 0 | E22: =+F22+G22 -> 1 | F22: 0 | G22: 1 | H22: =+I22+J22 -> 2 | I22: 0 | J22: 2 | K22: 0 | L22: 0 | M22: 0
A23: NUEVA GENERACIÓN | B23: 0 | C23: 0 | D23: 0 | E23: 0 | F23: 0 | G23: 0 | H23: 0 | I23: 0 | J23: 0 | K23: 3 | L23: 0 | M23: 3
A24: ORGANIZACIÓN LABORISTA DE QUEPOS | B24: 0 | C24: 0 | D24: 0 | E24: =+F24+G24 -> 1 | F24: 0 | G24: 1 | H24: 0 | I24: 0 | J24: 0 | K24: 0 | L24: 0 | M24: 0
A25: RENOVACIÓN COSTARRICENSE | B25: =+C25+D25 -> 1 | C25: 0 | D25: 1 | E25: =+F25+G25 -> 0 | F25: 0 | G25: 0 | H25: =+I25+J25 -> 1 | I25: 0 | J25: 1 | K25: 0 | L25: 0 | M25: 0
A26: REPUBLICANO SOCIAL CRISTIANO | B26: 0 | C26: 0 | D26: 0 | E26: 0 | F26: 0 | G26: 0 | H26: 0 | I26: 0 | J26: 0 | K26: 1 | L26: 0 | M26: 1
A27: UNIDAD SOCIAL CRISTIANA | B27: =+C27+D27 -> 48 | C27: 3 | D27: 45 | E27: =+F27+G27 -> 11 | F27: 2 | G27: 9 | H27: =+I27+J27 -> 9 | I27: 1 | J27: 8 | K27: 14 | L27: 4 | M27: 10
A28: UNIÓN NACIONAL | B28: 0 | C28: 0 | D28: 0 | E28: =+F28+G28 -> 1 | F28: 0 | G28: 1 | H28: 0 | I28: 0 | J28: 0 | K28: 0 | L28: 0 | M28: 0
A29: UNIÓN PARA EL CAMBIO | B29: 0 | C29: 0 | D29: 0 | E29: =+F29+G29 -> 1 | F29: 0 | G29: 1 | H29: 0 | I29: 0 | J29: 0 | K29: 0 | L29: 0 | M29: 0
A30: YUNTA PROGRESISTA ESCAZUCEÑA | B30: =+C30+D30 -> 0 | C30: 0 | D30: 0 | E30: =+F30+G30 -> 0 | F30: 0 | G30: 0 | H30: =+I30+J30 -> 1 | I30: 0 | J30: 1 | K30: 1 | L30: 0 | M30: 1
A32: RELATIVOS | B32: =SUM(C32:D32) -> 100 | C32: =C9/B9*100 -> 8.641975309 | D32: =D9/B9*100 -> 91.35802469 | E32: =SUM(F32:G32) -> 100 | F32: =F9/E9*100 -> 11.11111111 | G32: =G9/E9*100 -> 88.88888889 | H32: =SUM(I32:J32) -> 100 | I32: =I9/H9*100 -> 12.34567901 | J32: =J9/H9*100 -> 87.65432099 | K32: =SUM(L32:M32) -> 100 | L32: =L9/K9*100 -> 14.81481481 | M32: =M9/K9*100 -> 85.18518519
A33: ACCESIBILIDAD SIN EXCLUSIÓN | B33: 0 | C33: 0 | D33: 0 | E33: 0 | F33: 0 | G33: 0 | H33: 100 | I33: =I10/H10*100 -> 50 | J33: =J10/H10*100 -> 50 | K33: 100 | L33: =L10/K10*100 -> 0 | M33: =M10/K10*100 -> 100
A34: ACCIÓN CANTONAL SIQUIRRES INDEPENDIENTE | B34: 0 | C34: 0 | D34: 0 | E34: 100 | F34: =F11/E11*100 -> 0 | G34: =G11/E11*100 -> 100 | H34: 0 | I34: 0 | J34: 0 | K34: 0 | L34: 0 | M34: 0
A35: ACCIÓN CIUDADANA | B35: 100 | C35: =C12/B12*100 -> 100 | D35: =D12/B12*100 -> 0 | E35: 100 | F35: =F12/E12*100 -> 20 | G35: =G12/E12*100 -> 80 | H35: 100 | I35: =I12/H12*100 -> 0 | J35: =J12/H12*100 -> 100 | K35: 100 | L35: =L12/K12*100 -> 0 | M35: =M12/K12*100 -> 100
A36: ALIANZA POR SAN JOSÉ | B36: 0 | C36: 0 | D36: 0 | E36: 0 | F36: 0 | G36: 0 | H36: 0 | I36: 0 | J36: 0 | K36: 100 | L36: =L13/K13*100 -> 0 | M36: =M13/K13*100 -> 100
A37: AUTÉNTICO LIMONENSE | B37: 0 | C37: 0 | D37: 0 | E37: 0 | F37: 0 | G37: 0 | H37: 0 | I37: 0 | J37: 0 | K37: 100 | L37: =L14/K14*100 -> 0 | M37: =M14/K14*100 -> 100
A38: AUTÉNTICO PARAISEÑO | B38: 100 | C38: =C15/B15*100 -> 0 | D38: =D15/B15*100 -> 100 | E38: 0 | F38: 0 | G38: 0 | H38: 0 | I38: 0 | J38: 0 | K38: 0 | L38: 0 | M38: 0
A39: COALICIÓN GENTE MONTES DE OCA | B39: 0 | C39: 0 | D39: 0 | E39: 0 | F39: 0 | G39: 0 | H39: 0 | I39: 0 | J39: 0 | K39: 100 | L39: =L16/K16*100 -> 0 | M39: =M16/K16*100 -> 100
A40: CURRIDABAT SIGLO XXI | B40: 100 | C40: =C17/B17*100 -> 100 | D40: =D17/B17*100 -> 0 | E40: 100 | F40: =F17/E17*100 -> 0 | G40: =G17/E17*100 -> 100 | H40: 100 | I40: =I17/H17*100 -> 0 | J40: =J17/H17*100 -> 100 | K40: 100 | L40: =L17/K17*100 -> 0 | M40: =M17/K17*100 -> 100
A41: FRENTE AMPLIO | B41: 0 | C41: 0 | D41: 0 | E41: 0 | F41: 0 | G41: 0 | H41: 0 | I41: 0 | J41: 0 | K41: 100 | L41: =L18/K18*100 -> 0 | M41: =M18/K18*100 -> 100
A42: GUANACASTE INDEPENDIENTE | B42: 100 | C42: =C19/B19*100 -> 0 | D42: =D19/B19*100 -> 100 | E42: 0 | F42: 0 | G42: 0 | H42: 0 | I42: 0 | J42: 0 | K42: 0 | L42: 0 | M42: 0
A43: INDEPENDIENTE OBRERO | B43: 100 | C43: =C20/B20*100 -> 0 | D43: =D20/B20*100 -> 100 | E43: 0 | F43: 0 | G43: 0 | H43: 0 | I43: 0 | J43: 0 | K43: 0 | L43: 0 | M43: 0
A44: LIBERACIÓN NACIONAL | B44: 100 | C44: =C21/B21*100 -> 7.407407407 | D44: =D21/B21*100 -> 92.59259259 | E44: 100 | F44: =F21/E21*100 -> 10.16949153 | G44: =G21/E21*100 -> 89.83050847 | H44: 100 | I44: =I21/H21*100 -> 13.55932203 | J44: =J21/H21*100 -> 86.44067797 | K44: 100 | L44: =L21/K21*100 -> 16 | M44: =M21/K21*100 -> 84
A45: MOVIMIENTO LIBERTARIO | B45: 0 | C45: 0 | D45: 0 | E45: 100 | F45: =F22/E22*100 -> 0 | G45: =G22/E22*100 -> 100 | H45: 100 | I45: =I22/H22*100 -> 0 | J45: =J22/H22*100 -> 100 | K45: 0 | L45: 0 | M45: 0
A46: NUEVA GENERACIÓN | B46: 0 | C46: 0 | D46: 0 | E46: 0 | F46: 0 | G46: 0 | H46: 0 | I46: 0 | J46: 0 | K46: 100 | L46: =L23/K23*100 -> 0 | M46: =M23/K23*100 -> 100
A47: ORGANIZACIÓN LABORISTA DE QUEPOS | B47: 0 | C47: 0 | D47: 0 | E47: 100 | F47: =F24/E24*100 -> 0 | G47: =G24/E24*100 -> 100 | H47: 0 | I47: 0 | J47: 0 | K47: 0 | L47: 0 | M47: 0
A48: RENOVACIÓN COSTARRICENSE | B48: 100 | C48: =C25/B25*100 -> 0 | D48: =D25/B25*100 -> 100 | E48: 0 | F48: 0 | G48: 0 | H48: 100 | I48: =I25/H25*100 -> 0 | J48: =J25/H25*100 -> 100 | K48: 0 | L48: 0 | M48: 0
A49: REPUBLICANO SOCIAL CRISTIANO | B49: 0 | C49: 0 | D49: 0 | E49: 0 | F49: 0 | G49: 0 | H49: 0 | I49: 0 | J49: 0 | K49: 100 | L49: =L26/K26*100 -> 0 | M49: =M26/K26*100 -> 100
A50: UNIDAD SOCIAL CRISTIANA | B50: 100 | C50: =C27/B27*100 -> 6.25 | D50: =D27/B27*100 -> 93.75 | E50: 100 | F50: =F27/E27*100 -> 18.18181818 | G50: =G27/E27*100 -> 81.81818182 | H50: 100 | I50: =I27/H27*100 -> 11.11111111 | J50: =J27/H27*100 -> 88.88888889 | K50: 100 | L50: =L27/K27*100 -> 28.57142857 | M50: =M27/K27*100 -> 71.42857143
A51: UNIÓN NACIONAL | B51: 0 | C51: 0 | D51: 0 | E51: 100 | F51: =F28/E28*100 -> 0 | G51: =G28/E28*100 -> 100 | H51: 0 | I51: 0 | J51: 0 | K51: 0 | L51: 0 | M51: 0
A52: UNIÓN PARA EL CAMBIO | B52: 0 | C52: 0 | D52: 0 | E52: 100 | F52: =F29/E29*100 -> 0 | G52: =G29/E29*100 -> 100 | H52: 0 | I52: 0 | J52: 0 | K52: 0 | L52: 0 | M52: 0
A53: YUNTA PROGRESISTA ESCAZUCEÑA | B53: 0 | C53: 0 | D53: 0 | E53: 0 | F53: 0 | G53: 0 | H53: 100 | I53: =I30/H30*100 -> 0 | J53: =J30/H30*100 -> 100 | K53: 100 | L53: =L30/K30*100 -> 0 | M53: =M30/K30*100 -> 100
A56: Fuente: Cómputo de Votos Elecciones Municipales 2002, 2006, 2010 y 2016.

Sheet G4
A2: GRÁFICO 1.2 COSTA RICA: ALCALDÍAS GANADAS POR PARTIDO POLÍTICO,
A3: ELECCIONES MUNICIPALES FEBRERO 2016
A6: TOTAL | B6: =SUM(B9:B16) -> 81
A7: PARTIDO POLÍTICO
A9: RENOVACIÓN COSTARRICENSE | B9: 1
A10: INDEPENDIENTE OBRERO | B10: 1
A11: GUANACASTE INDEPENDIENTE | B11: 1
A12: CURRIDABAT SIGLO XXI | B12: 1
A13: AUTÉNTICO PARAISEÑO | B13: 1
A14: ACCIÓN CIUDADANA | B14: 1
A15: LIBERACIÓN NACIONAL | B15: 27
A16: UNIDAD SOCIAL CRISTIANA | B16: 48
A30: Fuente: Cuadro 11.

Sheet G5
A2: GRÁFICO 1.2 COSTA RICA: ALCALDÍAS GANADAS POR PARTIDO POLÍTICO,
A3: ELECCIONES MUNICIPALES FEBRERO 2016
A7: PARTIDO POLÍTICO
A8: TOTAL | B8: =SUM(B9:B17) -> 81
A9: =+'C11'!A29 -> UNIÓN PARA EL CAMBIO | B9: 1
A10: =+'C11'!A28 -> UNIÓN NACIONAL | B10: 1
A11: =+'C11'!A24 -> ORGANIZACIÓN LABORISTA DE QUEPOS | B11: 1
A12: =+'C11'!A22 -> MOVIMIENTO LIBERTARIO | B12: 1
A13: =+'C11'!A17 -> CURRIDABAT SIGLO XXI | B13: 1
A14: =+'C11'!A11 -> ACCIÓN CANTONAL SIQUIRRES INDEPENDIENTE | B14: 1
A15: ACCIÓN CIUDADANA | B15: 5
A16: UNIDAD SOCIAL CRISTIANA | B16: 11
A17: LIBERACIÓN NACIONAL | B17: 59
A23: Fuente: Tribunal Supremo de Elecciones.
A30: Fuente: Cuadro 11.

Sheet G6
A2: GRÁFICO 1.2 COSTA RICA: ALCALDÍAS GANADAS POR PARTIDO POLÍTICO,
A3: ELECCIONES MUNICIPALES FEBRERO 2016
A7: PARTIDO POLÍTICO
A8: TOTAL | B8: =SUM(B9:B18) -> 81
A9: YUNTA PROGRESISTA ESCAZUCEÑA | B9: 1
A10: RENOVACIÓN COSTARRICENSE | B10: 1
A11: CURRIDABAT SIGLO XXI | B11: 1
A12: MOVIMIENTO LIBERTARIO | B12: 2
A13: ACCESIBILIDAD SIN EXCLUSIÓN | B13: 2
A14: ACCIÓN CIUDADANA | B14: 6
A15: UNIDAD SOCIAL CRISTIANA | B15: 9
A16: LIBERACIÓN NACIONAL | B16: 59
A30: Fuente: Cuadro 11.

Sheet G7
A2: GRÁFICO 1.2 COSTA RICA: ALCALDÍAS GANADAS POR PARTIDO POLÍTICO,
A3: ELECCIONES MUNICIPALES FEBRERO 2016
A7: PARTIDO POLÍTICO
A8: TOTAL | B8: =SUM(B9:B20) -> 81
A9: YUNTA PROGRESISTA ESCAZUCEÑA | B9: 1
A10: REPUBLICANO SOCIAL CRISTIANO | B10: 1
A11: FRENTE AMPLIO | B11: 1
A12: CURRIDABAT SIGLO XXI | B12: 1
A13: COALICIÓN GENTE MONTES DE OCA | B13: 1
A14: AUTÉNTICO LIMONENSE | B14: 1
A15: ALIANZA POR SAN JOSÉ | B15: 1
A16: ACCESIBILIDAD SIN EXCLUSIÓN | B16: 1
A17: NUEVA GENERACIÓN | B17: 3
A18: ACCIÓN CIUDADANA | B18: 6
A19: UNIDAD SOCIAL CRISTIANA | B19: 14
A20: LIBERACIÓN NACIONAL | B20: 50
A30: Fuente: Cuadro 11.

Sheet C12
A3: CUADRO 12 CANTÓN SAN JOSÉ: JUNTAS, ELECTORADO, VOTOS POR PARTIDO, NULOS Y BLANCOS
A4: PARA ALCALDÍAS, ELECCIONES MUNICIPALES 2002 - 2016
A6: JUNTAS, ELECTORADO, VOTOS POR PARTIDO, NULOS Y BLANCOS | B6: 2002 | C6: 2006 | D6: 2010 | E6: 2016
A8: JUNTAS | B8: 549 | C8: 337 | D8: 342 | E8: 347
A9: ELECTORADO | B9: 214334 | C9: 223838 | D9: 225542 | E9: 231682
A10: VOTOS RECIBIDOS | B10: 36696 | C10: 26594 | D10: 41395 | E10: 61147
A11: VOTOS VÁLIDOS | B11: 35685 | C11: 26177 | D11: 40873 | E11: 59792
A12: ACCESIBILIDAD SIN EXCLUSIÓN | B12: 0 | C12: 0 | D12: 6277 | E12: 0
A13: ACCIÓN CIUDADANA | B13: 3534 | C13: 5013 | D13: 6610 | E13: 3191
A14: ALIANZA PARA AVANZAR | B14: 5692 | C14: 0 | D14: 0 | E14: 0
A15: ALIANZA POR SAN JOSÉ | B15: 4939 | C15: 1309 | D15: 0 | E15: 23925
A16: DE LOS TRABAJADORES | B16: 0 | C16: 0 | D16: 0 | E16: 313
A17: DEL PUEBLO Y PARA EL PUEBLO | B17: 0 | C17: 378 | D17: 0 | E17: 0
A18: FRENTE AMPLIO | B18: 0 | C18: 0 | D18: 0 | E18: 3503
A19: FUERZAS UNIDAS PARA EL CAMBIO | B19: 0 | C19: 0 | D19: 0 | E19: 523
A20: INDEPENDIENTE OBRERO | B20: 69 | C20: 0 | D20: 0 | E20: 0
A21: INTEGRACIÓN NACIONAL | B21: 0 | C21: 142 | D21: 1626 | E21: 3399
A22: LIBERACIÓN NACIONAL | B22: 12998 | C22: 18061 | D22: 25206 | E22: 9536
A23: MOVIMIENTO LIBERTARIO | B23: 1338 | C23: 894 | D23: 1154 | E23: 2051
A24: NUEVA GENERACIÓN | B24: 0 | C24: 0 | D24: 0 | E24: 1032
A25: SAN JOSÉ SOMOS TODOS | B25: 981 | C25: 0 | D25: 0 | E25: 0
A26: RENOVACIÓN COSTARRICENSE | B26: 0 | C26: 380 | D26: 0 | E26: 786
A27: REPUBLICANO SOCIAL CRISTIANO | B27: 0 | C27: 0 | D27: 0 | E27: 3602
A28: SOLIDARIDAD | B28: 0 | C28: 0 | D28: 0 | E28: 1609
A29: UNIDAD SOCIAL CRISTIANA | B29: 6134 | C29: 0 | D29: 0 | E29: 6322
A30: VOTOS NULOS | B30: 802 | C30: 297 | D30: 404 | E30: 1074
A31: VOTOS EN BLANCO | B31: 209 | C31: 120 | D31: 118 | E31: 281
A33: Fuente: Cómputo de Votos Elecciones Municipales 2002, 2006, 2010 y 2016.

Sheet C13
A3: CUADRO 13 CANTÓN ESCAZÚ: JUNTAS, ELECTORADO, VOTOS POR PARTIDO, NULOS Y BLANCOS
A4: PARA ALCALDÍAS, ELECCIONES MUNICIPALES 2002 - 2016
A6: JUNTAS, ELECTORADO, VOTOS POR PARTIDO, NULOS Y BLANCOS | B6: 2002 | C6: 2006 | D6: 2010 | E6: 2016
A8: JUNTAS | B8: 85 | C8: 57 | D8: 61 | E8: 66
A9: ELECTORADO | B9: 32713 | C9: 36674 | D9: 40526 | E9: 44982
A10: VOTOS RECIBIDOS | B10: 6813 | C10: 8228 | D10: 11034 | E10: 17496
A11: VOTOS VÁLIDOS | B11: 6641 | C11: 8076 | D11: 10844 | E11: 17214
A12: ACCESIBILIDAD SIN EXCLUSIÓN | B12: 0 | C12: 0 | D12: 0 | E12: 176
A13: ACCIÓN CIUDADANA | B13: 0 | C13: 984 | D13: 0 | E13: 203
A14: FRENTE AMPLIO | B14: 0 | C14: 0 | D14: 0 | E14: 610
A15: INDEPENDIENTE ESCAZUCEÑO | B15: 0 | C15: 0 | D15: 0 | E15: 880
A16: LIBERACIÓN NACIONAL | B16: 2708 | C16: 3577 | D16: 3517 | E16: 1963
A17: MOVIMIENTO LIBERTARIO | B17: 225 | C17: 0 | D17: 1534 | E17: 1621
A18: RENOVACIÓN COSTARRICENSE | B18: 0 | C18: 0 | D18: 701 | E18: 158
A19: REPUBLICANO SOCIAL CRISTIANO | B19: 0 | C19: 0 | D19: 0 | E19: 423
A20: UNIDAD SOCIAL CRISTIANA | B20: 1097 | C20: 0 | D20: 145 | E20: 506
A21: YUNTA PROGRESISTA ESCAZUCEÑA | B21: 2611 | C21: 3515 | D21: 4947 | E21: 10674
A22: VOTOS NULOS | B22: 122 | C22: 124 | D22: 164 | E22: 233
A23: VOTOS EN BLANCO | B23: 50 | C23: 28 | D23: 26 | E23: 49
A25: Fuente: Cómputo de Votos Elecciones Municipales 2002, 2006, 2010 y 2016.

Sheet C14
A3: CUADRO 14 CANTÓN DESAMPARADOS: JUNTAS, ELECTORADO, VOTOS POR PARTIDO, NULOS Y BLANCOS
A4: PARA ALCALDÍAS, ELECCIONES MUNICIPALES 2002 - 2016
A6: JUNTAS, ELECTORADO, VOTOS POR PARTIDO, NULOS Y BLANCOS | B6: 2002 | C6: 2006 | D6: 2010 | E6: 2016
A8: JUNTAS | B8: 325 | C8: 215 | D8: 233 | E8: 243
A9: ELECTORADO | B9: 121685 | C9: 134363 | D9: 144901 | E9: 156610
A10: VOTOS RECIBIDOS | B10: 15324 | C10: 20258 | D10: 22762 | E10: 38119
A11: VOTOS VÁLIDOS | B11: 14877 | C11: 19813 | D11: 22439 | E11: 37312
A12: ACCESIBILIDAD SIN EXCLUSIÓN | B12: 0 | C12: 0 | D12: 0 | E12: 935
A13: ACCIÓN CIUDADANA | B13: 2493 | C13: 2209 | D13: 3229 | E13: 2255
A14: ACUERDO CANTONAL DESAMPARADEÑO | B14: 0 | C14: 0 | D14: 1687 | E14: 0
A15: DESAMPARADOS UNIDO | B15: 0 | C15: 0 | D15: 0 | E15: 1413
A16: ECOLÓGICO COMUNAL COSTARRICENSE | B16: 0 | C16: 0 | D16: 0 | E16: 3663
A17: FRENTE AMPLIO | B17: 0 | C17: 0 | D17: 0 | E17: 2425
A18: FUERZA COMUNAL DESAMPARADEÑA | B18: 0 | C18: 414 | D18: 0 | E18: 0
A19: FUERZA DEMOCRÁTICA | B19: 1108 | C19: 0 | D19: 0 | E19: 0
A20: FUERZA DEMOCRÁTICA DESAMPARADEÑA | B20: 0 | C20: 0 | D20: 0 | E20: 1115
A21: INTEGRACIÓN NACIONAL | B21: 0 | C21: 6876 | D21: 0 | E21: 0
A22: LIBERACIÓN NACIONAL | B22: 8164 | C22: 8470 | D22: 11154 | E22: 12113
A23: MOVIMIENTO LIBERTARIO | B23: 0 | C23: 1844 | D23: 3067 | E23: 1220
A24: NUEVA GENERACIÓN | B24: 0 | C24: 0 | D24: 0 | E24: 636
A25: PROGRESO COMUNAL DESAMPARADEÑO | B25: 0 | C25: 0 | D25: 0 | E25: 1000
A26: RENOVACIÓN COSTARRICENSE | B26: 0 | C26: 0 | D26: 1466 | E26: 677
A27: REPUBLICANO SOCIAL CRISTIANO | B27: 0 | C27: 0 | D27: 0 | E27: 3279
A28: RESTAURACIÓN NACIONAL | B28: 0 | C28: 0 | D28: 0 | E28: 2633
A29: UNIDAD SOCIAL CRISTIANA | B29: 3112 | C29: 0 | D29: 1836 | E29: 3948
A30: VOTOS NULOS | B30: 337 | C30: 355 | D30: 258 | E30: 615
A31: VOTOS EN BLANCO | B31: 110 | C31: 90 | D31: 65 | E31: 192
A33: Fuente: Cómputo de Votos Elecciones Municipales 2002, 2006, 2010 y 2016.

Sheet C15
A3: CUADRO 15 CANTÓN PURISCAL: JUNTAS, ELECTORADO, VOTOS POR PARTIDO, NULOS Y BLANCOS
A4: PARA ALCALDÍAS, ELECCIONES MUNICIPALES 2002 - 2016
A6: JUNTAS, ELECTORADO, VOTOS POR PARTIDO, NULOS Y BLANCOS | B6: 2002 | C6: 2006 | D6: 2010 | E6: 2016
A8: JUNTAS | B8: 74 | C8: 56 | D8: 60 | E8: 63
A9: ELECTORADO | B9: 19972 | C9: 22038 | D9: 24663 | E9: 27437
A10: VOTOS RECIBIDOS | B10: 5834 | C10: 8728 | D10: 7826 | E10: 10450
A11: VOTOS VÁLIDOS | B11: 5659 | C11: 8514 | D11: 7678 | E11: 10176
A12: ACCIÓN CIUDADANA | B12: 2176 | C12: 3146 | D12: 580 | E12: 2330
A13: FRENTE AMPLIO | B13: 0 | C13: 0 | D13: 0 | E13: 396
A14: LIBERACIÓN NACIONAL | B14: 1086 | C14: 4421 | D14: 4169 | E14: 2917
A15: MOVIMIENTO LIBERTARIO | B15: 0 | C15: 0 | D15: 0 | E15: 216
A16: NUEVA GENERACIÓN | B16: 0 | C16: 0 | D16: 0 | E16: 236
A17: PURISCALEÑOS DE CORAZON | B17: 0 | C17: 0 | D17: 0 | E17: 300
A18: UNIDAD SOCIAL CRISTIANA | B18: 2397 | C18: 695 | D18: 2929 | E18: 3781
A19: UNIÓN NACIONAL | B19: 0 | C19: 252 | D19: 0 | E19: 0
A20: VOTOS NULOS | B20: 127 | C20: 133 | D20: 111 | E20: 186
A21: VOTOS EN BLANCO | B21: 48 | C21: 81 | D21: 37 | E21: 88
A23: Fuente: Cómputo de Votos Elecciones Municipales 2002, 2006, 2010 y 2016.

Sheet C16
A3: CUADRO 16 CANTÓN TARRAZÚ : JUNTAS, ELECTORADO, VOTOS POR PARTIDO, NULOS Y BLANCOS
A4: PARA ALCALDÍAS, ELECCIONES MUNICIPALES 2002 - 2016
A6: JUNTAS, ELECTORADO, VOTOS POR PARTIDO, NULOS Y BLANCOS | B6: 2002 | C6: 2006 | D6: 2010 | E6: 2016
A8: JUNTAS | B8: 29 | C8: 24 | D8: 25 | E8: 25
A9: ELECTORADO | B9: 8514 | C9: 9436 | D9: 10616 | E9: 11843
A10: VOTOS RECIBIDOS | B10: 2395 | C10: 3216 | D10: 3845 | E10: 4629
A11: VOTOS VÁLIDOS | B11: 2332 | C11: 3158 | D11: 3780 | E11: 4509
A12: ACCIÓN CIUDADANA | B12: 0 | C12: 344 | D12: 0 | E12: 627
A13: FRENTE AMPLIO | B13: 0 | C13: 122 | D13: 0 | E13: 409
A14: LIBERACIÓN NACIONAL | B14: 619 | C14: 1924 | D14: 2081 | E14: 1160
A15: MOVIMIENTO LIBERTARIO | B15: 49 | C15: 0 | D15: 0 | E15: 112
A16: REPUBLICANO SOCIAL CRISTIANO | B16: 0 | C16: 0 | D16: 0 | E16: 973
A17: TARRAZÚ PRIMERO | B17: 0 | C17: 0 | D17: 906 | E17: 0
A18: UNIDAD SOCIAL CRISTIANA | B18: 1664 | C18: 768 | D18: 793 | E18: 1228
A19: VOTOS NULOS | B19: 37 | C19: 42 | D19: 48 | E19: 79
A20: VOTOS EN BLANCO | B20: 26 | C20: 16 | D20: 17 | E20: 41
A22: Fuente: Cómputo de Votos Elecciones Municipales 2002, 2006, 2010 y 2016.

Sheet C17
A3: CUADRO 17 CANTÓN ASERRÍ: JUNTAS, ELECTORADO, VOTOS POR PARTIDO, NULOS Y BLANCOS
A4: PARA ALCALDÍAS, ELECCIONES MUNICIPALES 2002 - 2016
A6: JUNTAS, ELECTORADO, VOTOS POR PARTIDO, NULOS Y BLANCOS | B6: 2002 | C6: 2006 | D6: 2010 | E6: 2016
A8: JUNTAS | B8: 87 | C8: 62 | D8: 66 | E8: 68
A9: ELECTORADO | B9: 29601 | C9: 33851 | D9: 37616 | E9: 41808
A10: VOTOS RECIBIDOS | B10: 6653 | C10: 7819 | D10: 11000 | E10: 11821
A11: VOTOS VÁLIDOS | B11: 6474 | C11: 7649 | D11: 10820 | E11: 11541
A12: ACCIÓN CIUDADANA | B12: 933 | C12: 1268 | D12: 5315 | E12: 2643
A13: COALICIÓN CAMBIO 2000 | B13: 309 | C13: 0 | D13: 0 | E13: 0
A14: FRENTE AMPLIO | B14: 0 | C14: 0 | D14: 828 | E14: 1480
A15: INTEGRACIÓN NACIONAL | B15: 0 | C15: 0 | D15: 235 | E15: 0
A16: LIBERACIÓN NACIONAL | B16: 3136 | C16: 3701 | D16: 4201 | E16: 5048
A17: MOVIMIENTO LIBERTARIO | B17: 0 | C17: 276 | D17: 241 | E17: 233
A18: NUEVA GENERACIÓN | B18: 0 | C18: 0 | D18: 0 | E18: 474
A19: UNIDAD SOCIAL CRISTIANA | B19: 2096 | C19: 2150 | D19: 0 | E19: 1663
A20: UNIÓN NACIONAL | B20: 0 | C20: 254 | D20: 0 | E20: 0
A21: VOTOS NULOS | B21: 120 | C21: 108 | D21: 148 | E21: 199
A22: VOTOS EN BLANCO | B22: 59 | C22: 62 | D22: 32 | E22: 81
A24: Fuente: Cómputo de Votos Elecciones Municipales 2002, 2006, 2010 y 2016.

Sheet C18
A3: CUADRO 18 CANTÓN MORA : JUNTAS, ELECTORADO, VOTOS POR PARTIDO, NULOS Y BLANCOS
A4: PARA ALCALDÍAS, ELECCIONES MUNICIPALES 2002 - 2016
A6: JUNTAS, ELECTORADO, VOTOS POR PARTIDO, NULOS Y BLANCOS | B6: 2002 | C6: 2006 | D6: 2010 | E6: 2016
A8: JUNTAS | B8: 40 | C8: 28 | D8: 37 | E8: 41
A9: ELECTORADO | B9: 13219 | C9: 15245 | D9: 17413 | E9: 20263
A10: VOTOS RECIBIDOS | B10: 3711 | C10: 4740 | D10: 6153 | E10: 8247
A11: VOTOS VÁLIDOS | B11: 3597 | C11: 4625 | D11: 6039 | E11: 8073
A12: ACCIÓN CIUDADANA | B12: 502 | C12: 0 | D12: 0 | E12: 1357
A13: EL PUENTE Y LOS CAMINOS DE MORA | B13: 0 | C13: 1478 | D13: 1315 | E13: 0
A14: FRENTE AMPLIO | B14: 0 | C14: 0 | D14: 0 | E14: 308
A15: LIBERACIÓN NACIONAL | B15: 1220 | C15: 2172 | D15: 3283 | E15: 1433
A16: MOVIMIENTO LIBERTARIO | B16: 658 | C16: 448 | D16: 0 | E16: 125
A17: NUEVA GENERACIÓN | B17: 0 | C17: 0 | D17: 0 | E17: 3616
A18: UNIDAD SOCIAL CRISTIANA | B18: 1217 | C18: 527 | D18: 1441 | E18: 1234
A19: VOTOS NULOS | B19: 84 | C19: 81 | D19: 88 | E19: 136
A20: VOTOS EN BLANCO | B20: 30 | C20: 34 | D20: 26 | E20: 38
A22: Fuente: Cómputo de Votos Elecciones Municipales 2002, 2006, 2010 y 2016.

Sheet C19
A3: CUADRO 19 CANTÓN GOICOECHEA: JUNTAS, ELECTORADO, VOTOS POR PARTIDO, NULOS Y BLANCOS
A4: PARA ALCALDÍAS, ELECCIONES MUNICIPALES 2002 - 2016
A6: JUNTAS, ELECTORADO, VOTOS POR PARTIDO, NULOS Y BLANCOS | B6: 2002 | C6: 2006 | D6: 2010 | E6: 2016
A8: JUNTAS | B8: 197 | C8: 123 | D8: 129 | E8: 133
A9: ELECTORADO | B9: 76422 | C9: 82656 | D9: 85797 | E9: 88592
A10: VOTOS RECIBIDOS | B10: 9395 | C10: 12573 | D10: 16058 | E10: 21497
A11: VOTOS VÁLIDOS | B11: 9064 | C11: 12327 | D11: 15763 | E11: 21024
A12: ACCESIBILIDAD SIN EXCLUSIÓN | B12: 0 | C12: 0 | D12: 697 | E12: 3629
A13: ACCIÓN CIUDADANA | B13: 1474 | C13: 2757 | D13: 2782 | E13: 1752
A14: FRENTE AMPLIO | B14: 0 | C14: 0 | D14: 0 | E14: 2140
A15: FUERZA DEMOCRÁTICA | B15: 410 | C15: 0 | D15: 0 | E15: 0
A16: GOICOECHEA EN ACCIÓN | B16: 0 | C16: 1696 | D16: 2047 | E16: 0
A17: INDEPENDIENTE OBRERO | B17: 2152 | C17: 0 | D17: 0 | E17: 0
A18: INTEGRACIÓN NACIONAL | B18: 0 | C18: 59 | D18: 146 | E18: 0
A19: LIBERACIÓN NACIONAL | B19: 1827 | C19: 4029 | D19: 5272 | E19: 5118
A20: MOVIMIENTO LIBERTARIO | B20: 295 | C20: 181 | D20: 1691 | E20: 1647
A21: NUEVA GENERACIÓN | B21: 0 | C21: 0 | D21: 0 | E21: 586
A22: RENOVACIÓN COSTARRICENSE | B22: 0 | C22: 0 | D22: 2490 | E22: 0
A23: REPUBLICANO SOCIAL CRISTIANO | B23: 0 | C23: 0 | D23: 0 | E23: 1118
A24: RESTAURACIÓN NACIONAL | B24: 0 | C24: 0 | D24: 0 | E24: 1108
A25: UNIDAD SOCIAL CRISTIANA | B25: 2906 | C25: 3605 | D25: 638 | E25: 3926
A26: VOTOS NULOS | B26: 251 | C26: 186 | D26: 239 | E26: 381
A27: VOTOS EN BLANCO | B27: 80 | C27: 60 | D27: 56 | E27: 92
A29: Fuente: Cómputo de Votos Elecciones Municipales 2002, 2006, 2010 y 2016.

Sheet C20
A3: CUADRO 20 CANTÓN SANTA ANA : JUNTAS, ELECTORADO, VOTOS POR PARTIDO, NULOS Y BLANCOS
A4: PARA ALCALDÍAS, ELECCIONES MUNICIPALES 2002 - 2016
A6: JUNTAS, ELECTORADO, VOTOS POR PARTIDO, NULOS Y BLANCOS | B6: 2002 | C6: 2006 | D6: 2010 | E6: 2016
A8: JUNTAS | B8: 57 | C8: 39 | D8: 45 | E8: 51
A9: ELECTORADO | B9: 20801 | C9: 24156 | D9: 27941 | E9: 32863
A10: VOTOS RECIBIDOS | B10: 5696 | C10: 8606 | D10: 8520 | E10: 14061
A11: VOTOS VÁLIDOS | B11: 5567 | C11: 8393 | D11: 8426 | E11: 13832
A12: ACCESIBILIDAD SIN EXCLUSIÓN | B12: 0 | C12: 0 | D12: 0 | E12: 134
A13: ACCIÓN CIUDADANA | B13: 0 | C13: 735 | D13: 0 | E13: 1817
A14: ALIANZA CRISTIANA SANTANEÑA | B14: 0 | C14: 0 | D14: 0 | E14: 365
A15: AUTÉNTICO SANTANEÑO | B15: 0 | C15: 541 | D15: 0 | E15: 0
A16: DEL SOL | B16: 1662 | C16: 1942 | D16: 2334 | E16: 1903
A17: FRENTE AMPLIO | B17: 0 | C17: 90 | D17: 0 | E17: 0
A18: LIBERACIÓN NACIONAL | B18: 1382 | C18: 4674 | D18: 4674 | E18: 4992
A19: MOVIMIENTO LIBERTARIO | B19: 213 | C19: 0 | D19: 385 | E19: 1778
A20: NUEVA GENERACIÓN | B20: 0 | C20: 0 | D20: 0 | E20: 366
A21: RENOVACIÓN COSTARRICENSE | B21: 0 | C21: 0 | D21: 385 | E21: 125
A22: REPUBLICANO SOCIAL CRISTIANO | B22: 0 | C22: 0 | D22: 0 | E22: 883
A23: UNIDAD SOCIAL CRISTIANA | B23: 2310 | C23: 411 | D23: 648 | E23: 1469
A24: VOTOS NULOS | B24: 93 | C24: 162 | D24: 73 | E24: 166
A25: VOTOS EN BLANCO | B25: 36 | C25: 51 | D25: 21 | E25: 63
A27: Fuente: Cómputo de Votos Elecciones Municipales 2002, 2006, 2010 y 2016.

Sheet C21
A3: CUADRO 21 CANTÓN ALAJUELITA: JUNTAS, ELECTORADO, VOTOS POR PARTIDO, NULOS Y BLANCOS
A4: PARA ALCALDÍAS, ELECCIONES MUNICIPALES 2002 - 2016
A6: JUNTAS, ELECTORADO, VOTOS POR PARTIDO, NULOS Y BLANCOS | B6: 2002 | C6: 2006 | D6: 2010 | E6: 2016
A8: JUNTAS | B8: 96 | C8: 64 | D8: 69 | E8: 72
A9: ELECTORADO | B9: 36952 | C9: 41250 | D9: 44907 | E9: 49065
A10: VOTOS RECIBIDOS | B10: 4879 | C10: 6923 | D10: 8700 | E10: 14952
A11: VOTOS VÁLIDOS | B11: 4670 | C11: 6778 | D11: 8562 | E11: 14647
A12: ACCIÓN CIUDADANA | B12: 0 | C12: 844 | D12: 2419 | E12: 703
A13: ALAJUELITA NUEVA | B13: 0 | C13: 664 | D13: 0 | E13: 0
A14: FRENTE AMPLIO | B14: 0 | C14: 0 | D14: 0 | E14: 422
A15: FUERZA DEMOCRÁTICA | B15: 96 | C15: 0 | D15: 0 | E15: 0
A16: INTEGRACIÓN NACIONAL | B16: 121 | C16: 0 | D16: 0 | E16: 0
A17: LIBERACIÓN NACIONAL | B17: 1724 | C17: 2552 | D17: 2184 | E17: 1501
A18: MOVIMIENTO LIBERTARIO | B18: 0 | C18: 622 | D18: 0 | E18: 303
A19: NUEVA GENERACIÓN | B19: 0 | C19: 0 | D19: 0 | E19: 4145
A20: RENOVACIÓN COSTARRICENSE | B20: 430 | C20: 75 | D20: 476 | E20: 3399
A21: REPUBLICANO SOCIAL CRISTIANO | B21: 0 | C21: 0 | D21: 0 | E21: 837
A22: UNIDAD SOCIAL CRISTIANA | B22: 2299 | C22: 1950 | D22: 3483 | E22: 3337
A23: UNIÓN PARA EL CAMBIO | B23: 0 | C23: 71 | D23: 0 | E23: 0
A24: VOTOS NULOS | B24: 168 | C24: 111 | D24: 118 | E24: 264
A25: VOTOS EN BLANCO | B25: 41 | C25: 34 | D25: 20 | E25: 41
A27: Fuente: Cómputo de Votos Elecciones Municipales 2002, 2006, 2010 y 2016.

Sheet C22
A3: CUADRO 22 CANTÓN VÁZQUEZ DE CORONADO : JUNTAS, ELECTORADO, VOTOS POR PARTIDO, NULOS Y BLANCOS
A4: PARA ALCALDÍAS, ELECCIONES MUNICIPALES 2002 - 2016
A6: JUNTAS, ELECTORADO, VOTOS POR PARTIDO, NULOS Y BLANCOS | B6: 2002 | C6: 2006 | D6: 2010 | E6: 2016
A8: JUNTAS | B8: 88 | C8: 62 | D8: 68 | E8: 76
A9: ELECTORADO | B9: 33854 | C9: 40007 | D9: 45831 | E9: 51588
A10: VOTOS RECIBIDOS | B10: 8393 | C10: 10302 | D10: 11983 | E10: 15660
A11: VOTOS VÁLIDOS | B11: 8203 | C11: 10181 | D11: 11824 | E11: 15377
A12: ACCIÓN CIUDADANA | B12: 923 | C12: 978 | D12: 1575 | E12: 1792
A13: AUTÉNTICO LABRADOR DE CORONADO | B13: 0 | C13: 0 | D13: 0 | E13: 2686
A14: DEMÓCRATA | B14: 0 | C14: 0 | D14: 0 | E14: 286
A15: FRENTE AMPLIO | B15: 0 | C15: 0 | D15: 0 | E15: 807
A16: FUERZA DEMOCRÁTICA | B16: 168 | C16: 0 | D16: 0 | E16: 0
A17: INTEGRACIÓN NACIONAL | B17: 0 | C17: 184 | D17: 0 | E17: 0
A18: LIBERACIÓN NACIONAL | B18: 2871 | C18: 4678 | D18: 5565 | E18: 2509
A19: MOVIMIENTO LIBERTARIO | B19: 485 | C19: 0 | D19: 0 | E19: 216
A20: RENOVACIÓN COSTARRICENSE | B20: 0 | C20: 122 | D20: 0 | E20: 0
A21: REPUBLICANO SOCIAL CRISTIANO | B21: 0 | C21: 0 | D21: 0 | E21: 6161
A22: UNIDAD SOCIAL CRISTIANA | B22: 3756 | C22: 4219 | D22: 4684 | E22: 920
A23: VOTOS NULOS | B23: 156 | C23: 94 | D23: 130 | E23: 237
A24: VOTOS EN BLANCO | B24: 34 | C24: 27 | D24: 29 | E24: 46
A26: Fuente: Cómputo de Votos Elecciones Municipales 2002, 2006, 2010 y 2016.

Sheet C23
A3: CUADRO 23 CANTÓN ACOSTA: JUNTAS, ELECTORADO, VOTOS POR PARTIDO, NULOS Y BLANCOS
A4: PARA ALCALDÍAS, ELECCIONES MUNICIPALES 2002 - 2016
A6: JUNTAS, ELECTORADO, VOTOS POR PARTIDO, NULOS Y BLANCOS | B6: 2002 | C6: 2006 | D6: 2010 | E6: 2016
A8: JUNTAS | B8: 46 | C8: 35 | D8: 37 | E8: 38
A9: ELECTORADO | B9: 11777 | C9: 12923 | D9: 14354 | E9: 16028
A10: VOTOS RECIBIDOS | B10: 3991 | C10: 4284 | D10: 4965 | E10: 6493
A11: VOTOS VÁLIDOS | B11: 3913 | C11: 4183 | D11: 4849 | E11: 6338
A12: ACCIÓN CIUDADANA | B12: 0 | C12: 1031 | D12: 1448 | E12: 2674
A13: LIBERACIÓN NACIONAL | B13: 2392 | C13: 3152 | D13: 3401 | E13: 1852
A14: UNIDAD SOCIAL CRISTIANA | B14: 1521 | C14: 0 | D14: 0 | E14: 1812
A15: VOTOS NULOS | B15: 44 | C15: 45 | D15: 82 | E15: 115
A16: VOTOS EN BLANCO | B16: 34 | C16: 56 | D16: 34 | E16: 40
A18: Fuente: Cómputo de Votos Elecciones Municipales 2002, 2006, 2010 y 2016.

Sheet C24
A3: CUADRO 24 CANTÓN TIBÁS : JUNTAS, ELECTORADO, VOTOS POR PARTIDO, NULOS Y BLANCOS
A4: PARA ALCALDÍAS, ELECCIONES MUNICIPALES 2002 - 2016
A6: JUNTAS, ELECTORADO, VOTOS POR PARTIDO, NULOS Y BLANCOS | B6: 2002 | C6: 2006 | D6: 2010 | E6: 2016
A8: JUNTAS | B8: 136 | C8: 83 | D8: 84 | E8: 79
A9: ELECTORADO | B9: 53596 | C9: 55489 | D9: 55315 | E9: 55709
A10: VOTOS RECIBIDOS | B10: 7466 | C10: 7059 | D10: 9985 | E10: 13569
A11: VOTOS VÁLIDOS | B11: 7212 | C11: 6948 | D11: 9863 | E11: 13272
A12: ACCIÓN CIUDADANA | B12: 944 | C12: 2784 | D12: 2159 | E12: 0
A13: CÍVICO DE TIBÁS FUENTEOVEJUNA | B13: 0 | C13: 0 | D13: 2080 | E13: 0
A14: COALICIÓN SOMOS TIBAS | B14: 0 | C14: 0 | D14: 0 | E14: 2510
A15: FUERZA DEMOCRÁTICA | B15: 134 | C15: 0 | D15: 0 | E15: 0
A16: INTEGRACIÓN NACIONAL | B16: 0 | C16: 0 | D16: 0 | E16: 238
A17: LIBERACIÓN NACIONAL | B17: 1485 | C17: 2349 | D17: 3085 | E17: 4747
A18: MOVIMIENTO LIBERTARIO | B18: 1713 | C18: 237 | D18: 1245 | E18: 1472
A19: NUEVA GENERACIÓN | B19: 0 | C19: 0 | D19: 0 | E19: 469
A20: RENOVACIÓN COSTARRICENSE | B20: 1025 | C20: 0 | D20: 451 | E20: 783
A21: REPUBLICANO SOCIAL CRISTIANO | B21: 0 | C21: 0 | D21: 0 | E21: 792
A22: RESCATE NACIONAL | B22: 63 | C22: 0 | D22: 0 | E22: 0
A23: UNIDAD SOCIAL CRISTIANA | B23: 1848 | C23: 0 | D23: 843 | E23: 2261
A24: UNIÓN NACIONAL | B24: 0 | C24: 1578 | D24: 0 | E24: 0
A25: VOTOS NULOS | B25: 192 | C25: 88 | D25: 93 | E25: 238
A26: VOTOS BLANCOS | B26: 62 | C26: 23 | D26: 29 | E26: 59
A28: Fuente: Cómputo de Votos Elecciones Municipales 2002, 2006, 2010 y 2016.

Sheet C25
A3: CUADRO 25 CANTÓN MORAVIA: JUNTAS, ELECTORADO, VOTOS POR PARTIDO, NULOS Y BLANCOS
A4: PARA ALCALDÍAS, ELECCIONES MUNICIPALES 2002 - 2016
A6: JUNTAS, ELECTORADO, VOTOS POR PARTIDO, NULOS Y BLANCOS | B6: 2002 | C6: 2006 | D6: 2010 | E6: 2016
A8: JUNTAS | B8: 87 | C8: 57 | D8: 62 | E8: 59
A9: ELECTORADO | B9: 33661 | C9: 37121 | D9: 40392 | E9: 43464
A10: VOTOS RECIBIDOS | B10: 4899 | C10: 6461 | D10: 8391 | E10: 12589
A11: VOTOS VÁLIDOS | B11: 4794 | C11: 6387 | D11: 8265 | E11: 12428
A12: ACCESIBILIDAD SIN EXCLUSIÓN | B12: 0 | C12: 0 | D12: 1147 | E12: 0
A13: ACCIÓN CIUDADANA | B13: 1144 | C13: 1691 | D13: 1885 | E13: 4302
A14: ALIANZA PATRIÓTICA | B14: 0 | C14: 0 | D14: 441 | E14: 0
A15: FRENTE AMPLIO | B15: 0 | C15: 0 | D15: 0 | E15: 714
A16: FUERZA DEMOCRÁTICA | B16: 174 | C16: 0 | D16: 0 | E16: 0
A17: INDEPENDIENTE OBRERO | B17: 36 | C17: 0 | D17: 0 | E17: 0
A18: INTEGRACIÓN NACIONAL | B18: 0 | C18: 428 | D18: 47 | E18: 0
A19: LIBERACIÓN NACIONAL | B19: 1732 | C19: 1522 | D19: 2125 | E19: 3128
A20: MORAVIA PROGRESISTA | B20: 0 | C20: 528 | D20: 0 | E20: 0
A21: MOVIMIENTO LIBERTARIO | B21: 467 | C21: 267 | D21: 687 | E21: 551
A22: NUEVA GENERACIÓN | B22: 0 | C22: 0 | D22: 0 | E22: 1004
A23: RENOVACIÓN COSTARRICENSE | B23: 169 | C23: 0 | D23: 590 | E23: 340
A24: RESTAURACIÓN NACIONAL | B24: 0 | C24: 0 | D24: 0 | E24: 219
A25: UNIDAD SOCIAL CRISTIANA | B25: 1072 | C25: 1660 | D25: 1343 | E25: 2170
A26: UNIÓN NACIONAL | B26: 0 | C26: 291 | D26: 0 | E26: 0
A27: VOTOS NULOS | B27: 64 | C27: 53 | D27: 107 | E27: 129
A28: VOTOS EN BLANCO | B28: 41 | C28: 21 | D28: 19 | E28: 32
A30: Fuente: Cómputo de Votos Elecciones Municipales 2002, 2006, 2010 y 2016.

Sheet C26
A3: CUADRO 26 CANTÓN MONTES DE OCA : JUNTAS, ELECTORADO, VOTOS POR PARTIDO, NULOS Y BLANCOS
A4: PARA ALCALDÍAS, ELECCIONES MUNICIPALES 2002 - 2016
A6: JUNTAS, ELECTORADO, VOTOS POR PARTIDO, NULOS Y BLANCOS | B6: 2002 | C6: 2006 | D6: 2010 | E6: 2016
A8: JUNTAS | B8: 100 | C8: 60 | D8: 62 | E8: 63
A9: ELECTORADO | B9: 38217 | C9: 40201 | D9: 41135 | E9: 41908
A10: VOTOS RECIBIDOS | B10: 6203 | C10: 7668 | D10: 8304 | E10: 13076
A11: VOTOS VÁLIDOS | B11: 6063 | C11: 7574 | D11: 8214 | E11: 12858
A12: ACCIÓN CIUDADANA | B12: 1753 | C12: 1456 | D12: 1660 | E12: 0
A13: AVANCE MONTES DE OCA | B13: 0 | C13: 0 | D13: 0 | E13: 1953
A14: COALICIÓN GENTE MONTES DE OCA | B14: 0 | C14: 0 | D14: 0 | E14: 3707
A15: COALICIÓN MONTES DE OCA UNIDA | B15: 0 | C15: 0 | D15: 1248 | E15: 0
A16: HUMANISTA DE MONTES DE OCA | B16: 269 | C16: 0 | D16: 0 | E16: 0
A17: LIBERACIÓN NACIONAL | B17: 1423 | C17: 1525 | D17: 2197 | E17: 2365
A18: MOVIMIENTO LIBERTARIO | B18: 0 | C18: 551 | D18: 0 | E18: 462
A19: MOVIMIENTO OPCIÓN CANTONAL AUTÉNTICA | B19: 867 | C19: 0 | D19: 0 | E19: 0
A20: NUEVA GENERACIÓN | B20: 0 | C20: 0 | D20: 0 | E20: 433
A21: RENOVACIÓN COSTARRICENSE | B21: 0 | C21: 0 | D21: 2665 | E21: 0
A22: RESCATE NACIONAL | B22: 321 | C22: 0 | D22: 0 | E22: 0
A23: RESTAURACIÓN NACIONAL | B23: 0 | C23: 0 | D23: 0 | E23: 2170
A24: UNIDAD SOCIAL CRISTIANA | B24: 1430 | C24: 1553 | D24: 444 | E24: 1768
A25: UNIÓN PARA EL CAMBIO | B25: 0 | C25: 2489 | D25: 0 | E25: 0
A26: VOTOS NULOS | B26: 101 | C26: 69 | D26: 73 | E26: 183
A27: VOTOS EN BLANCO | B27: 39 | C27: 25 | D27: 17 | E27: 35
A29: Fuente: Cómputo de Votos Elecciones Municipales 2002, 2006, 2010 y 2016.

Sheet C27
A3: CUADRO 27 CANTÓN TURRUBARES : JUNTAS, ELECTORADO, VOTOS POR PARTIDO, NULOS Y BLANCOS
A4: PARA ALCALDÍAS, ELECCIONES MUNICIPALES 2002 - 2016
A6: JUNTAS, ELECTORADO, VOTOS POR PARTIDO, NULOS Y BLANCOS | B6: 2002 | C6: 2006 | D6: 2010 | E6: 2016
A8: JUNTAS | B8: 17 | C8: 15 | D8: 15 | E8: 15
A9: ELECTORADO | B9: 3371 | C9: 3768 | D9: 4187 | E9: 4484
A10: VOTOS RECIBIDOS | B10: 2101 | C10: 2926 | D10: 2819 | E10: 2884
A11: VOTOS VÁLIDOS | B11: 2070 | C11: 2893 | D11: 2783 | E11: 2833
A12: ACCIÓN CIUDADANA | B12: 208 | C12: 0 | D12: 0 | E12: 0
A13: LIBERACIÓN NACIONAL | B13: 908 | C13: 1294 | D13: 1507 | E13: 1199
A14: MOVIMIENTO LIBERTARIO | B14: 0 | C14: 0 | D14: 0 | E14: 16
A15: NUEVA GENERACIÓN | B15: 0 | C15: 0 | D15: 0 | E15: 1176
A16: REPUBLICANO SOCIAL CRISTIANO | B16: 0 | C16: 0 | D16: 0 | E16: 65
A17: UNIDAD SOCIAL CRISTIANA | B17: 954 | C17: 1599 | D17: 1276 | E17: 377
A18: VOTOS NULOS | B18: 21 | C18: 21 | D18: 24 | E18: 31
A19: VOTOS BLANCOS | B19: 10 | C19: 12 | D19: 12 | E19: 20
A21: Fuente: Cómputo de Votos Elecciones Municipales 2002, 2006, 2010 y 2016.

Sheet C28
A3: CUADRO 28 CANTÓN DOTA : JUNTAS, ELECTORADO, VOTOS POR PARTIDO, NULOS Y BLANCOS
A4: PARA ALCALDÍAS, ELECCIONES MUNICIPALES 2002 - 2016
A6: JUNTAS, ELECTORADO, VOTOS POR PARTIDO, NULOS Y BLANCOS | B6: 2002 | C6: 2006 | D6: 2010 | E6: 2016
A8: JUNTAS | B8: 13 | C8: 12 | D8: 12 | E8: 13
A9: ELECTORADO | B9: 3980 | C9: 4433 | D9: 4836 | E9: 5376
A10: VOTOS RECIBIDOS | B10: 993 | C10: 1522 | D10: 2097 | E10: 2975
A11: VOTOS VÁLIDOS | B11: 956 | C11: 1491 | D11: 2062 | E11: 2903
A12: ACCIÓN CIUDADANA | B12: 0 | C12: 308 | D12: 630 | E12: 185
A13: FRENTE AMPLIO | B13: 0 | C13: 0 | D13: 0 | E13: 203
A14: LIBERACIÓN NACIONAL | B14: 541 | C14: 1044 | D14: 1222 | E14: 2173
A15: MOVIMIENTO LIBERTARIO | B15: 0 | C15: 0 | D15: 28 | E15: 7
A16: NUEVA GENERACIÓN | B16: 0 | C16: 0 | D16: 0 | E16: 46
A17: UNIDAD SOCIAL CRISTIANA | B17: 415 | C17: 139 | D17: 182 | E17: 289
A18: VOTOS NULOS | B18: 23 | C18: 17 | D18: 22 | E18: 37
A19: VOTOS EN BLANCO | B19: 14 | C19: 14 | D19: 13 | E19: 35
A21: Fuente: Cómputo de Votos Elecciones Municipales 2002, 2006, 2010 y 2016.

Sheet C29
A3: CUADRO 29 CANTÓN CURRIDABAT : JUNTAS, ELECTORADO, VOTOS POR PARTIDO, NULOS Y BLANCOS
A4: PARA ALCALDÍAS, ELECCIONES MUNICIPALES 2002 - 2016
A6: JUNTAS, ELECTORADO, VOTOS POR PARTIDO, NULOS Y BLANCOS | B6: 2002 | C6: 2006 | D6: 2010 | E6: 2016
A8: JUNTAS | B8: 97 | C8: 63 | D8: 68 | E8: 70
A9: ELECTORADO | B9: 37048 | C9: 41300 | D9: 44286 | E9: 47469
A10: VOTOS RECIBIDOS | B10: 6665 | C10: 7499 | D10: 10207 | E10: 15481
A11: VOTOS VÁLIDOS | B11: 6414 | C11: 7377 | D11: 10080 | E11: 15234
A12: ACCESIBILIDAD SIN EXCLUSIÓN | B12: 0 | C12: 0 | D12: 0 | E12: 85
A13: ACCIÓN CIUDADANA | B13: 994 | C13: 1246 | D13: 1039 | E13: 1042
A14: COALICIÓN CAMBIO 2000 | B14: 953 | C14: 0 | D14: 0 | E14: 0
A15: COMUNAL PRO-CURRI | B15: 0 | C15: 953 | D15: 0 | E15: 0
A16: CURRIDABAT SIGLO XXI | B16: 1560 | C16: 3414 | D16: 7412 | E16: 7713
A17: DE LOS TRABAJADORES | B17: 0 | C17: 0 | D17: 0 | E17: 41
A18: FRENTE AMPLIO | B18: 0 | C18: 0 | D18: 0 | E18: 537
A19: LIBERACIÓN NACIONAL | B19: 872 | C19: 1262 | D19: 1629 | E19: 3040
A20: MOVIMIENTO CURRIDABAT | B20: 673 | C20: 0 | D20: 0 | E20: 0
A21: MOVIMIENTO LIBERTARIO | B21: 0 | C21: 0 | D21: 0 | E21: 186
A22: NUEVA GENERACIÓN | B22: 0 | C22: 0 | D22: 0 | E22: 130
A23: RENOVACIÓN COSTARRICENSE | B23: 0 | C23: 0 | D23: 0 | E23: 162
A24: REPUBLICANO SOCIAL CRISTIANO | B24: 0 | C24: 0 | D24: 0 | E24: 579
A25: RESTAURACIÓN NACIONAL | B25: 0 | C25: 0 | D25: 0 | E25: 420
A26: UNIDAD SOCIAL CRISTIANA | B26: 1362 | C26: 502 | D26: 0 | E26: 1299
A27: VOTOS NULOS | B27: 199 | C27: 108 | D27: 110 | E27: 184
A28: VOTOS EN BLANCO | B28: 52 | C28: 14 | D28: 17 | E28: 63
A30: Fuente: Cómputo de Votos Elecciones Municipales 2002, 2006, 2010 y 2016.

Sheet C30
A3: CUADRO 30 CANTÓN PÉREZ ZELEDÓN : JUNTAS, ELECTORADO, VOTOS POR PARTIDO, NULOS Y BLANCOS
A4: PARA ALCALDÍAS, ELECCIONES MUNICIPALES 2002 - 2016
A6: JUNTAS, ELECTORADO, VOTOS POR PARTIDO, NULOS Y BLANCOS | B6: 2002 | C6: 2006 | D6: 2010 | E6: 2016
A8: JUNTAS | B8: 241 | C8: 185 | D8: 208 | E8: 221
A9: ELECTORADO | B9: 75766 | C9: 86526 | D9: 98271 | E9: 108626
A10: VOTOS RECIBIDOS | B10: 17898 | C10: 24329 | D10: 35650 | E10: 40695
A11: VOTOS VÁLIDOS | B11: 17364 | C11: 23849 | D11: 35028 | E11: 39739
A12: ACCESIBILIDAD SIN EXCLUSIÓN | B12: 0 | C12: 0 | D12: 0 | E12: 197
A13: ACCIÓN CIUDADANA | B13: 3832 | C13: 3028 | D13: 7221 | E13: 4348
A14: FRENTE AMPLIO | B14: 0 | C14: 290 | D14: 0 | E14: 1539
A15: INTEGRACIÓN NACIONAL | B15: 359 | C15: 0 | D15: 0 | E15: 0
A16: JUSTICIA GENERALEÑA | B16: 0 | C16: 0 | D16: 0 | E16: 2128
A17: LIBERACIÓN NACIONAL | B17: 5774 | C17: 9574 | D17: 11778 | E17: 11914
A18: MOVIMIENTO LIBERTARIO | B18: 197 | C18: 0 | D18: 6293 | E18: 644
A19: NUEVA GENERACIÓN | B19: 0 | C19: 0 | D19: 0 | E19: 2177
A20: REPUBLICANO SOCIAL CRISTIANO | B20: 0 | C20: 0 | D20: 0 | E20: 1476
A21: RESTAURACIÓN NACIONAL | B21: 0 | C21: 0 | D21: 0 | E21: 2251
A22: UNIDAD SOCIAL CRISTIANA | B22: 7202 | C22: 10184 | D22: 9736 | E22: 13065
A23: UNIÓN NACIONAL | B23: 0 | C23: 773 | D23: 0 | E23: 0
A24: VOTOS NULOS | B24: 344 | C24: 355 | D24: 490 | E24: 689
A25: VOTOS EN BLANCO | B25: 190 | C25: 125 | D25: 132 | E25: 267
A27: Fuente: Cómputo de Votos Elecciones Municipales 2002, 2006, 2010 y 2016.

Sheet C31
A3: CUADRO 31 CANTÓN LEÓN CORTÉS CASTRO : JUNTAS, ELECTORADO, VOTOS POR PARTIDO, NULOS Y BLANCOS
A4: PARA ALCALDÍAS, ELECCIONES MUNICIPALES 2002 - 2016
A6: JUNTAS, ELECTORADO, VOTOS POR PARTIDO, NULOS Y BLANCOS | B6: 2002 | C6: 2006 | D6: 2010 | E6: 2016
A8: JUNTAS | B8: 26 | C8: 21 | D8: 22 | E8: 23
A9: ELECTORADO | B9: 6466 | C9: 7286 | D9: 8149 | E9: 9030
A10: VOTOS RECIBIDOS | B10: 2625 | C10: 3820 | D10: 4149 | E10: 3868
A11: VOTOS VÁLIDOS | B11: 2542 | C11: 3702 | D11: 4040 | E11: 3768
A12: ACCIÓN CIUDADANA | B12: 0 | C12: 73 | D12: 0 | E12: 822
A13: LIBERACIÓN NACIONAL | B13: 1257 | C13: 2118 | D13: 1886 | E13: 2854
A14: MOVIMIENTO LIBERTARIO | B14: 0 | C14: 0 | D14: 681 | E14: 92
A15: UNIDAD SOCIAL CRISTIANA | B15: 1285 | C15: 0 | D15: 1473 | E15: 0
A16: UNIÓN PARA EL CAMBIO | B16: 0 | C16: 1511 | D16: 0 | E16: 0
A17: VOTOS NULOS | B17: 48 | C17: 91 | D17: 79 | E17: 67
A18: VOTOS EN BLANCO | B18: 35 | C18: 27 | D18: 30 | E18: 33
A19: JUNTAS | B19: 381 | C19: 258 | D19: 282 | E19: 312
A21: Fuente: Cómputo de Votos Elecciones Municipales 2002, 2006, 2010 y 2016.

Sheet C32
A3: CUADRO 32 CANTÓN ALAJUELA : JUNTAS, ELECTORADO, VOTOS POR PARTIDO, NULOS Y BLANCOS
A4: PARA ALCALDÍAS, ELECCIONES MUNICIPALES 2002 - 2016
A6: JUNTAS, ELECTORADO, VOTOS POR PARTIDO, NULOS Y BLANCOS | B6: 2002 | C6: 2006 | D6: 2010 | E6: 2016
A8: JUNTAS | B8: 381 | C8: 258 | D8: 282 | E8: 312
A9: ELECTORADO | B9: 140160 | C9: 157849 | D9: 173149 | E9: 193568
A10: VOTOS RECIBIDOS | B10: 28088 | C10: 26610 | D10: 36610 | E10: 56908
A11: VOTOS VÁLIDOS | B11: 27092 | C11: 25989 | D11: 36096 | E11: 55550
A12: ACCESIBILIDAD SIN EXCLUSIÓN | B12: 0 | C12: 0 | D12: 2888 | E12: 0
A13: ACCIÓN CIUDADANA | B13: 5004 | C13: 4638 | D13: 7063 | E13: 3039
A14: CAMBIO YA | B14: 822 | C14: 0 | D14: 0 | E14: 0
A15: DE LOS TRABAJADORES | B15: 0 | C15: 0 | D15: 0 | E15: 285
A16: FRENTE AMPLIO | B16: 0 | C16: 0 | D16: 0 | E16: 1696
A17: LIBERACIÓN NACIONAL | B17: 11681 | C17: 13116 | D17: 16339 | E17: 33006
A18: MOVIMIENTO LIBERTARIO | B18: 574 | C18: 468 | D18: 1302 | E18: 1016
A19: NUEVA GENERACIÓN | B19: 0 | C19: 0 | D19: 0 | E19: 466
A20: RENOVACIÓN COSTARRICENSE | B20: 0 | C20: 488 | D20: 0 | E20: 1405
A21: RENOVEMOS ALAJUELA | B21: 0 | C21: 0 | D21: 8504 | E21: 5351
A22: REPUBLICANO SOCIAL CRISTIANO | B22: 0 | C22: 0 | D22: 0 | E22: 1293
A23: RESCATE NACIONAL | B23: 1059 | C23: 0 | D23: 0 | E23: 0
A24: RESTAURACIÓN NACIONAL | B24: 0 | C24: 0 | D24: 0 | E24: 550
A25: UNIDAD SOCIAL CRISTIANA | B25: 7952 | C25: 2949 | D25: 0 | E25: 7443
A26: UNIÓN PARA EL CAMBIO | B26: 0 | C26: 4330 | D26: 0 | E26: 0
A27: VOTOS NULOS | B27: 765 | C27: 449 | D27: 395 | E27: 1015
A28: VOTOS EN BLANCO | B28: 231 | C28: 172 | D28: 119 | E28: 343
A30: Fuente: Cómputo de Votos Elecciones Municipales 2002, 2006, 2010 y 2016.

Sheet C33
A3: CUADRO 33 CANTÓN SAN RAMÓN : JUNTAS, ELECTORADO, VOTOS POR PARTIDO, NULOS Y BLANCOS
A4: PARA ALCALDÍAS, ELECCIONES MUNICIPALES 2002 - 2016
A6: JUNTAS, ELECTORADO, VOTOS POR PARTIDO, NULOS Y BLANCOS | B6: 2002 | C6: 2006 | D6: 2010 | E6: 2016
A8: JUNTAS | B8: 129 | C8: 95 | D8: 105 | E8: 113
A9: ELECTORADO | B9: 42685 | C9: 47920 | D9: 53851 | E9: 60762
A10: VOTOS RECIBIDOS | B10: 11044 | C10: 12997 | D10: 14143 | E10: 22590
A11: VOTOS VÁLIDOS | B11: 10459 | C11: 12430 | D11: 13754 | E11: 21880
A12: ACCIÓN CIUDADANA | B12: 1553 | C12: 2930 | D12: 0 | E12: 3023
A13: COALICIÓN RAMONENSE | B13: 0 | C13: 0 | D13: 4804 | E13: 0
A14: FRENTE AMPLIO | B14: 0 | C14: 0 | D14: 0 | E14: 1067
A15: LIBERACIÓN NACIONAL | B15: 2949 | C15: 5369 | D15: 8950 | E15: 8943
A16: LIGA RAMONENSE | B16: 0 | C16: 0 | D16: 0 | E16: 1675
A17: MOVIMIENTO LIBERTARIO | B17: 180 | C17: 0 | D17: 0 | E17: 235
A18: NUEVA GENERACIÓN | B18: 0 | C18: 0 | D18: 0 | E18: 3304
A19: REPUBLICANO SOCIAL CRISTIANO | B19: 0 | C19: 0 | D19: 0 | E19: 1697
A20: RESCATE NACIONAL | B20: 1953 | C20: 0 | D20: 0 | E20: 0
A21: RESTAURACIÓN NACIONAL | B21: 0 | C21: 0 | D21: 0 | E21: 224
A22: SOLIDARIDAD RAMONENSE | B22: 0 | C22: 4131 | D22: 0 | E22: 0
A23: UNIDAD SOCIAL CRISTIANA | B23: 3824 | C23: 0 | D23: 0 | E23: 1712
A24: VOTOS NULOS | B24: 351 | C24: 259 | D24: 205 | E24: 503
A25: VOTOS EN BLANCO | B25: 234 | C25: 308 | D25: 184 | E25: 207
A27: Fuente: Cómputo de Votos Elecciones Municipales 2002, 2006, 2010 y 2016.

Sheet C34
A3: CUADRO 34 CANTÓN GRECIA : JUNTAS, ELECTORADO, VOTOS POR PARTIDO, NULOS Y BLANCOS
A4: PARA ALCALDÍAS, ELECCIONES MUNICIPALES 2002 - 2016
A6: JUNTAS, ELECTORADO, VOTOS POR PARTIDO, NULOS Y BLANCOS | B6: 2002 | C6: 2006 | D6: 2010 | E6: 2016
A8: JUNTAS | B8: 128 | C8: 88 | D8: 94 | E8: 104
A9: ELECTORADO | B9: 41006 | C9: 45890 | D9: 50974 | E9: 57118
A10: VOTOS RECIBIDOS | B10: 9097 | C10: 13386 | D10: 14692 | E10: 21521
A11: VOTOS VÁLIDOS | B11: 8853 | C11: 13154 | D11: 14442 | E11: 21001
A12: ACCIÓN CIUDADANA | B12: 348 | C12: 1271 | D12: 943 | E12: 840
A13: FRENTE AMPLIO | B13: 0 | C13: 0 | D13: 0 | E13: 748
A14: LIBERACIÓN NACIONAL | B14: 3963 | C14: 8606 | D14: 7559 | E14: 6876
A15: MOVIMIENTO LIBERTARIO | B15: 59 | C15: 236 | D15: 4958 | E15: 2159
A16: NUEVA MAYORÍA GRIEGA | B16: 0 | C16: 0 | D16: 0 | E16: 4985
A17: RENOVACIÓN COSTARRICENSE | B17: 0 | C17: 0 | D17: 982 | E17: 693
A18: REPUBLICANO SOCIAL CRISTIANO | B18: 0 | C18: 0 | D18: 0 | E18: 2474
A19: UNIDAD SOCIAL CRISTIANA | B19: 4483 | C19: 3041 | D19: 0 | E19: 2226
A20: VOTOS NULOS | B20: 160 | C20: 155 | D20: 201 | E20: 397
A21: VOTOS EN BLANCO | B21: 84 | C21: 77 | D21: 49 | E21: 123
A23: Fuente: Cómputo de Votos Elecciones Municipales 2002, 2006, 2010 y 2016.

Sheet C35
A3: CUADRO 35 CANTÓN SAN MATEO : JUNTAS, ELECTORADO, VOTOS POR PARTIDO, NULOS Y BLANCOS
A4: PARA ALCALDÍAS, ELECCIONES MUNICIPALES 2002 - 2016
A6: JUNTAS, ELECTORADO, VOTOS POR PARTIDO, NULOS Y BLANCOS | B6: 2002 | C6: 2006 | D6: 2010 | E6: 2016
A8: JUNTAS | B8: 12 | C8: 8 | D8: 10 | E8: 11
A9: ELECTORADO | B9: 3208 | C9: 3542 | D9: 3822 | E9: 4365
A10: VOTOS RECIBIDOS | B10: 1240 | C10: 1708 | D10: 2068 | E10: 2703
A11: VOTOS VÁLIDOS | B11: 1216 | C11: 1677 | D11: 2021 | E11: 2649
A12: ACCIÓN CIUDADANA | B12: 0 | C12: 108 | D12: 0 | E12: 399
A13: ACCIÓN LABORISTA AGRÍCOLA | B13: 314 | C13: 79 | D13: 0 | E13: 0
A14: ALIANZA PATRIÓTICA | B14: 0 | C14: 0 | D14: 256 | E14: 0
A15: FRENTE AMPLIO | B15: 0 | C15: 0 | D15: 0 | E15: 178
A16: LIBERACIÓN NACIONAL | B16: 312 | C16: 634 | D16: 1141 | E16: 1697
A17: MOVIMIENTO LIBERTARIO | B17: 223 | C17: 72 | D17: 404 | E17: 79
A18: REPUBLICANO SOCIAL CRISTIANO | B18: 0 | C18: 0 | D18: 0 | E18: 101
A19: UNIDAD SOCIAL CRISTIANA | B19: 367 | C19: 784 | D19: 220 | E19: 195
A20: VOTOS NULOS | B20: 18 | C20: 20 | D20: 41 | E20: 38
A21: VOTOS EN BLANCO | B21: 6 | C21: 11 | D21: 6 | E21: 16
A23: Fuente: Cómputo de Votos Elecciones Municipales 2002, 2006, 2010 y 2016.

Sheet C36
A3: CUADRO 36 CANTÓN ATENAS : JUNTAS, ELECTORADO, VOTOS POR PARTIDO, NULOS Y BLANCOS
A4: PARA ALCALDÍAS, ELECCIONES MUNICIPALES 2002 - 2016
A6: JUNTAS, ELECTORADO, VOTOS POR PARTIDO, NULOS Y BLANCOS | B6: 2002 | C6: 2006 | D6: 2010 | E6: 2016
A8: JUNTAS | B8: 44 | C8: 32 | D8: 32 | E8: 35
A9: ELECTORADO | B9: 14110 | C9: 15896 | D9: 17658 | E9: 19661
A10: VOTOS RECIBIDOS | B10: 4180 | C10: 5540 | D10: 8326 | E10: 9646
A11: VOTOS VÁLIDOS | B11: 4082 | C11: 5428 | D11: 8214 | E11: 9440
A12: ACCESIBILIDAD SIN EXCLUSIÓN | B12: 0 | C12: 0 | D12: 510 | E12: 0
A13: ACCIÓN CIUDADANA | B13: 505 | C13: 845 | D13: 1052 | E13: 2521
A14: ACCIÓN LABORISTA AGRÍCOLA | B14: 255 | C14: 0 | D14: 0 | E14: 0
A15: FRENTE AMPLIO | B15: 0 | C15: 0 | D15: 0 | E15: 370
A16: LIBERACIÓN NACIONAL | B16: 1161 | C16: 1524 | D16: 2270 | E16: 2434
A17: MOVIMIENTO LIBERTARIO | B17: 0 | C17: 762 | D17: 0 | E17: 224
A18: REPUBLICANO SOCIAL CRISTIANO | B18: 0 | C18: 0 | D18: 0 | E18: 1121
A19: UNIDAD SOCIAL CRISTIANA | B19: 2161 | C19: 2297 | D19: 2544 | E19: 2770
A20: UNIÓN ATENIENSE | B20: 0 | C20: 0 | D20: 1838 | E20: 0
A21: VOTOS NULOS | B21: 60 | C21: 83 | D21: 85 | E21: 161
A22: VOTOS EN BLANCO | B22: 38 | C22: 29 | D22: 27 | E22: 45
A24: Fuente: Cómputo de Votos Elecciones Municipales 2002, 2006, 2010 y 2016.

Sheet C37
A3: CUADRO 37 CANTÓN NARANJO : JUNTAS, ELECTORADO, VOTOS POR PARTIDO, NULOS Y BLANCOS
A4: PARA ALCALDÍAS, ELECCIONES MUNICIPALES 2002 - 2016
A6: JUNTAS, ELECTORADO, VOTOS POR PARTIDO, NULOS Y BLANCOS | B6: 2002 | C6: 2006 | D6: 2010 | E6: 2016
A8: JUNTAS | B8: 69 | C8: 48 | D8: 53 | E8: 57
A9: ELECTORADO | B9: 22972 | C9: 25591 | D9: 28029 | E9: 30801
A10: VOTOS RECIBIDOS | B10: 6862 | C10: 6815 | D10: 9796 | E10: 13065
A11: VOTOS VÁLIDOS | B11: 6678 | C11: 6663 | D11: 9573 | E11: 12716
A12: ACCESIBILIDAD SIN EXCLUSIÓN | B12: 0 | C12: 0 | D12: 211 | E12: 0
A13: ACCIÓN CIUDADANA | B13: 1075 | C13: 757 | D13: 923 | E13: 2589
A14: ACCIÓN NARANJEÑA | B14: 0 | C14: 0 | D14: 987 | E14: 0
A15: FRENTE AMPLIO | B15: 0 | C15: 0 | D15: 0 | E15: 697
A16: INTEGRACIÓN NACIONAL | B16: 0 | C16: 0 | D16: 858 | E16: 657
A17: LIBERACIÓN NACIONAL | B17: 2938 | C17: 3172 | D17: 4176 | E17: 1772
A18: MOVIMIENTO LIBERTARIO | B18: 160 | C18: 416 | D18: 379 | E18: 568
A19: RENOVACIÓN COSTARRICENSE | B19: 0 | C19: 0 | D19: 0 | E19: 2071
A20: REPUBLICANO SOCIAL CRISTIANO | B20: 0 | C20: 0 | D20: 0 | E20: 1345
A21: UNIDAD SOCIAL CRISTIANA | B21: 2505 | C21: 796 | D21: 2039 | E21: 3017
A22: UNIÓN NACIONAL | B22: 0 | C22: 1522 | D22: 0 | E22: 0
A23: VOTOS NULOS | B23: 131 | C23: 109 | D23: 176 | E23: 279
A24: VOTOS EN BLANCO | B24: 53 | C24: 43 | D24: 47 | E24: 70
A26: Fuente: Cómputo de Votos Elecciones Municipales 2002, 2006, 2010 y 2016.

Sheet C38
A3: CUADRO 38 CANTÓN PALMARES : JUNTAS, ELECTORADO, VOTOS POR PARTIDO, NULOS Y BLANCOS
A4: PARA ALCALDÍAS, ELECCIONES MUNICIPALES 2002 - 2016
A6: JUNTAS, ELECTORADO, VOTOS POR PARTIDO, NULOS Y BLANCOS | B6: 2002 | C6: 2006 | D6: 2010 | E6: 2016
A8: JUNTAS | B8: 55 | C8: 37 | D8: 42 | E8: 47
A9: ELECTORADO | B9: 19834 | C9: 22549 | D9: 25315 | E9: 28151
A10: VOTOS RECIBIDOS | B10: 7733 | C10: 7901 | D10: 8720 | E10: 12701
A11: VOTOS VÁLIDOS | B11: 7425 | C11: 7743 | D11: 8526 | E11: 12405
A12: ACCESIBILIDAD SIN EXCLUSIÓN | B12: 0 | C12: 0 | D12: 694 | E12: 56
A13: ACCIÓN CIUDADANA | B13: 359 | C13: 907 | D13: 0 | E13: 3211
A14: ALIANZA POR PALMARES | B14: 0 | C14: 0 | D14: 0 | E14: 2349
A15: FRENTE AMPLIO | B15: 0 | C15: 0 | D15: 0 | E15: 276
A16: INTEGRACIÓN NACIONAL | B16: 1027 | C16: 0 | D16: 0 | E16: 0
A17: LIBERACIÓN NACIONAL | B17: 2000 | C17: 4610 | D17: 3495 | E17: 3116
A18: MOVIMIENTO LIBERTARIO | B18: 425 | C18: 0 | D18: 1103 | E18: 348
A19: NUEVA GENERACIÓN | B19: 0 | C19: 0 | D19: 0 | E19: 633
A20: RENOVACIÓN COSTARRICENSE | B20: 1102 | C20: 0 | D20: 0 | E20: 294
A21: REPUBLICANO SOCIAL CRISTIANO | B21: 0 | C21: 0 | D21: 0 | E21: 303
A22: UNIDAD SOCIAL CRISTIANA | B22: 2512 | C22: 0 | D22: 1064 | E22: 1819
A23: UNIÓN NACIONAL | B23: 0 | C23: 191 | D23: 0 | E23: 0
A24: UNIÓN PALMAREÑA | B24: 0 | C24: 2035 | D24: 2170 | E24: 0
A25: VOTOS NULOS | B25: 249 | C25: 108 | D25: 145 | E25: 216
A26: VOTOS EN BLANCO | B26: 59 | C26: 50 | D26: 49 | E26: 80
A28: Fuente: Cómputo de Votos Elecciones Municipales 2002, 2006, 2010 y 2016.

Sheet C39
A3: CUADRO 39 CANTÓN POÁS : JUNTAS, ELECTORADO, VOTOS POR PARTIDO, NULOS Y BLANCOS
A4: PARA ALCALDÍAS, ELECCIONES MUNICIPALES 2002 - 2016
A6: JUNTAS, ELECTORADO, VOTOS POR PARTIDO, NULOS Y BLANCOS | B6: 2002 | C6: 2006 | D6: 2010 | E6: 2016
A8: JUNTAS | B8: 42 | C8: 27 | D8: 30 | E8: 36
A9: ELECTORADO | B9: 14185 | C9: 16227 | D9: 18233 | E9: 20803
A10: VOTOS RECIBIDOS | B10: 5678 | C10: 4866 | D10: 3953 | E10: 9018
A11: VOTOS VÁLIDOS | B11: 5519 | C11: 4762 | D11: 3864 | E11: 8805
A12: ACCIÓN CIUDADANA | B12: 144 | C12: 1625 | D12: 0 | E12: 1299
A13: COALICIÓN CAMBIO 2000 | B13: 822 | C13: 0 | D13: 0 | E13: 0
A14: FRENTE AMPLIO | B14: 0 | C14: 0 | D14: 0 | E14: 554
A15: LIBERACIÓN NACIONAL | B15: 2007 | C15: 2428 | D15: 2230 | E15: 2177
A16: MOVIMIENTO LIBERTARIO | B16: 390 | C16: 404 | D16: 0 | E16: 0
A17: NUEVA GENERACIÓN | B17: 0 | C17: 0 | D17: 0 | E17: 122
A18: RENOVACIÓN COSTARRICENSE | B18: 324 | C18: 0 | D18: 0 | E18: 809
A19: REPUBLICANO SOCIAL CRISTIANO | B19: 0 | C19: 0 | D19: 0 | E19: 1407
A20: RESTAURACIÓN NACIONAL | B20: 0 | C20: 0 | D20: 0 | E20: 319
A21: UNIDAD SOCIAL CRISTIANA | B21: 1832 | C21: 0 | D21: 0 | E21: 2118
A22: UNIÓN PARA EL CAMBIO | B22: 0 | C22: 40 | D22: 0 | E22: 0
A23: UNIÓN POASEÑA | B23: 0 | C23: 265 | D23: 1634 | E23: 0
A24: VOTOS NULOS | B24: 121 | C24: 77 | D24: 70 | E24: 176
A25: VOTOS EN BLANCO | B25: 38 | C25: 27 | D25: 19 | E25: 37
A27: Fuente: Cómputo de Votos Elecciones Municipales 2002, 2006, 2010 y 2016.

Sheet C40
A3: CUADRO 40 CANTÓN OROTINA : JUNTAS, ELECTORADO, VOTOS POR PARTIDO, NULOS Y BLANCOS
A4: PARA ALCALDÍAS, ELECCIONES MUNICIPALES 2002 - 2016
A6: JUNTAS, ELECTORADO, VOTOS POR PARTIDO, NULOS Y BLANCOS | B6: 2002 | C6: 2006 | D6: 2010 | E6: 2016
A8: JUNTAS | B8: 30 | C8: 22 | D8: 24 | E8: 28
A9: ELECTORADO | B9: 9758 | C9: 11256 | D9: 12953 | E9: 14762
A10: VOTOS RECIBIDOS | B10: 2572 | C10: 3175 | D10: 4806 | E10: 6464
A11: VOTOS VÁLIDOS | B11: 2507 | C11: 3133 | D11: 4726 | E11: 6356
A12: ACCIÓN CIUDADANA | B12: 693 | C12: 1005 | D12: 359 | E12: 0
A13: ALIANZA PATRIÓTICA | B13: 0 | C13: 0 | D13: 285 | E13: 0
A14: COALICIÓN CAMBIO 2000 | B14: 306 | C14: 0 | D14: 0 | E14: 0
A15: LIBERACIÓN NACIONAL | B15: 109 | C15: 2128 | D15: 2080 | E15: 3550
A16: MOVIMIENTO LIBERTARIO | B16: 0 | C16: 0 | D16: 118 | E16: 0
A17: NUEVA GENERACIÓN | B17: 0 | C17: 0 | D17: 0 | E17: 67
A18: RENOVACIÓN COSTARRICENSE | B18: 0 | C18: 0 | D18: 0 | E18: 60
A19: REPUBLICANO SOCIAL CRISTIANO | B19: 0 | C19: 0 | D19: 0 | E19: 53
A20: RESTAURACIÓN NACIONAL | B20: 0 | C20: 0 | D20: 0 | E20: 204
A21: UNIDAD SOCIAL CRISTIANA | B21: 1399 | C21: 0 | D21: 1884 | E21: 2422
A22: VOTOS NULOS | B22: 44 | C22: 26 | D22: 60 | E22: 82
A23: VOTOS EN BLANCO | B23: 21 | C23: 16 | D23: 20 | E23: 26
A25: Fuente: Cómputo de Votos Elecciones Municipales 2002, 2006, 2010 y 2016.

Sheet C41
A3: CUADRO 41 CANTÓN SAN CARLOS : JUNTAS, ELECTORADO, VOTOS POR PARTIDO, NULOS Y BLANCOS
A4: PARA ALCALDÍAS, ELECCIONES MUNICIPALES 2002 - 2016
A6: JUNTAS, ELECTORADO, VOTOS POR PARTIDO, NULOS Y BLANCOS | B6: 2002 | C6: 2006 | D6: 2010 | E6: 2016
A8: JUNTAS | B8: 213 | C8: 161 | D8: 178 | E8: 200
A9: ELECTORADO | B9: 66422 | C9: 76904 | D9: 88519 | E9: 102906
A10: VOTOS RECIBIDOS | B10: 18628 | C10: 21970 | D10: 31891 | E10: 42818
A11: VOTOS VÁLIDOS | B11: 18158 | C11: 21515 | D11: 31353 | E11: 41812
A12: ACCIÓN CIUDADANA | B12: 2307 | C12: 3955 | D12: 0 | E12: 10928
A13: ALIANZA SANCARLEÑA | B13: 0 | C13: 0 | D13: 0 | E13: 702
A14: COALICIÓN UNIDOS POR SAN CARLOS | B14: 0 | C14: 0 | D14: 13097 | E14: 0
A15: FRENTE AMPLIO | B15: 0 | C15: 0 | D15: 0 | E15: 492
A16: LIBERACIÓN NACIONAL | B16: 8058 | C16: 15967 | D16: 17117 | E16: 18320
A17: MOVIMIENTO LIBERTARIO | B17: 0 | C17: 763 | D17: 1139 | E17: 0
A18: NUEVA GENERACIÓN | B18: 0 | C18: 0 | D18: 0 | E18: 2342
A19: RENOVACIÓN COSTARRICENSE | B19: 0 | C19: 0 | D19: 0 | E19: 1092
A20: REPUBLICANO SOCIAL CRISTIANO | B20: 0 | C20: 0 | D20: 0 | E20: 2820
A21: UNIDAD SOCIAL CRISTIANA | B21: 7793 | C21: 830 | D21: 0 | E21: 5116
A22: VOTOS NULOS | B22: 298 | C22: 359 | D22: 445 | E22: 805
A23: VOTOS EN BLANCO | B23: 172 | C23: 96 | D23: 93 | E23: 201
A25: Fuente: Cómputo de Votos Elecciones Municipales 2002, 2006, 2010 y 2016.

Sheet C42
A3: CUADRO 42 CANTÓN ZARCERO : JUNTAS, ELECTORADO, VOTOS POR PARTIDO, NULOS Y BLANCOS
A4: PARA ALCALDÍAS, ELECCIONES MUNICIPALES 2002 - 2016
A6: JUNTAS, ELECTORADO, VOTOS POR PARTIDO, NULOS Y BLANCOS | B6: 2002 | C6: 2006 | D6: 2010 | E6: 2016
A8: JUNTAS | B8: 22 | C8: 20 | D8: 20 | E8: 21
A9: ELECTORADO | B9: 6479 | C9: 7158 | D9: 7973 | E9: 8802
A10: VOTOS RECIBIDOS | B10: 2452 | C10: 2828 | D10: 4583 | E10: 4776
A11: VOTOS VÁLIDOS | B11: 2418 | C11: 2789 | D11: 4527 | E11: 4694
A12: ACCIÓN CIUDADANA | B12: 154 | C12: 651 | D12: 0 | E12: 0
A13: COALICIÓN PARTIDO ALIANZA ZARCEREÑA | B13: 0 | C13: 0 | D13: 570 | E13: 0
A14: LIBERACIÓN NACIONAL | B14: 966 | C14: 2138 | D14: 1945 | E14: 2559
A15: MOVIMIENTO LIBERTARIO | B15: 0 | C15: 0 | D15: 0 | E15: 44
A16: REPUBLICANO SOCIAL CRISTIANO | B16: 0 | C16: 0 | D16: 0 | E16: 335
A17: UNIDAD SOCIAL CRISTIANA | B17: 1298 | C17: 0 | D17: 2012 | E17: 1756
A18: VOTOS NULOS | B18: 25 | C18: 19 | D18: 41 | E18: 60
A19: VOTOS EN BLANCO | B19: 9 | C19: 20 | D19: 15 | E19: 22
A21: Fuente: Cómputo de Votos Elecciones Municipales 2002, 2006, 2010 y 2016.

Sheet C43
A3: CUADRO 43 CANTÓN VALVERDE VEGA : JUNTAS, ELECTORADO, VOTOS POR PARTIDO, NULOS Y BLANCOS
A4: PARA ALCALDÍAS, ELECCIONES MUNICIPALES 2002 - 2016
A6: JUNTAS, ELECTORADO, VOTOS POR PARTIDO, NULOS Y BLANCOS | B6: 2002 | C6: 2006 | D6: 2010 | E6: 2016
A8: JUNTAS | B8: 29 | C8: 21 | D8: 23 | E8: 27
A9: ELECTORADO | B9: 10108 | C9: 11497 | D9: 12819 | E9: 14208
A10: VOTOS RECIBIDOS | B10: 4117 | C10: 5425 | D10: 5907 | E10: 6770
A11: VOTOS VÁLIDOS | B11: 4010 | C11: 5334 | D11: 5829 | E11: 6662
A12: ACCIÓN CIUDADANA | B12: 465 | C12: 458 | D12: 0 | E12: 386
A13: INTEGRACIÓN NACIONAL | B13: 744 | C13: 0 | D13: 442 | E13: 0
A14: LIBERACIÓN NACIONAL | B14: 735 | C14: 1459 | D14: 613 | E14: 1717
A15: MOVIMIENTO LIBERTARIO | B15: 683 | C15: 1550 | D15: 2875 | E15: 0
A16: NUEVA GENERACIÓN | B16: 0 | C16: 0 | D16: 0 | E16: 1856
A17: UNIDAD SOCIAL CRISTIANA | B17: 1383 | C17: 1867 | D17: 1899 | E17: 2703
A18: VOTOS NULOS | B18: 73 | C18: 55 | D18: 64 | E18: 87
A19: VOTOS EN BLANCO | B19: 34 | C19: 36 | D19: 14 | E19: 21
A21: Fuente: Cómputo de Votos Elecciones Municipales 2002, 2006, 2010 y 2016.

Sheet C44
A3: CUADRO 44 CANTÓN UPALA : JUNTAS, ELECTORADO, VOTOS POR PARTIDO, NULOS Y BLANCOS
A4: PARA ALCALDÍAS, ELECCIONES MUNICIPALES 2002 - 2016
A6: JUNTAS, ELECTORADO, VOTOS POR PARTIDO, NULOS Y BLANCOS | B6: 2002 | C6: 2006 | D6: 2010 | E6: 2016
A8: JUNTAS | B8: 60 | C8: 51 | D8: 53 | E8: 60
A9: ELECTORADO | B9: 16602 | C9: 18914 | D9: 21797 | E9: 26574
A10: VOTOS RECIBIDOS | B10: 6784 | C10: 5518 | D10: 7770 | E10: 11071
A11: VOTOS VÁLIDOS | B11: 6559 | C11: 5362 | D11: 7551 | E11: 10810
A12: ACCIÓN CIUDADANA | B12: 0 | C12: 680 | D12: 3481 | E12: 2435
A13: FRENTE AMPLIO | B13: 0 | C13: 0 | D13: 0 | E13: 228
A14: LIBERACIÓN NACIONAL | B14: 3438 | C14: 4136 | D14: 3675 | E14: 5184
A15: MOVIMIENTO LIBERTARIO | B15: 52 | C15: 103 | D15: 395 | E15: 98
A16: RENOVACIÓN COSTARRICENSE | B16: 0 | C16: 219 | D16: 0 | E16: 0
A17: REPUBLICANO SOCIAL CRISTIANO | B17: 0 | C17: 0 | D17: 0 | E17: 2865
A18: UNIDAD SOCIAL CRISTIANA | B18: 3069 | C18: 224 | D18: 0 | E18: 0
A19: VOTOS NULOS | B19: 150 | C19: 113 | D19: 159 | E19: 172
A20: VOTOS EN BLANCO | B20: 75 | C20: 43 | D20: 60 | E20: 89
A22: Fuente: Cómputo de Votos Elecciones Municipales 2002, 2006, 2010 y 2016.

Sheet C45
A3: CUADRO 45 CANTÓN LOS CHILES : JUNTAS, ELECTORADO, VOTOS POR PARTIDO, NULOS Y BLANCOS
A4: PARA ALCALDÍAS, ELECCIONES MUNICIPALES 2002 - 2016
A6: JUNTAS, ELECTORADO, VOTOS POR PARTIDO, NULOS Y BLANCOS | B6: 2002 | C6: 2006 | D6: 2010 | E6: 2016
A8: JUNTAS | B8: 27 | C8: 23 | D8: 26 | E8: 28
A9: ELECTORADO | B9: 7199 | C9: 8112 | D9: 9243 | E9: 11212
A10: VOTOS RECIBIDOS | B10: 2425 | C10: 3629 | D10: 4244 | E10: 4860
A11: VOTOS VÁLIDOS | B11: 2372 | C11: 3532 | D11: 4142 | E11: 4729
A12: ACCIÓN CIUDADANA | B12: 0 | C12: 800 | D12: 1693 | E12: 762
A13: DE LOS TRABAJADORES | B13: 0 | C13: 0 | D13: 0 | E13: 256
A14: FRENTE AMPLIO | B14: 0 | C14: 0 | D14: 0 | E14: 828
A15: LIBERACIÓN NACIONAL | B15: 1303 | C15: 1353 | D15: 1477 | E15: 1715
A16: MOVIMIENTO LIBERTARIO | B16: 0 | C16: 852 | D16: 0 | E16: 103
A17: RENOVACIÓN COSTARRICENSE | B17: 0 | C17: 20 | D17: 451 | E17: 232
A18: REPUBLICANO SOCIAL CRISTIANO | B18: 0 | C18: 0 | D18: 0 | E18: 608
A19: UNIDAD SOCIAL CRISTIANA | B19: 1069 | C19: 300 | D19: 521 | E19: 225
A20: UNIÓN NACIONAL | B20: 0 | C20: 106 | D20: 0 | E20: 0
A21: UNIÓN PARA EL CAMBIO | B21: 0 | C21: 101 | D21: 0 | E21: 0
A22: VOTOS NULOS | B22: 28 | C22: 76 | D22: 83 | E22: 97
A23: VOTOS EN BLANCO | B23: 25 | C23: 21 | D23: 19 | E23: 34
A25: Fuente: Cómputo de Votos Elecciones Municipales 2002, 2006, 2010 y 2016.

Sheet C46
A3: CUADRO 46 CANTÓN GUATUSO : JUNTAS, ELECTORADO, VOTOS POR PARTIDO, NULOS Y BLANCOS
A4: PARA ALCALDÍAS, ELECCIONES MUNICIPALES 2002 - 2016
A6: JUNTAS, ELECTORADO, VOTOS POR PARTIDO, NULOS Y BLANCOS | B6: 2002 | C6: 2006 | D6: 2010 | E6: 2016
A8: JUNTAS | B8: 24 | C8: 19 | D8: 21 | E8: 23
A9: ELECTORADO | B9: 6812 | C9: 7637 | D9: 8950 | E9: 10396
A10: VOTOS RECIBIDOS | B10: 2724 | C10: 3005 | D10: 3817 | E10: 4769
A11: VOTOS VÁLIDOS | B11: 2620 | C11: 2904 | D11: 3723 | E11: 4609
A12: ACCIÓN CIUDADANA | B12: 0 | C12: 1129 | D12: 1862 | E12: 0
A13: COALICIÓN UNIDOS POR GUATUSO | B13: 0 | C13: 0 | D13: 0 | E13: 458
A14: FRENTE AMPLIO | B14: 0 | C14: 0 | D14: 95 | E14: 0
A15: LIBERACIÓN NACIONAL | B15: 1039 | C15: 1185 | D15: 926 | E15: 1325
A16: MOVIMIENTO LIBERTARIO | B16: 298 | C16: 0 | D16: 661 | E16: 461
A17: NUEVA GENERACIÓN | B17: 0 | C17: 0 | D17: 0 | E17: 607
A18: REPUBLICANO SOCIAL CRISTIANO | B18: 0 | C18: 0 | D18: 0 | E18: 957
A19: UNIDAD SOCIAL CRISTIANA | B19: 1283 | C19: 590 | D19: 179 | E19: 801
A20: VOTOS NULOS | B20: 77 | C20: 76 | D20: 75 | E20: 114
A21: VOTOS EN BLANCO | B21: 27 | C21: 25 | D21: 19 | E21: 46
A23: Fuente: Cómputo de Votos Elecciones Municipales 2002, 2006, 2010 y 2016.

Sheet C47
A3: CUADRO 47 CANTÓN CARTAGO : JUNTAS, ELECTORADO, VOTOS POR PARTIDO, NULOS Y BLANCOS
A4: PARA ALCALDÍAS, ELECCIONES MUNICIPALES 2002 - 2016
A6: JUNTAS, ELECTORADO, VOTOS POR PARTIDO, NULOS Y BLANCOS | B6: 2002 | C6: 2006 | D6: 2010 | E6: 2016
A8: JUNTAS | B8: 234 | C8: 158 | D8: 168 | E8: 183
A9: ELECTORADO | B9: 86921 | C9: 97160 | D9: 106013 | E9: 117991
A10: VOTOS RECIBIDOS | B10: 13241 | C10: 20978 | D10: 24575 | E10: 42281
A11: VOTOS VÁLIDOS | B11: 12755 | C11: 20533 | D11: 24106 | E11: 41233
A12: ACCESIBILIDAD SIN EXCLUSIÓN | B12: 0 | C12: 0 | D12: 0 | E12: 2083
A13: ACCIÓN CIUDADANA | B13: 1660 | C13: 1479 | D13: 0 | E13: 2887
A14: ALIANZA DEMÓCRATA CRISTIANA | B14: 0 | C14: 0 | D14: 0 | E14: 6463
A15: AUTÉNTICO TURRIALBEÑO CARTAGINÉS | B15: 0 | C15: 39 | D15: 0 | E15: 0
A16: COALICIÓN CARTAGO UNIDO | B16: 0 | C16: 0 | D16: 11353 | E16: 0
A17: FRENTE AMPLIO | B17: 0 | C17: 0 | D17: 0 | E17: 2112
A18: FUERZA DEMOCRÁTICA | B18: 56 | C18: 0 | D18: 0 | E18: 0
A19: LIBERACIÓN NACIONAL | B19: 4034 | C19: 10689 | D19: 12753 | E19: 15870
A20: MOVIMIENTO LIBERTARIO | B20: 200 | C20: 3117 | D20: 0 | E20: 1090
A21: NUEVA GENERACIÓN | B21: 0 | C21: 0 | D21: 0 | E21: 476
A22: RENOVACIÓN CARTAGO | B22: 0 | C22: 0 | D22: 0 | E22: 2944
A23: REPUBLICANO SOCIAL CRISTIANO | B23: 0 | C23: 0 | D23: 0 | E23: 825
A24: UNIDAD SOCIAL CRISTIANA | B24: 6805 | C24: 2009 | D24: 0 | E24: 5940
A25: UNIÓN NACIONAL | B25: 0 | C25: 305 | D25: 0 | E25: 0
A26: VERDE | B26: 0 | C26: 2895 | D26: 0 | E26: 543
A27: VOTOS NULOS | B27: 357 | C27: 314 | D27: 356 | E27: 781
A28: VOTOS EN BLANCO | B28: 129 | C28: 131 | D28: 113 | E28: 267
A30: Fuente: Cómputo de Votos Elecciones Municipales 2002, 2006, 2010 y 2016.

Sheet C48
A3: CUADRO 48 CANTÓN PARAÍSO : JUNTAS, ELECTORADO, VOTOS POR PARTIDO, NULOS Y BLANCOS
A4: PARA ALCALDÍAS, ELECCIONES MUNICIPALES 2002 - 2016
A6: JUNTAS, ELECTORADO, VOTOS POR PARTIDO, NULOS Y BLANCOS | B6: 2002 | C6: 2006 | D6: 2010 | E6: 2016
A8: JUNTAS | B8: 88 | C8: 61 | D8: 68 | E8: 74
A9: ELECTORADO | B9: 31254 | C9: 35636 | D9: 39836 | E9: 44765
A10: VOTOS RECIBIDOS | B10: 8079 | C10: 8239 | D10: 14188 | E10: 19127
A11: VOTOS VÁLIDOS | B11: 7794 | C11: 7958 | D11: 13807 | E11: 18383
A12: ACCESIBILIDAD SIN EXCLUSIÓN | B12: 0 | C12: 0 | D12: 0 | E12: 5431
A13: ACCIÓN CIUDADANA | B13: 376 | C13: 1954 | D13: 0 | E13: 563
A14: ALIANZA DEMÓCRATA CRISTIANA | B14: 0 | C14: 0 | D14: 0 | E14: 1008
A15: AUTÉNTICO PARAÍSEÑO | B15: 3696 | C15: 0 | D15: 0 | E15: 0
A16: AUTÉNTICO TURRIALBEÑO CARTAGINÉS | B16: 0 | C16: 124 | D16: 0 | E16: 0
A17: FRENTE AMPLIO | B17: 0 | C17: 0 | D17: 418 | E17: 436
A18: INTEGRACIÓN NACIONAL | B18: 154 | C18: 0 | D18: 0 | E18: 0
A19: LIBERACIÓN NACIONAL | B19: 2432 | C19: 1317 | D19: 2694 | E19: 3128
A20: MOVIMIENTO LIBERTARIO | B20: 0 | C20: 3476 | D20: 2893 | E20: 522
A21: NUEVA GENERACIÓN | B21: 0 | C21: 0 | D21: 0 | E21: 1825
A22: RENOVACIÓN COSTARRICENSE | B22: 0 | C22: 0 | D22: 0 | E22: 241
A23: UNIDAD SOCIAL CRISTIANA | B23: 1136 | C23: 1087 | D23: 5327 | E23: 1721
A24: UNIÓN AGRÍCOLA CARTAGINÉS | B24: 0 | C24: 0 | D24: 1863 | E24: 0
A25: VERDE | B25: 0 | C25: 0 | D25: 612 | E25: 3508
A26: VOTOS NULOS | B26: 222 | C26: 223 | D26: 326 | E26: 576
A27: VOTOS EN BLANCO | B27: 63 | C27: 58 | D27: 55 | E27: 168
A29: Fuente: Cómputo de Votos Elecciones Municipales 2002, 2006, 2010 y 2016.

Sheet C49
A3: CUADRO 49 CANTÓN LA UNIÓN : JUNTAS, ELECTORADO, VOTOS POR PARTIDO, NULOS Y BLANCOS
A4: PARA ALCALDÍAS, ELECCIONES MUNICIPALES 2002 - 2016
A6: JUNTAS, ELECTORADO, VOTOS POR PARTIDO, NULOS Y BLANCOS | B6: 2002 | C6: 2006 | D6: 2010 | E6: 2016
A8: JUNTAS | B8: 123 | C8: 87 | D8: 95 | E8: 106
A9: ELECTORADO | B9: 46031 | C9: 52450 | D9: 59152 | E9: 67581
A10: VOTOS RECIBIDOS | B10: 8264 | C10: 10869 | D10: 12877 | E10: 19294
A11: VOTOS VÁLIDOS | B11: 7928 | C11: 10586 | D11: 12679 | E11: 18873
A12: ACCESIBILIDAD SIN EXCLUSIÓN | B12: 0 | C12: 0 | D12: 0 | E12: 212
A13: ACCIÓN CIUDADANA | B13: 876 | C13: 793 | D13: 1994 | E13: 924
A14: ALIANZA DEMÓCRATA CRISTIANA | B14: 0 | C14: 0 | D14: 0 | E14: 1817
A15: ALIANZA SOCIAL POR LA UNIÓN | B15: 0 | C15: 0 | D15: 0 | E15: 3107
A16: AUTÉNTICO PILARICO | B16: 0 | C16: 454 | D16: 0 | E16: 0
A17: FRENTE AMPLIO | B17: 0 | C17: 0 | D17: 0 | E17: 1087
A18: FUERZA DEMOCRÁTICA | B18: 319 | C18: 0 | D18: 0 | E18: 0
A19: INDEPENDIENTE OBRERO | B19: 2502 | C19: 0 | D19: 0 | E19: 0
A20: INTEGRACIÓN PROVINCIAL TRES | B20: 0 | C20: 37 | D20: 0 | E20: 0
A21: LIBERACIÓN NACIONAL | B21: 1665 | C21: 3490 | D21: 6575 | E21: 4652
A22: MOVIMIENTO LIBERTARIO | B22: 534 | C22: 936 | D22: 802 | E22: 954
A23: NUEVA GENERACIÓN | B23: 0 | C23: 0 | D23: 0 | E23: 360
A24: REPUBLICANO SOCIAL CRISTIANO | B24: 0 | C24: 0 | D24: 0 | E24: 591
A25: RESCATE CANTONAL LA UNIÓN | B25: 0 | C25: 0 | D25: 0 | E25: 2797
A26: UNIDAD SOCIAL CRISTIANA | B26: 2032 | C26: 3218 | D26: 3308 | E26: 1637
A27: UNIÓN NACIONAL | B27: 0 | C27: 1294 | D27: 0 | E27: 0
A28: UNIÓN PARA EL CAMBIO | B28: 0 | C28: 364 | D28: 0 | E28: 0
A29: VERDE | B29: 0 | C29: 0 | D29: 0 | E29: 735
A30: VOTOS NULOS | B30: 273 | C30: 226 | D30: 160 | E30: 333
A31: VOTOS EN BLANCO | B31: 63 | C31: 57 | D31: 38 | E31: 88
A33: Fuente: Cómputo de Votos Elecciones Municipales 2002, 2006, 2010 y 2016.

Sheet C50
A3: CUADRO 50 CANTÓN JIMÉNEZ : JUNTAS, ELECTORADO, VOTOS POR PARTIDO, NULOS Y BLANCOS
A4: PARA ALCALDÍAS, ELECCIONES MUNICIPALES 2002 - 2016
A6: JUNTAS, ELECTORADO, VOTOS POR PARTIDO, NULOS Y BLANCOS | B6: 2002 | C6: 2006 | D6: 2010 | E6: 2016
A8: JUNTAS | B8: 29 | C8: 20 | D8: 20 | E8: 22
A9: ELECTORADO | B9: 8749 | C9: 9688 | D9: 10600 | E9: 11681
A10: VOTOS RECIBIDOS | B10: 3910 | C10: 3591 | D10: 5573 | E10: 6529
A11: VOTOS VÁLIDOS | B11: 3763 | C11: 3466 | D11: 5440 | E11: 6236
A12: ACCESIBILIDAD SIN EXCLUSIÓN | B12: 0 | C12: 0 | D12: 0 | E12: 146
A13: ACCIÓN CIUDADANA | B13: 452 | C13: 313 | D13: 0 | E13: 1435
A14: ALIANZA DEMÓCRATA CRISTIANA | B14: 0 | C14: 0 | D14: 0 | E14: 170
A15: AUTÉNTICO TURRIALBEÑO CARTAGINÉS | B15: 0 | C15: 10 | D15: 0 | E15: 0
A16: FRENTE AMPLIO | B16: 0 | C16: 0 | D16: 0 | E16: 336
A17: LIBERACIÓN NACIONAL | B17: 2667 | C17: 1964 | D17: 2393 | E17: 3080
A18: MOVIMIENTO LIBERTARIO | B18: 0 | C18: 0 | D18: 630 | E18: 0
A19: UNIDAD SOCIAL CRISTIANA | B19: 644 | C19: 0 | D19: 2417 | E19: 1069
A20: UNIÓN PARA EL CAMBIO | B20: 0 | C20: 1138 | D20: 0 | E20: 0
A21: VERDE | B21: 0 | C21: 41 | D21: 0 | E21: 0
A22: VOTOS NULOS | B22: 124 | C22: 90 | D22: 105 | E22: 100
A23: VOTOS EN BLANCO | B23: 23 | C23: 35 | D23: 28 | E23: 193
A25: Fuente: Cómputo de Votos Elecciones Municipales 2002, 2006, 2010 y 2016.

Sheet C51
A3: CUADRO 51 CANTÓN TURRIALBA : JUNTAS, ELECTORADO, VOTOS POR PARTIDO, NULOS Y BLANCOS
A4: PARA ALCALDÍAS, ELECCIONES MUNICIPALES 2002 - 2016
A6: JUNTAS, ELECTORADO, VOTOS POR PARTIDO, NULOS Y BLANCOS | B6: 2002 | C6: 2006 | D6: 2010 | E6: 2016
A8: JUNTAS | B8: 144 | C8: 109 | D8: 115 | E8: 122
A9: ELECTORADO | B9: 44026 | C9: 48087 | D9: 51904 | E9: 55945
A10: VOTOS RECIBIDOS | B10: 10777 | C10: 11760 | D10: 16121 | E10: 20395
A11: VOTOS VÁLIDOS | B11: 10459 | C11: 11323 | D11: 15778 | E11: 19776
A12: ACCIÓN CIUDADANA | B12: 1901 | C12: 0 | D12: 3895 | E12: 6234
A13: ALIANZA DEMÓCRATA CRISTIANA | B13: 0 | C13: 0 | D13: 0 | E13: 659
A14: AUTÉNTICO TURRIALBEÑO CARTAGINÉS | B14: 0 | C14: 372 | D14: 0 | E14: 0
A15: FRENTE AMPLIO | B15: 0 | C15: 0 | D15: 0 | E15: 1848
A16: FUERZA DEMOCRÁTICA | B16: 328 | C16: 0 | D16: 0 | E16: 0
A17: LIBERACIÓN NACIONAL | B17: 2210 | C17: 6758 | D17: 6915 | E17: 4363
A18: MOVIMIENTO LIBERTARIO | B18: 63 | C18: 0 | D18: 2170 | E18: 0
A19: NUEVA GENERACIÓN | B19: 0 | C19: 0 | D19: 0 | E19: 873
A20: REPUBLICANO SOCIAL CRISTIANO | B20: 0 | C20: 0 | D20: 0 | E20: 1512
A21: UNIDAD SOCIAL CRISTIANA | B21: 5957 | C21: 3906 | D21: 2798 | E21: 4287
A22: VERDE | B22: 0 | C22: 287 | D22: 0 | E22: 0
A23: VOTOS NULOS | B23: 209 | C23: 359 | D23: 285 | E23: 458
A24: VOTOS EN BLANCO | B24: 109 | C24: 78 | D24: 58 | E24: 161
A26: Fuente: Cómputo de Votos Elecciones Municipales 2002, 2006, 2010 y 2016.

Sheet C52
A3: CUADRO 52 CANTÓN ALVARADO : JUNTAS, ELECTORADO, VOTOS POR PARTIDO, NULOS Y BLANCOS
A4: PARA ALCALDÍAS, ELECCIONES MUNICIPALES 2002 - 2016
A6: JUNTAS, ELECTORADO, VOTOS POR PARTIDO, NULOS Y BLANCOS | B6: 2002 | C6: 2006 | D6: 2010 | E6: 2016
A8: JUNTAS | B8: 20 | C8: 17 | D8: 17 | E8: 19
A9: ELECTORADO | B9: 6770 | C9: 7679 | D9: 8697 | E9: 9985
A10: VOTOS RECIBIDOS | B10: 2622 | C10: 1948 | D10: 3611 | E10: 4830
A11: VOTOS VÁLIDOS | B11: 2524 | C11: 1781 | D11: 3433 | E11: 4654
A12: ACCIÓN CIUDADANA | B12: 654 | C12: 608 | D12: 0 | E12: 909
A13: ALIANZA DEMÓCRATA CRISTIANA | B13: 0 | C13: 0 | D13: 0 | E13: 136
A14: AUTÉNTICO TURRIALBEÑO CARTAGINÉS | B14: 0 | C14: 17 | D14: 0 | E14: 0
A15: FUERZA DEMOCRÁTICA | B15: 382 | C15: 0 | D15: 0 | E15: 0
A16: LIBERACIÓN NACIONAL | B16: 942 | C16: 1114 | D16: 1798 | E16: 1707
A17: NUEVA GENERACIÓN | B17: 0 | C17: 0 | D17: 0 | E17: 726
A18: REPUBLICANO SOCIAL CRISTIANO | B18: 0 | C18: 0 | D18: 0 | E18: 308
A19: RESTAURACIÓN NACIONAL | B19: 0 | C19: 0 | D19: 0 | E19: 96
A20: UNIDAD SOCIAL CRISTIANA | B20: 546 | C20: 0 | D20: 0 | E20: 772
A21: UNIÓN AGRÍCOLA CARTAGINÉS | B21: 0 | C21: 0 | D21: 1635 | E21: 0
A22: VERDE | B22: 0 | C22: 42 | D22: 0 | E22: 0
A23: VOTOS NULOS | B23: 46 | C23: 56 | D23: 70 | E23: 128
A24: VOTOS EN BLANCO | B24: 52 | C24: 111 | D24: 108 | E24: 48
A26: Fuente: Cómputo de Votos Elecciones Municipales 2002, 2006, 2010 y 2016.

Sheet C53
A3: CUADRO 53 CANTÓN OREAMUNO : JUNTAS, ELECTORADO, VOTOS POR PARTIDO, NULOS Y BLANCOS
A4: PARA ALCALDÍAS, ELECCIONES MUNICIPALES 2002 - 2016
A6: JUNTAS, ELECTORADO, VOTOS POR PARTIDO, NULOS Y BLANCOS | B6: 2002 | C6: 2006 | D6: 2010 | E6: 2016
A8: JUNTAS | B8: 65 | C8: 44 | D8: 51 | E8: 56
A9: ELECTORADO | B9: 23696 | C9: 27124 | D9: 30700 | E9: 34952
A10: VOTOS RECIBIDOS | B10: 4662 | C10: 7650 | D10: 8151 | E10: 12108
A11: VOTOS VÁLIDOS | B11: 4507 | C11: 7475 | D11: 7911 | E11: 11717
A12: ACCESIBILIDAD SIN EXCLUSIÓN | B12: 0 | C12: 0 | D12: 971 | E12: 0
A13: ACCIÓN CIUDADANA | B13: 1019 | C13: 2257 | D13: 660 | E13: 2649
A14: ALIANZA DEMÓCRATA CRISTIANA | B14: 0 | C14: 0 | D14: 0 | E14: 1399
A15: FRENTE AMPLIO | B15: 0 | C15: 0 | D15: 0 | E15: 860
A16: FUERZA DEMOCRÁTICA | B16: 544 | C16: 0 | D16: 0 | E16: 0
A17: LIBERACIÓN NACIONAL | B17: 1155 | C17: 1889 | D17: 2880 | E17: 3255
A18: MOVIMIENTO LIBERTARIO | B18: 0 | C18: 251 | D18: 97 | E18: 176
A19: REPUBLICANO SOCIAL CRISTIANO | B19: 0 | C19: 0 | D19: 0 | E19: 547
A20: TRANSPARENCIA CARTAGINÉS | B20: 0 | C20: 0 | D20: 976 | E20: 0
A21: UNIDAD SOCIAL CRISTIANA | B21: 1257 | C21: 828 | D21: 2327 | E21: 2831
A22: UNIÓN AGRÍCOLA CARTAGINÉS | B22: 532 | C22: 0 | D22: 0 | E22: 0
A23: UNIÓN NACIONAL | B23: 0 | C23: 2250 | D23: 0 | E23: 0
A24: VOTOS NULOS | B24: 114 | C24: 126 | D24: 200 | E24: 298
A25: VOTOS EN BLANCO | B25: 41 | C25: 49 | D25: 40 | E25: 93
A27: Fuente: Cómputo de Votos Elecciones Municipales 2002, 2006, 2010 y 2016.

Sheet C54
A3: CUADRO 54 CANTÓN EL GUARCO : JUNTAS, ELECTORADO, VOTOS POR PARTIDO, NULOS Y BLANCOS
A4: PARA ALCALDÍAS, ELECCIONES MUNICIPALES 2002 - 2016
A6: JUNTAS, ELECTORADO, VOTOS POR PARTIDO, NULOS Y BLANCOS | B6: 2002 | C6: 2006 | D6: 2010 | E6: 2016
A8: JUNTAS | B8: 58 | C8: 41 | D8: 47 | E8: 47
A9: ELECTORADO | B9: 20725 | C9: 23864 | D9: 27571 | E9: 31290
A10: VOTOS RECIBIDOS | B10: 5061 | C10: 5763 | D10: 7138 | E10: 12462
A11: VOTOS VÁLIDOS | B11: 4868 | C11: 5616 | D11: 7001 | E11: 12129
A12: ACCIÓN CIUDADANA | B12: 939 | C12: 1169 | D12: 3482 | E12: 760
A13: ALIANZA DEMÓCRATA CRISTIANA | B13: 0 | C13: 0 | D13: 0 | E13: 737
A14: AUTÉNTICO TURRIALBEÑO CARTAGINÉS | B14: 0 | C14: 30 | D14: 0 | E14: 0
A15: FRENTE AMPLIO | B15: 0 | C15: 0 | D15: 0 | E15: 712
A16: FUERZA DEMOCRÁTICA | B16: 44 | C16: 0 | D16: 0 | E16: 0
A17: LIBERACIÓN NACIONAL | B17: 1838 | C17: 3064 | D17: 3519 | E17: 6479
A18: MOVIMIENTO LIBERTARIO | B18: 33 | C18: 0 | D18: 0 | E18: 125
A19: REPUBLICANO SOCIAL CRISTIANO | B19: 0 | C19: 0 | D19: 0 | E19: 71
A20: UNIDAD SOCIAL CRISTIANA | B20: 2014 | C20: 1353 | D20: 0 | E20: 760
A21: UNIÓN GUARQUEÑO | B21: 0 | C21: 0 | D21: 0 | E21: 2485
A22: VOTOS NULOS | B22: 135 | C22: 110 | D22: 111 | E22: 252
A23: VOTOS EN BLANCO | B23: 58 | C23: 37 | D23: 26 | E23: 81
A25: Fuente: Cómputo de Votos Elecciones Municipales 2002, 2006, 2010 y 2016.

Sheet C55
A3: CUADRO 55 CANTÓN HEREDIA : JUNTAS, ELECTORADO, VOTOS POR PARTIDO, NULOS Y BLANCOS
A4: PARA ALCALDÍAS, ELECCIONES MUNICIPALES 2002 - 2016
A6: JUNTAS, ELECTORADO, VOTOS POR PARTIDO, NULOS Y BLANCOS | B6: 2002 | C6: 2006 | D6: 2010 | E6: 2016
A8: JUNTAS | B8: 181 | C8: 117 | D8: 129 | E8: 137
A9: ELECTORADO | B9: 70016 | C9: 78213 | D9: 85356 | E9: 93490
A10: VOTOS RECIBIDOS | B10: 7770 | C10: 11639 | D10: 15404 | E10: 25685
A11: VOTOS VÁLIDOS | B11: 7522 | C11: 11474 | D11: 15227 | E11: 25238
A12: ACCIÓN CIUDADANA | B12: 1505 | C12: 1534 | D12: 1766 | E12: 1903
A13: FRENTE AMPLIO | B13: 0 | C13: 0 | D13: 0 | E13: 1425
A14: HUMANISTA DE HEREDIA | B14: 81 | C14: 0 | D14: 0 | E14: 0
A15: LIBERACIÓN NACIONAL | B15: 2875 | C15: 6177 | D15: 9990 | E15: 13735
A16: MOVIMIENTO LIBERTARIO | B16: 115 | C16: 258 | D16: 3013 | E16: 583
A17: NUEVA GENERACIÓN | B17: 0 | C17: 0 | D17: 0 | E17: 1231
A18: RENOVACIÓN COSTARRICENSE | B18: 0 | C18: 277 | D18: 0 | E18: 361
A19: RESTAURACIÓN HEREDIANA | B19: 0 | C19: 0 | D19: 458 | E19: 0
A20: UNIDAD SOCIAL CRISTIANA | B20: 2946 | C20: 2840 | D20: 0 | E20: 6000
A21: UNIÓN PARA EL CAMBIO | B21: 0 | C21: 388 | D21: 0 | E21: 0
A22: VOTOS NULOS | B22: 177 | C22: 129 | D22: 137 | E22: 331
A23: VOTOS EN BLANCO | B23: 71 | C23: 36 | D23: 40 | E23: 116
A25: Fuente: Cómputo de Votos Elecciones Municipales 2002, 2006, 2010 y 2016.

Sheet C56
A3: CUADRO 56 CANTÓN BARVA : JUNTAS, ELECTORADO, VOTOS POR PARTIDO, NULOS Y BLANCOS
A4: PARA ALCALDÍAS, ELECCIONES MUNICIPALES 2002 - 2016
A6: JUNTAS, ELECTORADO, VOTOS POR PARTIDO, NULOS Y BLANCOS | B6: 2002 | C6: 2006 | D6: 2010 | E6: 2016
A8: JUNTAS | B8: 57 | C8: 41 | D8: 46 | E8: 50
A9: ELECTORADO | B9: 20564 | C9: 24081 | D9: 27552 | E9: 31461
A10: VOTOS RECIBIDOS | B10: 5624 | C10: 7997 | D10: 10017 | E10: 11248
A11: VOTOS VÁLIDOS | B11: 5437 | C11: 7857 | D11: 9785 | E11: 11026
A12: ACCIÓN CIUDADANA | B12: 1055 | C12: 1466 | D12: 850 | E12: 2276
A13: BARVA UNIDA | B13: 0 | C13: 0 | D13: 0 | E13: 628
A14: COALICIÓN BARVA UNIDA | B14: 0 | C14: 0 | D14: 811 | E14: 0
A15: COALICIÓN CAMBIO 2000 | B15: 58 | C15: 0 | D15: 0 | E15: 0
A16: FRENTE AMPLIO | B16: 0 | C16: 0 | D16: 0 | E16: 3002
A17: LIBERACIÓN NACIONAL | B17: 1006 | C17: 2434 | D17: 4030 | E17: 2469
A18: MOVIMIENTO LIBERTARIO | B18: 979 | C18: 776 | D18: 725 | E18: 170
A19: RENOVACIÓN COSTARRICENSE | B19: 868 | C19: 827 | D19: 658 | E19: 132
A20: REPUBLICANO SOCIAL CRISTIANO | B20: 0 | C20: 0 | D20: 0 | E20: 1055
A21: RESTAURACIÓN HEREDIANA | B21: 0 | C21: 0 | D21: 167 | E21: 0
A22: UNIDAD SOCIAL CRISTIANA | B22: 1471 | C22: 1861 | D22: 2544 | E22: 1294
A23: UNIÓN PARA EL CAMBIO | B23: 0 | C23: 493 | D23: 0 | E23: 0
A24: VOTOS NULOS | B24: 135 | C24: 104 | D24: 194 | E24: 171
A25: VOTOS EN BLANCO | B25: 52 | C25: 36 | D25: 38 | E25: 51
A27: Fuente: Cómputo de Votos Elecciones Municipales 2002, 2006, 2010 y 2016.

Sheet C57
A3: CUADRO 57 CANTÓN SANTO DOMINGO : JUNTAS, ELECTORADO, VOTOS POR PARTIDO, NULOS Y BLANCOS
A4: PARA ALCALDÍAS, ELECCIONES MUNICIPALES 2002 - 2016
A6: JUNTAS, ELECTORADO, VOTOS POR PARTIDO, NULOS Y BLANCOS | B6: 2002 | C6: 2006 | D6: 2010 | E6: 2016
A8: JUNTAS | B8: 65 | C8: 44 | D8: 49 | E8: 52
A9: ELECTORADO | B9: 24574 | C9: 27560 | D9: 30722 | E9: 33424
A10: VOTOS RECIBIDOS | B10: 4925 | C10: 6413 | D10: 9803 | E10: 12069
A11: VOTOS VÁLIDOS | B11: 4792 | C11: 6316 | D11: 9657 | E11: 11819
A12: ACCIÓN CIUDADANA | B12: 1225 | C12: 1229 | D12: 680 | E12: 1520
A13: LIBERACIÓN NACIONAL | B13: 1940 | C13: 2413 | D13: 3438 | E13: 3572
A14: MOVIMIENTO AVANCE SANTO DOMINGO | B14: 0 | C14: 0 | D14: 2164 | E14: 3127
A15: MOVIMIENTO LIBERTARIO | B15: 0 | C15: 0 | D15: 3375 | E15: 518
A16: NUEVA GENERACIÓN | B16: 0 | C16: 0 | D16: 0 | E16: 431
A17: REPUBLICANO SOCIAL CRISTIANO | B17: 0 | C17: 0 | D17: 0 | E17: 217
A18: UNIDAD SOCIAL CRISTIANA | B18: 1627 | C18: 1366 | D18: 0 | E18: 2434
A19: UNIÓN PARA EL CAMBIO | B19: 0 | C19: 1308 | D19: 0 | E19: 0
A20: VOTOS NULOS | B20: 92 | C20: 77 | D20: 117 | E20: 209
A21: VOTOS EN BLANCO | B21: 41 | C21: 20 | D21: 29 | E21: 41
A23: Fuente: Cómputo de Votos Elecciones Municipales 2002, 2006, 2010 y 2016.

Sheet C58
A3: CUADRO 58 CANTÓN SANTA BÁRBARA : JUNTAS, ELECTORADO, VOTOS POR PARTIDO, NULOS Y BLANCOS
A4: PARA ALCALDÍAS, ELECCIONES MUNICIPALES 2002 - 2016
A6: JUNTAS, ELECTORADO, VOTOS POR PARTIDO, NULOS Y BLANCOS | B6: 2002 | C6: 2006 | D6: 2010 | E6: 2016
A8: JUNTAS | B8: 46 | C8: 33 | D8: 38 | E8: 42
A9: ELECTORADO | B9: 17165 | C9: 19882 | D9: 22788 | E9: 25704
A10: VOTOS RECIBIDOS | B10: 3049 | C10: 4934 | D10: 6056 | E10: 9501
A11: VOTOS VÁLIDOS | B11: 2942 | C11: 4830 | D11: 5926 | E11: 9300
A12: ACCESIBILIDAD SIN EXCLUSIÓN | B12: 0 | C12: 0 | D12: 1624 | E12: 0
A13: ACCIÓN CIUDADANA | B13: 499 | C13: 716 | D13: 0 | E13: 802
A14: COALICIÓN CAMBIO 2000 | B14: 92 | C14: 0 | D14: 0 | E14: 0
A15: FRENTE AMPLIO | B15: 0 | C15: 0 | D15: 0 | E15: 1085
A16: INTEGRACIÓN BARBAREÑA | B16: 0 | C16: 1878 | D16: 873 | E16: 0
A17: LIBERACIÓN NACIONAL | B17: 1081 | C17: 2236 | D17: 2082 | E17: 3157
A18: MOVIMIENTO LIBERTARIO | B18: 0 | C18: 0 | D18: 919 | E18: 132
A19: NUEVA GENERACIÓN | B19: 0 | C19: 0 | D19: 0 | E19: 1350
A20: REPUBLICANO SOCIAL CRISTIANO | B20: 0 | C20: 0 | D20: 0 | E20: 1625
A21: UNIDAD SOCIAL CRISTIANA | B21: 1270 | C21: 0 | D21: 428 | E21: 1149
A22: VOTOS NULOS | B22: 57 | C22: 71 | D22: 104 | E22: 161
A23: VOTOS EN BLANCO | B23: 50 | C23: 33 | D23: 26 | E23: 40
A25: Fuente: Cómputo de Votos Elecciones Municipales 2002, 2006, 2010 y 2016.

Sheet C59
A3: CUADRO 59 CANTÓN SAN RAFAEL : JUNTAS, ELECTORADO, VOTOS POR PARTIDO, NULOS Y BLANCOS
A4: PARA ALCALDÍAS, ELECCIONES MUNICIPALES 2002 - 2016
A6: JUNTAS, ELECTORADO, VOTOS POR PARTIDO, NULOS Y BLANCOS | B6: 2002 | C6: 2006 | D6: 2010 | E6: 2016
A8: JUNTAS | B8: 62 | C8: 43 | D8: 46 | E8: 51
A9: ELECTORADO | B9: 23171 | C9: 26447 | D9: 29538 | E9: 33543
A10: VOTOS RECIBIDOS | B10: 3881 | C10: 4593 | D10: 5897 | E10: 10895
A11: VOTOS VÁLIDOS | B11: 3715 | C11: 4496 | D11: 5772 | E11: 10648
A12: ACCIÓN CIUDADANA | B12: 607 | C12: 2741 | D12: 1122 | E12: 1898
A13: FRENTE AMPLIO | B13: 0 | C13: 0 | D13: 0 | E13: 1249
A14: INTEGRACIÓN NACIONAL | B14: 714 | C14: 0 | D14: 0 | E14: 0
A15: LIBERACIÓN NACIONAL | B15: 1243 | C15: 1431 | D15: 2826 | E15: 4498
A16: MOVIMIENTO LIBERTARIO | B16: 231 | C16: 245 | D16: 1824 | E16: 588
A17: REPUBLICANO SOCIAL CRISTIANO | B17: 0 | C17: 0 | D17: 0 | E17: 790
A18: UNIDAD SOCIAL CRISTIANA | B18: 920 | C18: 0 | D18: 0 | E18: 1625
A19: VANGUARDIA POPULAR | B19: 0 | C19: 79 | D19: 0 | E19: 0
A20: VOTOS NULOS | B20: 136 | C20: 71 | D20: 107 | E20: 196
A21: VOTOS EN BLANCO | B21: 30 | C21: 26 | D21: 18 | E21: 51
A23: Fuente: Cómputo de Votos Elecciones Municipales 2002, 2006, 2010 y 2016.

Sheet C60
A3: CUADRO 60 CANTÓN SAN ISIDRO : JUNTAS, ELECTORADO, VOTOS POR PARTIDO, NULOS Y BLANCOS
A4: PARA ALCALDÍAS, ELECCIONES MUNICIPALES 2002 - 2016
A6: JUNTAS, ELECTORADO, VOTOS POR PARTIDO, NULOS Y BLANCOS | B6: 2002 | C6: 2006 | D6: 2010 | E6: 2016
A8: JUNTAS | B8: 28 | C8: 18 | D8: 22 | E8: 26
A9: ELECTORADO | B9: 9952 | C9: 11428 | D9: 13112 | E9: 15301
A10: VOTOS RECIBIDOS | B10: 1995 | C10: 2863 | D10: 4596 | E10: 6797
A11: VOTOS VÁLIDOS | B11: 1959 | C11: 2815 | D11: 4515 | E11: 6682
A12: ACCIÓN CIUDADANA | B12: 248 | C12: 651 | D12: 1419 | E12: 509
A13: FRENTE AMPLIO | B13: 0 | C13: 0 | D13: 0 | E13: 289
A14: LIBERACIÓN NACIONAL | B14: 996 | C14: 2164 | D14: 1765 | E14: 2179
A15: MOVIMIENTO LIBERTARIO | B15: 0 | C15: 0 | D15: 178 | E15: 56
A16: REPUBLICANO SOCIAL CRISTIANO | B16: 0 | C16: 0 | D16: 0 | E16: 49
A17: UNIDAD SOCIAL CRISTIANA | B17: 619 | C17: 0 | D17: 1153 | E17: 3600
A18: UNIÓN GENERAL | B18: 96 | C18: 0 | D18: 0 | E18: 0
A19: VOTOS NULOS | B19: 26 | C19: 33 | D19: 64 | E19: 83
A20: VOTOS EN BLANCO | B20: 10 | C20: 15 | D20: 17 | E20: 32
A22: Fuente: Cómputo de Votos Elecciones Municipales 2002, 2006, 2010 y 2016.

Sheet C61
A3: CUADRO 61 CANTÓN BELÉN : JUNTAS, ELECTORADO, VOTOS POR PARTIDO, NULOS Y BLANCOS
A4: PARA ALCALDÍAS, ELECCIONES MUNICIPALES 2002 - 2016
A6: JUNTAS, ELECTORADO, VOTOS POR PARTIDO, NULOS Y BLANCOS | B6: 2002 | C6: 2006 | D6: 2010 | E6: 2016
A8: JUNTAS | B8: 33 | C8: 22 | D8: 24 | E8: 27
A9: ELECTORADO | B9: 12586 | C9: 14339 | D9: 15982 | E9: 18013
A10: VOTOS RECIBIDOS | B10: 3632 | C10: 4626 | D10: 5869 | E10: 8060
A11: VOTOS VÁLIDOS | B11: 3584 | C11: 4550 | D11: 5780 | E11: 7961
A12: ACCIÓN CIUDADANA | B12: 408 | C12: 412 | D12: 0 | E12: 0
A13: COALICIÓN ALIANZA POR BELEN | B13: 0 | C13: 0 | D13: 0 | E13: 1242
A14: INDEPENDIENTE BELEMITA | B14: 546 | C14: 721 | D14: 740 | E14: 0
A15: INTEGRACIÓN NACIONAL | B15: 0 | C15: 261 | D15: 0 | E15: 0
A16: LIBERACIÓN NACIONAL | B16: 1679 | C16: 1423 | D16: 1814 | E16: 1824
A17: MOVIMIENTO LIBERTARIO | B17: 0 | C17: 0 | D17: 0 | E17: 71
A18: REPUBLICANO SOCIAL CRISTIANO | B18: 0 | C18: 0 | D18: 0 | E18: 848
A19: UNIDAD SOCIAL CRISTIANA | B19: 951 | C19: 1733 | D19: 3226 | E19: 3976
A20: VOTOS NULOS | B20: 33 | C20: 54 | D20: 72 | E20: 73
A21: VOTOS EN BLANCO | B21: 15 | C21: 22 | D21: 17 | E21: 26
A23: Fuente: Cómputo de Votos Elecciones Municipales 2002, 2006, 2010 y 2016.

Sheet C62
A3: CUADRO 62 CANTÓN FLORES : JUNTAS, ELECTORADO, VOTOS POR PARTIDO, NULOS Y BLANCOS
A4: PARA ALCALDÍAS, ELECCIONES MUNICIPALES 2002 - 2016
A6: JUNTAS, ELECTORADO, VOTOS POR PARTIDO, NULOS Y BLANCOS | B6: 2002 | C6: 2006 | D6: 2010 | E6: 2016
A8: JUNTAS | B8: 27 | C8: 18 | D8: 22 | E8: 24
A9: ELECTORADO | B9: 10267 | C9: 11803 | D9: 13761 | E9: 15949
A10: VOTOS RECIBIDOS | B10: 2752 | C10: 3645 | D10: 5012 | E10: 7091
A11: VOTOS VÁLIDOS | B11: 2703 | C11: 3585 | D11: 4917 | E11: 6969
A12: ACCIÓN CIUDADANA | B12: 937 | C12: 1297 | D12: 0 | E12: 1355
A13: FRENTE AMPLIO | B13: 0 | C13: 0 | D13: 0 | E13: 441
A14: LIBERACIÓN NACIONAL | B14: 640 | C14: 1089 | D14: 1748 | E14: 1968
A15: REPUBLICANO SOCIAL CRISTIANO | B15: 0 | C15: 0 | D15: 0 | E15: 131
A16: RESTAURACIÓN NACIONAL | B16: 0 | C16: 0 | D16: 0 | E16: 116
A17: TODO POR FLORES | B17: 0 | C17: 0 | D17: 1732 | E17: 1349
A18: UNIDAD SOCIAL CRISTIANA | B18: 1126 | C18: 1199 | D18: 1437 | E18: 1609
A19: VOTOS NULOS | B19: 38 | C19: 44 | D19: 82 | E19: 103
A20: VOTOS EN BLANCO | B20: 11 | C20: 16 | D20: 13 | E20: 19
A22: Fuente: Cómputo de Votos Elecciones Municipales 2002, 2006, 2010 y 2016.

Sheet C63
A3: CUADRO 63 CANTÓN SAN PABLO : JUNTAS, ELECTORADO, VOTOS POR PARTIDO, NULOS Y BLANCOS
A4: PARA ALCALDÍAS, ELECCIONES MUNICIPALES 2002 - 2016
A6: JUNTAS, ELECTORADO, VOTOS POR PARTIDO, NULOS Y BLANCOS | B6: 2002 | C6: 2006 | D6: 2010 | E6: 2016
A8: JUNTAS | B8: 36 | C8: 25 | D8: 28 | E8: 32
A9: ELECTORADO | B9: 13445 | C9: 15619 | D9: 18343 | E9: 21083
A10: VOTOS RECIBIDOS | B10: 3032 | C10: 4280 | D10: 5694 | E10: 7786
A11: VOTOS VÁLIDOS | B11: 2969 | C11: 4224 | D11: 5620 | E11: 7658
A12: ACCIÓN CIUDADANA | B12: 458 | C12: 355 | D12: 582 | E12: 454
A13: FRENTE AMPLIO | B13: 0 | C13: 0 | D13: 0 | E13: 441
A14: INDEPENDIENTE OBRERO | B14: 77 | C14: 0 | D14: 0 | E14: 0
A15: LIBERACIÓN NACIONAL | B15: 786 | C15: 1456 | D15: 1631 | E15: 2275
A16: MOVIMIENTO LIBERTARIO | B16: 0 | C16: 0 | D16: 374 | E16: 77
A17: NUEVA GENERACIÓN | B17: 0 | C17: 0 | D17: 0 | E17: 330
A18: REPUBLICANO SOCIAL CRISTIANO | B18: 0 | C18: 0 | D18: 0 | E18: 47
A19: RESTAURACIÓN NACIONAL | B19: 0 | C19: 0 | D19: 0 | E19: 523
A20: UNIDAD SOCIAL CRISTIANA | B20: 1648 | C20: 1983 | D20: 3033 | E20: 3511
A21: UNIÓN NACIONAL | B21: 0 | C21: 430 | D21: 0 | E21: 0
A22: VOTOS NULOS | B22: 40 | C22: 38 | D22: 67 | E22: 106
A23: VOTOS EN BLANCO | B23: 23 | C23: 18 | D23: 7 | E23: 22
A25: Fuente: Cómputo de Votos Elecciones Municipales 2002, 2006, 2010 y 2016.

Sheet C64
A3: CUADRO 64 CANTÓN SARAPIQUÍ : JUNTAS, ELECTORADO, VOTOS POR PARTIDO, NULOS Y BLANCOS
A4: PARA ALCALDÍAS, ELECCIONES MUNICIPALES 2002 - 2016
A6: JUNTAS, ELECTORADO, VOTOS POR PARTIDO, NULOS Y BLANCOS | B6: 2002 | C6: 2006 | D6: 2010 | E6: 2016
A8: JUNTAS | B8: 70 | C8: 59 | D8: 64 | E8: 70
A9: ELECTORADO | B9: 19243 | C9: 22627 | D9: 26617 | E9: 31706
A10: VOTOS RECIBIDOS | B10: 5911 | C10: 7291 | D10: 6911 | E10: 12078
A11: VOTOS VÁLIDOS | B11: 5683 | C11: 7098 | D11: 6750 | E11: 11714
A12: ACCIÓN CIUDADANA | B12: 350 | C12: 1899 | D12: 0 | E12: 1390
A13: AUTÉNTICO SARAPIQUEÑO | B13: 799 | C13: 0 | D13: 0 | E13: 0
A14: FRENTE AMPLIO | B14: 0 | C14: 0 | D14: 0 | E14: 825
A15: INDEPENDIENTE OBRERO | B15: 68 | C15: 0 | D15: 0 | E15: 0
A16: LIBERACIÓN NACIONAL | B16: 1825 | C16: 4230 | D16: 5543 | E16: 5027
A17: MOVIMIENTO LIBERTARIO | B17: 221 | C17: 0 | D17: 1207 | E17: 149
A18: NUEVA GENERACIÓN | B18: 0 | C18: 0 | D18: 0 | E18: 776
A19: RENOVACIÓN COSTARRICENSE | B19: 819 | C19: 0 | D19: 0 | E19: 162
A20: REPUBLICANO SOCIAL CRISTIANO | B20: 0 | C20: 0 | D20: 0 | E20: 528
A21: UNIDAD SOCIAL CRISTIANA | B21: 1601 | C21: 969 | D21: 0 | E21: 2857
A22: VOTOS NULOS | B22: 175 | C22: 152 | D22: 110 | E22: 275
A23: VOTOS EN BLANCO | B23: 53 | C23: 41 | D23: 51 | E23: 89
A25: Fuente: Cómputo de Votos Elecciones Municipales 2002, 2006, 2010 y 2016.

Sheet C65
A3: CUADRO 65 CANTÓN LIBERIA : JUNTAS, ELECTORADO, VOTOS POR PARTIDO, NULOS Y BLANCOS
A4: PARA ALCALDÍAS, ELECCIONES MUNICIPALES 2002 - 2016
A6: JUNTAS, ELECTORADO, VOTOS POR PARTIDO, NULOS Y BLANCOS | B6: 2002 | C6: 2006 | D6: 2010 | E6: 2016
A8: JUNTAS | B8: 76 | C8: 60 | D8: 66 | E8: 69
A9: ELECTORADO | B9: 27618 | C9: 32303 | D9: 37797 | E9: 43058
A10: VOTOS RECIBIDOS | B10: 4909 | C10: 7863 | D10: 10888 | E10: 13427
A11: VOTOS VÁLIDOS | B11: 4724 | C11: 7665 | D11: 10694 | E11: 13113
A12: ACCESIBILIDAD SIN EXCLUSIÓN | B12: 0 | C12: 0 | D12: 4279 | E12: 3046
A13: ACCIÓN CIUDADANA | B13: 300 | C13: 443 | D13: 1522 | E13: 2104
A14: COALICIÓN UNIÓN LIBERIANA | B14: 0 | C14: 0 | D14: 1234 | E14: 0
A15: FRENTE AMPLIO | B15: 0 | C15: 0 | D15: 0 | E15: 380
A16: FUERZA DEMOCRÁTICA | B16: 63 | C16: 0 | D16: 0 | E16: 0
A17: GUANACASTE INDEPENDIENTE | B17: 0 | C17: 1586 | D17: 0 | E17: 0
A18: LIBERACIÓN NACIONAL | B18: 1968 | C18: 3351 | D18: 3659 | E18: 3193
A19: MOVIMIENTO LIBERTARIO | B19: 29 | C19: 0 | D19: 0 | E19: 804
A20: NUEVA GENERACIÓN | B20: 0 | C20: 0 | D20: 0 | E20: 1177
A21: RENOVACIÓN COSTARRICENSE | B21: 546 | C21: 0 | D21: 0 | E21: 0
A22: REPUBLICANO SOCIAL CRISTIANO | B22: 0 | C22: 0 | D22: 0 | E22: 188
A23: UNIDAD SOCIAL CRISTIANA | B23: 1818 | C23: 867 | D23: 0 | E23: 2221
A24: UNIÓN NACIONAL | B24: 0 | C24: 18 | D24: 0 | E24: 0
A25: UNIÓN PARA EL CAMBIO | B25: 0 | C25: 1400 | D25: 0 | E25: 0
A26: VOTOS NULOS | B26: 137 | C26: 143 | D26: 156 | E26: 240
A27: VOTOS EN BLANCO | B27: 48 | C27: 55 | D27: 38 | E27: 74
A29: Fuente: Cómputo de Votos Elecciones Municipales 2002, 2006, 2010 y 2016.

Sheet C66
A3: CUADRO 66 CANTÓN NICOYA: JUNTAS, ELECTORADO, VOTOS POR PARTIDO, NULOS Y BLANCOS
A4: PARA ALCALDÍAS, ELECCIONES MUNICIPALES 2002 - 2016
A6: JUNTAS, ELECTORADO, VOTOS POR PARTIDO, NULOS Y BLANCOS | B6: 2002 | C6: 2006 | D6: 2010 | E6: 2016
A8: JUNTAS | B8: 108 | C8: 87 | D8: 92 | E8: 98
A9: ELECTORADO | B9: 28553 | C9: 31707 | D9: 35669 | E9: 39567
A10: VOTOS RECIBIDOS | B10: 11549 | C10: 11271 | D10: 12936 | E10: 17925
A11: VOTOS VÁLIDOS | B11: 11131 | C11: 10889 | D11: 12600 | E11: 17417
A12: ACCESIBILIDAD SIN EXCLUSIÓN | B12: 0 | C12: 0 | D12: 689 | E12: 0
A13: ACCIÓN CIUDADANA | B13: 864 | C13: 788 | D13: 1166 | E13: 1547
A14: ALIANZA DEMOCRÁTICA NACIONALISTA | B14: 0 | C14: 1132 | D14: 0 | E14: 0
A15: COALICIÓN CAMBIO 2000 | B15: 29 | C15: 0 | D15: 0 | E15: 0
A16: FRENTE AMPLIO | B16: 0 | C16: 0 | D16: 0 | E16: 2120
A17: FUERZA DEMOCRÁTICA | B17: 1109 | C17: 1462 | D17: 0 | E17: 0
A18: GUANACASTE INDEPENDIENTE | B18: 0 | C18: 1094 | D18: 0 | E18: 0
A19: LIBERACIÓN NACIONAL | B19: 4400 | C19: 3586 | D19: 5609 | E19: 7686
A20: MOVIMIENTO LIBERTARIO | B20: 23 | C20: 743 | D20: 2442 | E20: 0
A21: RENOVACIÓN COSTARRICENSE | B21: 393 | C21: 0 | D21: 0 | E21: 0
A22: REPUBLICANO SOCIAL CRISTIANO | B22: 0 | C22: 0 | D22: 0 | E22: 552
A23: UNIDAD SOCIAL CRISTIANA | B23: 4313 | C23: 1989 | D23: 2694 | E23: 5512
A24: UNIÓN NACIONAL | B24: 0 | C24: 95 | D24: 0 | E24: 0
A25: VOTOS NULOS | B25: 292 | C25: 262 | D25: 288 | E25: 365
A26: VOTOS EN BLANCO | B26: 126 | C26: 120 | D26: 48 | E26: 143
A28: Fuente: Cómputo de Votos Elecciones Municipales 2002, 2006, 2010 y 2016.

Sheet C67
A3: CUADRO 67 CANTÓN SANTA CRUZ : JUNTAS, ELECTORADO, VOTOS POR PARTIDO, NULOS Y BLANCOS
A4: PARA ALCALDÍAS, ELECCIONES MUNICIPALES 2002 - 2016
A6: JUNTAS, ELECTORADO, VOTOS POR PARTIDO, NULOS Y BLANCOS | B6: 2002 | C6: 2006 | D6: 2010 | E6: 2016
A8: JUNTAS | B8: 88 | C8: 69 | D8: 72 | E8: 80
A9: ELECTORADO | B9: 26197 | C9: 29852 | D9: 34567 | E9: 39432
A10: VOTOS RECIBIDOS | B10: 11404 | C10: 11760 | D10: 13200 | E10: 18098
A11: VOTOS VÁLIDOS | B11: 10830 | C11: 11384 | D11: 12773 | E11: 17496
A12: ACCESIBILIDAD SIN EXCLUSIÓN | B12: 0 | C12: 0 | D12: 386 | E12: 0
A13: ACCIÓN CIUDADANA | B13: 277 | C13: 707 | D13: 1985 | E13: 2465
A14: COALICIÓN CAMBIO 2000 | B14: 89 | C14: 0 | D14: 0 | E14: 0
A15: FRENTE AMPLIO | B15: 0 | C15: 0 | D15: 0 | E15: 931
A16: GUANACASTE INDEPENDIENTE | B16: 0 | C16: 1963 | D16: 0 | E16: 0
A17: INTEGRACIÓN NACIONAL | B17: 0 | C17: 0 | D17: 1921 | E17: 4073
A18: LIBERACIÓN NACIONAL | B18: 1456 | C18: 4264 | D18: 4114 | E18: 4229
A19: MOVIMIENTO LIBERTARIO | B19: 310 | C19: 819 | D19: 1261 | E19: 334
A20: NUEVA GENERACIÓN | B20: 0 | C20: 0 | D20: 0 | E20: 613
A21: RENACER SANTACRUCEÑO | B21: 666 | C21: 0 | D21: 0 | E21: 0
A22: RENOVACIÓN COSTARRICENSE | B22: 2578 | C22: 0 | D22: 0 | E22: 0
A23: REPUBLICANO SOCIAL CRISTIANO | B23: 0 | C23: 0 | D23: 0 | E23: 947
A24: RESCATE NACIONAL | B24: 0 | C24: 458 | D24: 0 | E24: 0
A25: UNIDAD SOCIAL CRISTIANA | B25: 5454 | C25: 0 | D25: 3106 | E25: 3904
A26: UNIÓN NACIONAL | B26: 0 | C26: 2129 | D26: 0 | E26: 0
A27: UNIÓN PARA EL CAMBIO | B27: 0 | C27: 1044 | D27: 0 | E27: 0
A28: VOTOS NULOS | B28: 444 | C28: 251 | D28: 320 | E28: 443
A29: VOTOS EN BLANCO | B29: 130 | C29: 125 | D29: 107 | E29: 159
A31: Fuente: Cómputo de Votos Elecciones Municipales 2002, 2006, 2010 y 2016.

Sheet C68
A3: CUADRO 68 CANTÓN BAGACES : JUNTAS, ELECTORADO, VOTOS POR PARTIDO, NULOS Y BLANCOS
A4: PARA ALCALDÍAS, ELECCIONES MUNICIPALES 2002 - 2016
A6: JUNTAS, ELECTORADO, VOTOS POR PARTIDO, NULOS Y BLANCOS | B6: 2002 | C6: 2006 | D6: 2010 | E6: 2016
A8: JUNTAS | B8: 33 | C8: 25 | D8: 27 | E8: 29
A9: ELECTORADO | B9: 8839 | C9: 9869 | D9: 11245 | E9: 13067
A10: VOTOS RECIBIDOS | B10: 2209 | C10: 3286 | D10: 4011 | E10: 4961
A11: VOTOS VÁLIDOS | B11: 2106 | C11: 3179 | D11: 3920 | E11: 4795
A12: ACCIÓN CIUDADANA | B12: 980 | C12: 368 | D12: 1081 | E12: 1364
A13: LIBERACIÓN NACIONAL | B13: 0 | C13: 2080 | D13: 2630 | E13: 1466
A14: MOVIMIENTO LIBERTARIO | B14: 0 | C14: 0 | D14: 209 | E14: 250
A15: NUEVA GENERACIÓN | B15: 0 | C15: 0 | D15: 0 | E15: 780
A16: RENOVACIÓN COSTARRICENSE | B16: 0 | C16: 190 | D16: 0 | E16: 0
A17: REPUBLICANO SOCIAL CRISTIANO | B17: 0 | C17: 0 | D17: 0 | E17: 446
A18: UNIDAD SOCIAL CRISTIANA | B18: 1126 | C18: 541 | D18: 0 | E18: 489
A19: VOTOS NULOS | B19: 53 | C19: 81 | D19: 76 | E19: 146
A20: VOTOS EN BLANCO | B20: 50 | C20: 26 | D20: 15 | E20: 20
A22: Fuente: Cómputo de Votos Elecciones Municipales 2002, 2006, 2010 y 2016.

Sheet C69
A3: CUADRO 69 CANTÓN CARRILLO : JUNTAS, ELECTORADO, VOTOS POR PARTIDO, NULOS Y BLANCOS
A4: PARA ALCALDÍAS, ELECCIONES MUNICIPALES 2002 - 2016
A6: JUNTAS, ELECTORADO, VOTOS POR PARTIDO, NULOS Y BLANCOS | B6: 2002 | C6: 2006 | D6: 2010 | E6: 2016
A8: JUNTAS | B8: 47 | C8: 37 | D8: 42 | E8: 43
A9: ELECTORADO | B9: 15155 | C9: 17448 | D9: 20050 | E9: 23197
A10: VOTOS RECIBIDOS | B10: 6209 | C10: 6111 | D10: 8832 | E10: 10672
A11: VOTOS VÁLIDOS | B11: 6012 | C11: 5960 | D11: 8631 | E11: 10435
A12: ACCIÓN CIUDADANA | B12: 1181 | C12: 427 | D12: 106 | E12: 1356
A13: GUANACASTE INDEPENDIENTE | B13: 0 | C13: 850 | D13: 0 | E13: 0
A14: LIBERACIÓN NACIONAL | B14: 1424 | C14: 2940 | D14: 3496 | E14: 4335
A15: MOVIMIENTO LIBERTARIO | B15: 0 | C15: 0 | D15: 1713 | E15: 283
A16: REPUBLICANO SOCIAL CRISTIANO | B16: 0 | C16: 0 | D16: 0 | E16: 2654
A17: UNIDAD SOCIAL CRISTIANA | B17: 3407 | C17: 1019 | D17: 3316 | E17: 1807
A18: UNIÓN NACIONAL | B18: 0 | C18: 724 | D18: 0 | E18: 0
A19: VOTOS NULOS | B19: 140 | C19: 112 | D19: 160 | E19: 186
A20: VOTOS EN BLANCO | B20: 57 | C20: 39 | D20: 41 | E20: 51
A22: Fuente: Cómputo de Votos Elecciones Municipales 2002, 2006, 2010 y 2016.

Sheet C70
A3: CUADRO 70 CANTÓN CAÑAS : JUNTAS, ELECTORADO, VOTOS POR PARTIDO, NULOS Y BLANCOS
A4: PARA ALCALDÍAS, ELECCIONES MUNICIPALES 2002 - 2016
A6: JUNTAS, ELECTORADO, VOTOS POR PARTIDO, NULOS Y BLANCOS | B6: 2002 | C6: 2006 | D6: 2010 | E6: 2016
A8: JUNTAS | B8: 43 | C8: 32 | D8: 34 | E8: 37
A9: ELECTORADO | B9: 14421 | C9: 15854 | D9: 17344 | E9: 19065
A10: VOTOS RECIBIDOS | B10: 5066 | C10: 3885 | D10: 6226 | E10: 7072
A11: VOTOS VÁLIDOS | B11: 4903 | C11: 3802 | D11: 6132 | E11: 6960
A12: ACCIÓN CIUDADANA | B12: 858 | C12: 918 | D12: 3631 | E12: 405
A13: COALICIÓN CAMBIO 2000 | B13: 86 | C13: 0 | D13: 0 | E13: 0
A14: FRENTE AMPLIO | B14: 0 | C14: 0 | D14: 0 | E14: 70
A15: LIBERACIÓN NACIONAL | B15: 2252 | C15: 2313 | D15: 2501 | E15: 4848
A16: MOVIMIENTO LIBERTARIO | B16: 320 | C16: 0 | D16: 0 | E16: 0
A17: RESCATE NACIONAL | B17: 92 | C17: 0 | D17: 0 | E17: 0
A18: UNIDAD SOCIAL CRISTIANA | B18: 1295 | C18: 571 | D18: 0 | E18: 1637
A19: VOTOS NULOS | B19: 119 | C19: 59 | D19: 69 | E19: 84
A20: VOTOS EN BLANCO | B20: 44 | C20: 24 | D20: 25 | E20: 28
A22: Fuente: Cómputo de Votos Elecciones Municipales 2002, 2006, 2010 y 2016.

Sheet C71
A3: CUADRO 71 CANTÓN ABANGARES : JUNTAS, ELECTORADO, VOTOS POR PARTIDO, NULOS Y BLANCOS
A4: PARA ALCALDÍAS, ELECCIONES MUNICIPALES 2002 - 2016
A6: JUNTAS, ELECTORADO, VOTOS POR PARTIDO, NULOS Y BLANCOS | B6: 2002 | C6: 2006 | D6: 2010 | E6: 2016
A8: JUNTAS | B8: 36 | C8: 31 | D8: 34 | E8: 35
A9: ELECTORADO | B9: 9559 | C9: 10612 | D9: 11763 | E9: 13237
A10: VOTOS RECIBIDOS | B10: 3424 | C10: 4827 | D10: 6482 | E10: 7341
A11: VOTOS VÁLIDOS | B11: 3315 | C11: 4655 | D11: 6308 | E11: 7117
A12: ACCIÓN CIUDADANA | B12: 1025 | C12: 603 | D12: 2136 | E12: 604
A13: FRENTE AMPLIO | B13: 0 | C13: 0 | D13: 0 | E13: 612
A14: GUANACASTE INDEPENDIENTE | B14: 0 | C14: 1392 | D14: 0 | E14: 0
A15: INTEGRACIÓN NACIONAL | B15: 0 | C15: 0 | D15: 0 | E15: 1720
A16: LIBERACIÓN NACIONAL | B16: 964 | C16: 1652 | D16: 3082 | E16: 2371
A17: MOVIMIENTO LIBERTARIO | B17: 0 | C17: 70 | D17: 0 | E17: 200
A18: RENOVACIÓN COSTARRICENSE | B18: 0 | C18: 242 | D18: 0 | E18: 0
A19: REPUBLICANO SOCIAL CRISTIANO | B19: 0 | C19: 0 | D19: 0 | E19: 354
A20: ÚNICO ABANGAREÑO | B20: 0 | C20: 0 | D20: 1090 | E20: 0
A21: UNIDAD SOCIAL CRISTIANA | B21: 1326 | C21: 696 | D21: 0 | E21: 1256
A22: VOTOS NULOS | B22: 80 | C22: 134 | D22: 137 | E22: 170
A23: VOTOS EN BLANCO | B23: 29 | C23: 38 | D23: 37 | E23: 54
A25: Fuente: Cómputo de Votos Elecciones Municipales 2002, 2006, 2010 y 2016.

Sheet C72
A3: CUADRO 72 CANTÓN TILARÁN : JUNTAS, ELECTORADO, VOTOS POR PARTIDO, NULOS Y BLANCOS
A4: PARA ALCALDÍAS, ELECCIONES MUNICIPALES 2002 - 2016
A6: JUNTAS, ELECTORADO, VOTOS POR PARTIDO, NULOS Y BLANCOS | B6: 2002 | C6: 2006 | D6: 2010 | E6: 2016
A8: JUNTAS | B8: 44 | C8: 33 | D8: 35 | E8: 36
A9: ELECTORADO | B9: 11181 | C9: 12161 | D9: 13309 | E9: 14622
A10: VOTOS RECIBIDOS | B10: 4734 | C10: 4749 | D10: 5994 | E10: 8298
A11: VOTOS VÁLIDOS | B11: 4600 | C11: 4637 | D11: 5861 | E11: 8115
A12: ACCESIBILIDAD SIN EXCLUSIÓN | B12: 0 | C12: 0 | D12: 359 | E12: 0
A13: ACCIÓN CIUDADANA | B13: 261 | C13: 1171 | D13: 799 | E13: 1074
A14: LIBERACIÓN NACIONAL | B14: 747 | C14: 1152 | D14: 2237 | E14: 2452
A15: MOVIMIENTO LIBERTARIO | B15: 1014 | C15: 176 | D15: 0 | E15: 2045
A16: REPUBLICANO SOCIAL CRISTIANO | B16: 0 | C16: 0 | D16: 0 | E16: 491
A17: UNIDAD SOCIAL CRISTIANA | B17: 2578 | C17: 2138 | D17: 2466 | E17: 2053
A18: VOTOS NULOS | B18: 104 | C18: 83 | D18: 114 | E18: 153
A19: VOTOS EN BLANCO | B19: 30 | C19: 29 | D19: 19 | E19: 30
A21: Fuente: Cómputo de Votos Elecciones Municipales 2002, 2006, 2010 y 2016.

Sheet C73
A3: CUADRO 73 CANTÓN NANDAYURE : JUNTAS, ELECTORADO, VOTOS POR PARTIDO, NULOS Y BLANCOS
A4: PARA ALCALDÍAS, ELECCIONES MUNICIPALES 2002 - 2016
A6: JUNTAS, ELECTORADO, VOTOS POR PARTIDO, NULOS Y BLANCOS | B6: 2002 | C6: 2006 | D6: 2010 | E6: 2016
A8: JUNTAS | B8: 29 | C8: 26 | D8: 28 | E8: 29
A9: ELECTORADO | B9: 5997 | C9: 6656 | D9: 7489 | E9: 8278
A10: VOTOS RECIBIDOS | B10: 3249 | C10: 4061 | D10: 4882 | E10: 4782
A11: VOTOS VÁLIDOS | B11: 3154 | C11: 3952 | D11: 4770 | E11: 4610
A12: ACCIÓN CIUDADANA | B12: 0 | C12: 124 | D12: 0 | E12: 608
A13: FRENTE AMPLIO | B13: 0 | C13: 0 | D13: 0 | E13: 1080
A14: GUANACASTE INDEPENDIENTE | B14: 1259 | C14: 40 | D14: 0 | E14: 0
A15: INTEGRACIÓN NACIONAL | B15: 0 | C15: 0 | D15: 1471 | E15: 0
A16: LIBERACIÓN NACIONAL | B16: 934 | C16: 1655 | D16: 1033 | E16: 1316
A17: MOVIMIENTO LIBERTARIO | B17: 0 | C17: 0 | D17: 2266 | E17: 0
A18: NUEVA GENERACIÓN | B18: 0 | C18: 0 | D18: 0 | E18: 1316
A19: REPUBLICANO SOCIAL CRISTIANO | B19: 0 | C19: 0 | D19: 0 | E19: 155
A20: UNIDAD SOCIAL CRISTIANA | B20: 961 | C20: 0 | D20: 0 | E20: 135
A21: UNIÓN NACIONAL | B21: 0 | C21: 2133 | D21: 0 | E21: 0
A22: VOTOS NULOS | B22: 63 | C22: 86 | D22: 91 | E22: 137
A23: VOTOS EN BLANCO | B23: 32 | C23: 23 | D23: 21 | E23: 35
A25: Fuente: Cómputo de Votos Elecciones Municipales 2002, 2006, 2010 y 2016.

Sheet C74
A3: CUADRO 74 CANTÓN LA CRUZ : JUNTAS, ELECTORADO, VOTOS POR PARTIDO, NULOS Y BLANCOS
A4: PARA ALCALDÍAS, ELECCIONES MUNICIPALES 2002 - 2016
A6: JUNTAS, ELECTORADO, VOTOS POR PARTIDO, NULOS Y BLANCOS | B6: 2002 | C6: 2006 | D6: 2010 | E6: 2016
A8: JUNTAS | B8: 27 | C8: 22 | D8: 24 | E8: 28
A9: ELECTORADO | B9: 6778 | C9: 7812 | D9: 9262 | E9: 11808
A10: VOTOS RECIBIDOS | B10: 3020 | C10: 3486 | D10: 4442 | E10: 5592
A11: VOTOS VÁLIDOS | B11: 2943 | C11: 3417 | D11: 4382 | E11: 5477
A12: ACCIÓN CIUDADANA | B12: 95 | C12: 233 | D12: 0 | E12: 363
A13: LIBERACIÓN NACIONAL | B13: 958 | C13: 2098 | D13: 2393 | E13: 2485
A14: RENOVACIÓN COSTARRICENSE | B14: 476 | C14: 0 | D14: 0 | E14: 0
A15: UNIDAD SOCIAL CRISTIANA | B15: 1414 | C15: 1086 | D15: 1989 | E15: 2629
A16: VOTOS NULOS | B16: 53 | C16: 48 | D16: 44 | E16: 77
A17: VOTOS EN BLANCO | B17: 24 | C17: 21 | D17: 16 | E17: 38
A19: Fuente: Cómputo de Votos Elecciones Municipales 2002, 2006, 2010 y 2016.

Sheet C75
A3: CUADRO 75 CANTÓN HOJANCHA : JUNTAS, ELECTORADO, VOTOS POR PARTIDO, NULOS Y BLANCOS
A4: PARA ALCALDÍAS, ELECCIONES MUNICIPALES 2002 - 2016
A6: JUNTAS, ELECTORADO, VOTOS POR PARTIDO, NULOS Y BLANCOS | B6: 2002 | C6: 2006 | D6: 2010 | E6: 2016
A8: JUNTAS | B8: 20 | C8: 17 | D8: 17 | E8: 18
A9: ELECTORADO | B9: 4297 | C9: 4514 | D9: 5119 | E9: 5771
A10: VOTOS RECIBIDOS | B10: 2892 | C10: 1131 | D10: 3620 | E10: 3669
A11: VOTOS VÁLIDOS | B11: 2819 | C11: 1099 | D11: 3555 | E11: 3568
A12: ACCIÓN CIUDADANA | B12: 927 | C12: 0 | D12: 2014 | E12: 2210
A13: LIBERACIÓN NACIONAL | B13: 1366 | C13: 1099 | D13: 1408 | E13: 929
A14: MOVIMIENTO LIBERTARIO | B14: 0 | C14: 0 | D14: 133 | E14: 0
A15: REPUBLICANO SOCIAL CRISTIANO | B15: 0 | C15: 0 | D15: 0 | E15: 80
A16: UNIDAD SOCIAL CRISTIANA | B16: 526 | C16: 0 | D16: 0 | E16: 349
A17: VOTOS NULOS | B17: 47 | C17: 8 | D17: 52 | E17: 74
A18: VOTOS EN BLANCO | B18: 26 | C18: 24 | D18: 13 | E18: 27
A20: Fuente: Cómputo de Votos Elecciones Municipales 2002, 2006, 2010 y 2016.

Sheet C76
A3: CUADRO 76 CANTÓN PUNTARENAS : JUNTAS, ELECTORADO, VOTOS POR PARTIDO, NULOS Y BLANCOS
A4: PARA ALCALDÍAS, ELECCIONES MUNICIPALES 2002 - 2016
A6: JUNTAS, ELECTORADO, VOTOS POR PARTIDO, NULOS Y BLANCOS | B6: 2002 | C6: 2006 | D6: 2010 | E6: 2016
A8: JUNTAS | B8: 205 | C8: 156 | D8: 163 | E8: 174
A9: ELECTORADO | B9: 63872 | C9: 70884 | D9: 77238 | E9: 84342
A10: VOTOS RECIBIDOS | B10: 13366 | C10: 18546 | D10: 22289 | E10: 29822
A11: VOTOS VÁLIDOS | B11: 12759 | C11: 17875 | D11: 21564 | E11: 28681
A12: ACCESIBILIDAD SIN EXCLUSIÓN | B12: 0 | C12: 0 | D12: 1202 | E12: 428
A13: ACCIÓN CIUDADANA | B13: 1014 | C13: 1339 | D13: 0 | E13: 3600
A14: DE LOS TRABAJADORES | B14: 0 | C14: 0 | D14: 0 | E14: 153
A15: FRENTE AMPLIO | B15: 0 | C15: 0 | D15: 0 | E15: 1476
A16: INTEGRACIÓN NACIONAL | B16: 0 | C16: 0 | D16: 0 | E16: 1300
A17: LIBERACIÓN NACIONAL | B17: 3892 | C17: 6854 | D17: 9752 | E17: 7533
A18: MOVIMIENTO LIBERTARIO | B18: 1041 | C18: 820 | D18: 3743 | E18: 757
A19: NUEVA GENERACIÓN | B19: 0 | C19: 0 | D19: 0 | E19: 741
A20: RENOVACIÓN COSTARRICENSE | B20: 0 | C20: 3102 | D20: 749 | E20: 0
A21: REPUBLICANO SOCIAL CRISTIANO | B21: 0 | C21: 0 | D21: 0 | E21: 2828
A22: UNIDAD SOCIAL CRISTIANA | B22: 6812 | C22: 4912 | D22: 6118 | E22: 8039
A23: UNIÓN NACIONAL | B23: 0 | C23: 848 | D23: 0 | E23: 0
A24: VIVA PUNTARENAS | B24: 0 | C24: 0 | D24: 0 | E24: 1826
A25: VOTOS NULOS | B25: 325 | C25: 447 | D25: 489 | E25: 730
A26: VOTOS EN BLANCO | B26: 282 | C26: 224 | D26: 236 | E26: 411
A28: Fuente: Cómputo de Votos Elecciones Municipales 2002, 2006, 2010 y 2016.

Sheet C77
A3: CUADRO 77 CANTÓN ESPARZA : JUNTAS, ELECTORADO, VOTOS POR PARTIDO, NULOS Y BLANCOS
A4: PARA ALCALDÍAS, ELECCIONES MUNICIPALES 2002 - 2016
A6: JUNTAS, ELECTORADO, VOTOS POR PARTIDO, NULOS Y BLANCOS | B6: 2002 | C6: 2006 | D6: 2010 | E6: 2016
A8: JUNTAS | B8: 48 | C8: 34 | D8: 38 | E8: 43
A9: ELECTORADO | B9: 14331 | C9: 16418 | D9: 18825 | E9: 21685
A10: VOTOS RECIBIDOS | B10: 5711 | C10: 6430 | D10: 8135 | E10: 10499
A11: VOTOS VÁLIDOS | B11: 5585 | C11: 6300 | D11: 8049 | E11: 10285
A12: ACCESIBILIDAD SIN EXCLUSIÓN | B12: 0 | C12: 0 | D12: 0 | E12: 28
A13: ACCIÓN CIUDADANA | B13: 608 | C13: 570 | D13: 544 | E13: 643
A14: FRENTE AMPLIO | B14: 0 | C14: 0 | D14: 0 | E14: 292
A15: FUERZA DEMOCRÁTICA | B15: 796 | C15: 0 | D15: 0 | E15: 0
A16: INTEGRACIÓN NACIONAL | B16: 0 | C16: 419 | D16: 0 | E16: 0
A17: LIBERACIÓN NACIONAL | B17: 1522 | C17: 2329 | D17: 3566 | E17: 3725
A18: MOVIMIENTO LIBERTARIO | B18: 151 | C18: 158 | D18: 306 | E18: 262
A19: PATRIA PRIMERO | B19: 0 | C19: 297 | D19: 0 | E19: 0
A20: RENOVACIÓN COSTARRICENSE | B20: 0 | C20: 0 | D20: 609 | E20: 0
A21: REPUBLICANO SOCIAL CRISTIANO | B21: 0 | C21: 0 | D21: 0 | E21: 2834
A22: UNIDAD SOCIAL CRISTIANA | B22: 2508 | C22: 2527 | D22: 3024 | E22: 2501
A23: VOTOS NULOS | B23: 87 | C23: 88 | D23: 70 | E23: 176
A24: VOTOS EN BLANCO | B24: 39 | C24: 42 | D24: 16 | E24: 38
A26: Fuente: Cómputo de Votos Elecciones Municipales 2002, 2006, 2010 y 2016.

Sheet C78
A3: CUADRO 78 CANTÓN BUENOS AIRES : JUNTAS, ELECTORADO, VOTOS POR PARTIDO, NULOS Y BLANCOS
A4: PARA ALCALDÍAS, ELECCIONES MUNICIPALES 2002 - 2016
A6: JUNTAS, ELECTORADO, VOTOS POR PARTIDO, NULOS Y BLANCOS | B6: 2002 | C6: 2006 | D6: 2010 | E6: 2016
A8: JUNTAS | B8: 76 | C8: 65 | D8: 70 | E8: 75
A9: ELECTORADO | B9: 20133 | C9: 23632 | D9: 27392 | E9: 30931
A10: VOTOS RECIBIDOS | B10: 6193 | C10: 6232 | D10: 8632 | E10: 10584
A11: VOTOS VÁLIDOS | B11: 6013 | C11: 6018 | D11: 8395 | E11: 10172
A12: ACCIÓN CIUDADANA | B12: 935 | C12: 1033 | D12: 0 | E12: 2370
A13: FRENTE AMPLIO | B13: 0 | C13: 0 | D13: 0 | E13: 206
A14: LIBERACIÓN NACIONAL | B14: 2197 | C14: 2879 | D14: 4384 | E14: 3072
A15: MOVIMIENTO LIBERTARIO | B15: 0 | C15: 557 | D15: 2126 | E15: 144
A16: NUEVA GENERACIÓN | B16: 0 | C16: 0 | D16: 0 | E16: 472
A17: REPUBLICANO SOCIAL CRISTIANO | B17: 0 | C17: 0 | D17: 0 | E17: 573
A18: UNIDAD SOCIAL CRISTIANA | B18: 2881 | C18: 1549 | D18: 1885 | E18: 2900
A19: VIVA PUNTARENAS | B19: 0 | C19: 0 | D19: 0 | E19: 435
A20: VOTOS NULOS | B20: 109 | C20: 159 | D20: 190 | E20: 282
A21: VOTOS EN BLANCO | B21: 71 | C21: 55 | D21: 47 | E21: 130
A23: Fuente: Cómputo de Votos Elecciones Municipales 2002, 2006, 2010 y 2016.

Sheet C79
A3: CUADRO 79 CANTÓN MONTES DE ORO : JUNTAS, ELECTORADO, VOTOS POR PARTIDO, NULOS Y BLANCOS
A4: PARA ALCALDÍAS, ELECCIONES MUNICIPALES 2002 - 2016
A6: JUNTAS, ELECTORADO, VOTOS POR PARTIDO, NULOS Y BLANCOS | B6: 2002 | C6: 2006 | D6: 2010 | E6: 2016
A8: JUNTAS | B8: 25 | C8: 20 | D8: 22 | E8: 22
A9: ELECTORADO | B9: 6875 | C9: 7849 | D9: 8750 | E9: 9941
A10: VOTOS RECIBIDOS | B10: 3432 | C10: 4480 | D10: 4243 | E10: 6495
A11: VOTOS VÁLIDOS | B11: 3369 | C11: 4384 | D11: 4150 | E11: 6326
A12: ACCIÓN CIUDADANA | B12: 822 | C12: 1472 | D12: 940 | E12: 3116
A13: AUTÓNOMO OROMONTANO | B13: 0 | C13: 369 | D13: 835 | E13: 185
A14: FRENTE AMPLIO | B14: 0 | C14: 0 | D14: 0 | E14: 124
A15: LIBERACIÓN NACIONAL | B15: 1377 | C15: 2152 | D15: 2375 | E15: 2330
A16: MOVIMIENTO LIBERTARIO | B16: 174 | C16: 47 | D16: 0 | E16: 44
A17: UNIDAD SOCIAL CRISTIANA | B17: 996 | C17: 344 | D17: 0 | E17: 527
A18: VOTOS NULOS | B18: 44 | C18: 65 | D18: 72 | E18: 140
A19: VOTOS EN BLANCO | B19: 19 | C19: 31 | D19: 21 | E19: 29
A21: Fuente: Cómputo de Votos Elecciones Municipales 2002, 2006, 2010 y 2016.

Sheet C80
A3: CUADRO 80 CANTÓN OSA : JUNTAS, ELECTORADO, VOTOS POR PARTIDO, NULOS Y BLANCOS
A4: PARA ALCALDÍAS, ELECCIONES MUNICIPALES 2002 - 2016
A6: JUNTAS, ELECTORADO, VOTOS POR PARTIDO, NULOS Y BLANCOS | B6: 2002 | C6: 2006 | D6: 2010 | E6: 2016
A8: JUNTAS | B8: 54 | C8: 44 | D8: 47 | E8: 52
A9: ELECTORADO | B9: 15320 | C9: 16577 | D9: 18664 | E9: 21229
A10: VOTOS RECIBIDOS | B10: 4351 | C10: 4363 | D10: 7127 | E10: 9429
A11: VOTOS VÁLIDOS | B11: 4063 | C11: 4175 | D11: 6887 | E11: 9131
A12: ACCIÓN CIUDADANA | B12: 170 | C12: 320 | D12: 0 | E12: 1376
A13: ALIANZA PATRIÓTICA | B13: 0 | C13: 0 | D13: 1172 | E13: 0
A14: FRENTE AMPLIO | B14: 0 | C14: 0 | D14: 0 | E14: 231
A15: INTEGRACIÓN NACIONAL | B15: 0 | C15: 0 | D15: 0 | E15: 906
A16: LIBERACIÓN NACIONAL | B16: 594 | C16: 2641 | D16: 4032 | E16: 2694
A17: MOVIMIENTO LIBERTARIO | B17: 1240 | C17: 1029 | D17: 723 | E17: 45
A18: ORGANIZACIÓN SOCIAL ACTIVA | B18: 0 | C18: 0 | D18: 960 | E18: 0
A19: RENOVACIÓN COSTARRICENSE | B19: 398 | C19: 0 | D19: 0 | E19: 939
A20: UNIDAD SOCIAL CRISTIANA | B20: 1661 | C20: 185 | D20: 0 | E20: 1954
A21: VIVA PUNTARENAS | B21: 0 | C21: 0 | D21: 0 | E21: 986
A22: VOTOS NULOS | B22: 235 | C22: 149 | D22: 191 | E22: 218
A23: VOTOS EN BLANCO | B23: 53 | C23: 39 | D23: 49 | E23: 80
A25: Fuente: Cómputo de Votos Elecciones Municipales 2002, 2006, 2010 y 2016.

Sheet C81
A3: CUADRO 81 CANTÓN QUEPOS : JUNTAS, ELECTORADO, VOTOS POR PARTIDO, NULOS Y BLANCOS
A4: PARA ALCALDÍAS, ELECCIONES MUNICIPALES 2002 - 2016
A6: JUNTAS, ELECTORADO, VOTOS POR PARTIDO, NULOS Y BLANCOS | B6: 2002 | C6: 2006 | D6: 2010 | E6: 2016
A8: JUNTAS | B8: 43 | C8: 34 | D8: 37 | E8: 40
A9: ELECTORADO | B9: 11965 | C9: 14330 | D9: 16693 | E9: 18798
A10: VOTOS RECIBIDOS | B10: 3566 | C10: 4691 | D10: 6833 | E10: 8172
A11: VOTOS VÁLIDOS | B11: 3411 | C11: 4534 | D11: 6561 | E11: 7903
A12: ACCESIBILIDAD SIN EXCLUSIÓN | B12: 0 | C12: 0 | D12: 1291 | E12: 305
A13: ACCIÓN CIUDADANA | B13: 0 | C13: 0 | D13: 0 | E13: 241
A14: ACCIÓN QUEPEÑA | B14: 889 | C14: 612 | D14: 278 | E14: 0
A15: ACUERDO DE ALIANZA DE QUEPOS | B15: 0 | C15: 0 | D15: 0 | E15: 404
A16: COALICIÓN CAMBIO 2000 | B16: 184 | C16: 0 | D16: 0 | E16: 0
A17: INTEGRACIÓN NACIONAL | B17: 0 | C17: 0 | D17: 789 | E17: 1073
A18: LIBERACIÓN NACIONAL | B18: 512 | C18: 838 | D18: 2079 | E18: 1666
A19: MOVIMIENTO LIBERTARIO | B19: 485 | C19: 141 | D19: 516 | E19: 227
A20: NUEVA GENERACIÓN | B20: 0 | C20: 0 | D20: 0 | E20: 626
A21: ORGANIZACIÓN LABORISTA DE AGUIRRE | B21: 0 | C21: 1485 | D21: 52 | E21: 0
A22: RENOVACIÓN COSTARRICENSE | B22: 0 | C22: 585 | D22: 695 | E22: 1190
A23: REPUBLICANO SOCIAL CRISTIANO | B23: 0 | C23: 0 | D23: 0 | E23: 228
A24: UNIDAD SOCIAL CRISTIANA | B24: 1341 | C24: 873 | D24: 861 | E24: 1674
A25: VIVA PUNTARENAS | B25: 0 | C25: 0 | D25: 0 | E25: 269
A26: VOTOS NULOS | B26: 127 | C26: 107 | D26: 232 | E26: 191
A27: VOTOS EN BLANCO | B27: 28 | C27: 50 | D27: 40 | E27: 78
A29: Fuente: Cómputo de Votos Elecciones Municipales 2002, 2006, 2010 y 2016.

Sheet C82
A3: CUADRO 82 CANTÓN GOLFITO : JUNTAS, ELECTORADO, VOTOS POR PARTIDO, NULOS Y BLANCOS
A4: PARA ALCALDÍAS, ELECCIONES MUNICIPALES 2002 - 2016
A6: JUNTAS, ELECTORADO, VOTOS POR PARTIDO, NULOS Y BLANCOS | B6: 2002 | C6: 2006 | D6: 2010 | E6: 2016
A8: JUNTAS | B8: 70 | C8: 51 | D8: 57 | E8: 61
A9: ELECTORADO | B9: 20212 | C9: 22490 | D9: 25019 | E9: 28587
A10: VOTOS RECIBIDOS | B10: 4695 | C10: 5206 | D10: 7624 | E10: 9648
A11: VOTOS VÁLIDOS | B11: 4474 | C11: 4936 | D11: 7382 | E11: 9175
A12: ACCIÓN CIUDADANA | B12: 894 | C12: 443 | D12: 2197 | E12: 1398
A13: FRENTE AMPLIO | B13: 0 | C13: 0 | D13: 0 | E13: 500
A14: LIBERACIÓN NACIONAL | B14: 1612 | C14: 2836 | D14: 2838 | E14: 2834
A15: MOVIMIENTO LIBERTARIO | B15: 290 | C15: 668 | D15: 2347 | E15: 226
A16: RENOVACIÓN COSTARRICENSE | B16: 0 | C16: 0 | D16: 0 | E16: 258
A17: RESTAURACIÓN NACIONAL | B17: 0 | C17: 0 | D17: 0 | E17: 634
A18: UNIDAD SOCIAL CRISTIANA | B18: 1678 | C18: 833 | D18: 0 | E18: 994
A19: UNIÓN NACIONAL | B19: 0 | C19: 156 | D19: 0 | E19: 0
A20: VIVA PUNTARENAS | B20: 0 | C20: 0 | D20: 0 | E20: 2331
A21: VOTOS NULOS | B21: 164 | C21: 216 | D21: 199 | E21: 382
A22: VOTOS EN BLANCO | B22: 57 | C22: 54 | D22: 43 | E22: 91
A24: Fuente: Cómputo de Votos Elecciones Municipales 2002, 2006, 2010 y 2016.

Sheet C83
A3: CUADRO 83 CANTÓN COTO BRUS : JUNTAS, ELECTORADO, VOTOS POR PARTIDO, NULOS Y BLANCOS
A4: PARA ALCALDÍAS, ELECCIONES MUNICIPALES 2002 - 2016
A6: JUNTAS, ELECTORADO, VOTOS POR PARTIDO, NULOS Y BLANCOS | B6: 2002 | C6: 2006 | D6: 2010 | E6: 2016
A8: JUNTAS | B8: 80 | C8: 60 | D8: 64 | E8: 66
A9: ELECTORADO | B9: 22964 | C9: 24647 | D9: 26188 | E9: 28684
A10: VOTOS RECIBIDOS | B10: 6656 | C10: 6838 | D10: 8617 | E10: 10399
A11: VOTOS VÁLIDOS | B11: 6443 | C11: 6609 | D11: 8339 | E11: 10134
A12: ACCIÓN CIUDADANA | B12: 1828 | C12: 245 | D12: 1386 | E12: 1707
A13: LIBERACIÓN NACIONAL | B13: 1386 | C13: 2634 | D13: 2056 | E13: 2724
A14: MOVIMIENTO LIBERTARIO | B14: 0 | C14: 0 | D14: 272 | E14: 507
A15: RENOVACIÓN COSTARRICENSE | B15: 0 | C15: 71 | D15: 0 | E15: 0
A16: UNIDAD SOCIAL CRISTIANA | B16: 3229 | C16: 3659 | D16: 4625 | E16: 4909
A17: VIVA PUNTARENAS | B17: 0 | C17: 0 | D17: 0 | E17: 287
A18: VOTOS NULOS | B18: 165 | C18: 181 | D18: 220 | E18: 190
A19: VOTOS EN BLANCO | B19: 48 | C19: 48 | D19: 58 | E19: 75
A21: Fuente: Cómputo de Votos Elecciones Municipales 2002, 2006, 2010 y 2016.

Sheet C84
A3: CUADRO 84 CANTÓN PARRITA : JUNTAS, ELECTORADO, VOTOS POR PARTIDO, NULOS Y BLANCOS
A4: PARA ALCALDÍAS, ELECCIONES MUNICIPALES 2002 - 2016
A6: JUNTAS, ELECTORADO, VOTOS POR PARTIDO, NULOS Y BLANCOS | B6: 2002 | C6: 2006 | D6: 2010 | E6: 2016
A8: JUNTAS | B8: 33 | C8: 30 | D8: 30 | E8: 31
A9: ELECTORADO | B9: 7054 | C9: 8157 | D9: 9776 | E9: 11285
A10: VOTOS RECIBIDOS | B10: 3182 | C10: 4012 | D10: 5653 | E10: 5382
A11: VOTOS VÁLIDOS | B11: 3063 | C11: 3891 | D11: 5499 | E11: 5235
A12: ACCIÓN CIUDADANA | B12: 291 | C12: 99 | D12: 0 | E12: 386
A13: COALICIÓN CAMBIO 2000 | B13: 264 | C13: 0 | D13: 0 | E13: 0
A14: FUERZA DEMOCRÁTICA | B14: 24 | C14: 0 | D14: 0 | E14: 0
A15: INTEGRACIÓN NACIONAL | B15: 0 | C15: 0 | D15: 980 | E15: 0
A16: LIBERACIÓN NACIONAL | B16: 126 | C16: 1282 | D16: 1521 | E16: 1851
A17: MOVIMIENTO LIBERTARIO | B17: 1100 | C17: 371 | D17: 782 | E17: 336
A18: PARRITA INDEPENDIENTE | B18: 0 | C18: 0 | D18: 0 | E18: 1026
A19: RENOVACIÓN COSTARRICENSE | B19: 0 | C19: 1155 | D19: 1099 | E19: 179
A20: REPUBLICANO SOCIAL CRISTIANO | B20: 0 | C20: 0 | D20: 0 | E20: 60
A21: RESTAURACIÓN PARRITEÑA | B21: 0 | C21: 0 | D21: 0 | E21: 422
A22: UNIDAD SOCIAL CRISTIANA | B22: 1258 | C22: 984 | D22: 1117 | E22: 975
A23: VOTOS NULOS | B23: 95 | C23: 87 | D23: 125 | E23: 117
A24: VOTOS EN BLANCO | B24: 24 | C24: 34 | D24: 29 | E24: 30
A26: Fuente: Cómputo de Votos Elecciones Municipales 2002, 2006, 2010 y 2016.

Sheet C85
A3: CUADRO 85 CANTÓN CORREDORES : JUNTAS, ELECTORADO, VOTOS POR PARTIDO, NULOS Y BLANCOS
A4: PARA ALCALDÍAS, ELECCIONES MUNICIPALES 2002 - 2016
A6: JUNTAS, ELECTORADO, VOTOS POR PARTIDO, NULOS Y BLANCOS | B6: 2002 | C6: 2006 | D6: 2010 | E6: 2016
A8: JUNTAS | B8: 68 | C8: 53 | D8: 56 | E8: 64
A9: ELECTORADO | B9: 21578 | C9: 24590 | D9: 27936 | E9: 32790
A10: VOTOS RECIBIDOS | B10: 5613 | C10: 5237 | D10: 6266 | E10: 10597
A11: VOTOS VÁLIDOS | B11: 5269 | C11: 5083 | D11: 6057 | E11: 10231
A12: ACCIÓN CIUDADANA | B12: 301 | C12: 130 | D12: 0 | E12: 911
A13: ALIANZA PATRIÓTICA | B13: 0 | C13: 0 | D13: 123 | E13: 0
A14: FRENTE AMPLIO | B14: 0 | C14: 0 | D14: 0 | E14: 660
A15: INTEGRACIÓN NACIONAL | B15: 0 | C15: 0 | D15: 835 | E15: 0
A16: LIBERACIÓN NACIONAL | B16: 766 | C16: 2726 | D16: 2352 | E16: 3395
A17: MOVIMIENTO LIBERTARIO | B17: 480 | C17: 347 | D17: 221 | E17: 482
A18: NUEVO CORREDORES | B18: 279 | C18: 0 | D18: 0 | E18: 0
A19: RENOVACIÓN COSTARRICENSE | B19: 1181 | C19: 736 | D19: 1608 | E19: 1311
A20: REPUBLICANO SOCIAL CRISTIANO | B20: 0 | C20: 0 | D20: 0 | E20: 237
A21: UNIDAD SOCIAL CRISTIANA | B21: 2262 | C21: 1144 | D21: 918 | E21: 3235
A22: VOTOS NULOS | B22: 264 | C22: 116 | D22: 169 | E22: 263
A23: VOTOS EN BLANCO | B23: 80 | C23: 38 | D23: 40 | E23: 103
A25: Fuente: Cómputo de Votos Elecciones Municipales 2002, 2006, 2010 y 2016.

Sheet C86
A3: CUADRO 86 CANTÓN GARABITO : JUNTAS, ELECTORADO, VOTOS POR PARTIDO, NULOS Y BLANCOS
A4: PARA ALCALDÍAS, ELECCIONES MUNICIPALES 2002 - 2016
A6: JUNTAS, ELECTORADO, VOTOS POR PARTIDO, NULOS Y BLANCOS | B6: 2002 | C6: 2006 | D6: 2010 | E6: 2016
A8: JUNTAS | B8: 18 | C8: 15 | D8: 18 | E8: 20
A9: ELECTORADO | B9: 5948 | C9: 7086 | D9: 8716 | E9: 10956
A10: VOTOS RECIBIDOS | B10: 3098 | C10: 3097 | D10: 3406 | E10: 4966
A11: VOTOS VÁLIDOS | B11: 3012 | C11: 3033 | D11: 3357 | E11: 4855
A12: ACCIÓN CIUDADANA | B12: 0 | C12: 206 | D12: 557 | E12: 257
A13: FUERZA DEMOCRÁTICA | B13: 10 | C13: 0 | D13: 0 | E13: 0
A14: GARABITO ECOLÓGICO | B14: 795 | C14: 0 | D14: 884 | E14: 273
A15: LIBERACIÓN NACIONAL | B15: 360 | C15: 1771 | D15: 1916 | E15: 1903
A16: MOVIMIENTO LIBERTARIO | B16: 0 | C16: 0 | D16: 0 | E16: 114
A17: PUEBLO GARABITO | B17: 0 | C17: 0 | D17: 0 | E17: 753
A18: RENOVACIÓN COSTARRICENSE | B18: 0 | C18: 0 | D18: 0 | E18: 29
A19: REPUBLICANO SOCIAL CRISTIANO | B19: 0 | C19: 0 | D19: 0 | E19: 393
A20: UNIDAD SOCIAL CRISTIANA | B20: 1847 | C20: 1056 | D20: 0 | E20: 1133
A21: VOTOS NULOS | B21: 63 | C21: 42 | D21: 38 | E21: 86
A22: VOTOS EN BLANCO | B22: 23 | C22: 22 | D22: 11 | E22: 25
A24: Fuente: Cómputo de Votos Elecciones Municipales 2002, 2006, 2010 y 2016.

Sheet C87
A3: CUADRO 87 CANTÓN LIMÓN : JUNTAS, ELECTORADO, VOTOS POR PARTIDO, NULOS Y BLANCOS
A4: PARA ALCALDÍAS, ELECCIONES MUNICIPALES 2002 - 2016
A6: JUNTAS, ELECTORADO, VOTOS POR PARTIDO, NULOS Y BLANCOS | B6: 2002 | C6: 2006 | D6: 2010 | E6: 2016
A8: JUNTAS | B8: 151 | C8: 106 | D8: 114 | E8: 120
A9: ELECTORADO | B9: 52454 | C9: 58080 | D9: 61603 | E9: 66628
A10: VOTOS RECIBIDOS | B10: 7857 | C10: 10484 | D10: 14768 | E10: 26487
A11: VOTOS VÁLIDOS | B11: 7483 | C11: 10125 | D11: 14122 | E11: 25472
A12: ACCESIBILIDAD SIN EXCLUSIÓN | B12: 0 | C12: 0 | D12: 287 | E12: 0
A13: ACCIÓN CIUDADANA | B13: 686 | C13: 956 | D13: 1211 | E13: 437
A14: AUTÉNTICO LIMONENSE | B14: 0 | C14: 0 | D14: 0 | E14: 13612
A15: CONCIENCIA LIMONENSE | B15: 219 | C15: 0 | D15: 0 | E15: 0
A16: FRENTE AMPLIO | B16: 0 | C16: 0 | D16: 1154 | E16: 462
A17: FUERZA DEMOCRÁTICA | B17: 71 | C17: 0 | D17: 0 | E17: 0
A18: INTEGRACIÓN NACIONAL | B18: 0 | C18: 101 | D18: 84 | E18: 0
A19: LIBERACIÓN NACIONAL | B19: 2568 | C19: 3312 | D19: 4195 | E19: 1740
A20: LIMÓN INDEPENDIENTE | B20: 0 | C20: 0 | D20: 0 | E20: 486
A21: MOVIMIENTO LIBERTARIO | B21: 385 | C21: 1504 | D21: 1683 | E21: 612
A22: RECUPERANDO VALORES | B22: 0 | C22: 0 | D22: 0 | E22: 326
A23: RENOVACIÓN COSTARRICENSE | B23: 617 | C23: 260 | D23: 1563 | E23: 1356
A24: REPUBLICANO SOCIAL CRISTIANO | B24: 0 | C24: 0 | D24: 0 | E24: 1171
A25: RESCATE NACIONAL | B25: 0 | C25: 1151 | D25: 0 | E25: 0
A26: UNIDAD SOCIAL CRISTIANA | B26: 2937 | C26: 2841 | D26: 3945 | E26: 5270
A27: VOTOS NULOS | B27: 268 | C27: 246 | D27: 556 | E27: 772
A28: VOTOS EN BLANCO | B28: 106 | C28: 113 | D28: 90 | E28: 243
A30: Fuente: Cómputo de Votos Elecciones Municipales 2002, 2006, 2010 y 2016.

Sheet C88
A3: CUADRO 88 CANTÓN POCOCÍ : JUNTAS, ELECTORADO, VOTOS POR PARTIDO, NULOS Y BLANCOS
A4: PARA ALCALDÍAS, ELECCIONES MUNICIPALES 2002 - 2016
A6: JUNTAS, ELECTORADO, VOTOS POR PARTIDO, NULOS Y BLANCOS | B6: 2002 | C6: 2006 | D6: 2010 | E6: 2016
A8: JUNTAS | B8: 156 | C8: 118 | D8: 133 | E8: 150
A9: ELECTORADO | B9: 55883 | C9: 65050 | D9: 75016 | E9: 87921
A10: VOTOS RECIBIDOS | B10: 11376 | C10: 15373 | D10: 18364 | E10: 29349
A11: VOTOS VÁLIDOS | B11: 10910 | C11: 14861 | D11: 17822 | E11: 28223
A12: ACCESIBILIDAD SIN EXCLUSIÓN | B12: 0 | C12: 0 | D12: 0 | E12: 558
A13: ACCIÓN CIUDADANA | B13: 1226 | C13: 1412 | D13: 0 | E13: 1789
A14: COALICIÓN CAMBIO 2000 | B14: 171 | C14: 0 | D14: 0 | E14: 0
A15: FRENTE AMPLIO | B15: 0 | C15: 0 | D15: 852 | E15: 1832
A16: FUERZA DEMOCRÁTICA | B16: 0 | C16: 505 | D16: 0 | E16: 0
A17: LIBERACIÓN NACIONAL | B17: 2631 | C17: 5740 | D17: 10212 | E17: 7078
A18: MOVIMIENTO DE TRABAJADORES Y CAMPESINOS | B18: 0 | C18: 0 | D18: 1208 | E18: 0
A19: MOVIMIENTO LIBERTARIO | B19: 0 | C19: 4380 | D19: 5550 | E19: 3630
A20: NUEVA GENERACIÓN | B20: 0 | C20: 0 | D20: 0 | E20: 410
A21: RENOVACIÓN COSTARRICENSE | B21: 2515 | C21: 0 | D21: 0 | E21: 6640
A22: REPUBLICANO SOCIAL CRISTIANO | B22: 0 | C22: 0 | D22: 0 | E22: 2379
A23: UNIDAD SOCIAL CRISTIANA | B23: 4367 | C23: 2658 | D23: 0 | E23: 3907
A24: VANGUARDIA POPULAR | B24: 0 | C24: 166 | D24: 0 | E24: 0
A25: VOTOS NULOS | B25: 340 | C25: 382 | D25: 451 | E25: 913
A26: VOTOS EN BLANCO | B26: 126 | C26: 130 | D26: 91 | E26: 213
A28: Fuente: Cómputo de Votos Elecciones Municipales 2002, 2006, 2010 y 2016.

Sheet C89
A3: CUADRO 89 CANTÓN SIQUIRRES : JUNTAS, ELECTORADO, VOTOS POR PARTIDO, NULOS Y BLANCOS
A4: PARA ALCALDÍAS, ELECCIONES MUNICIPALES 2002 - 2016
A6: JUNTAS, ELECTORADO, VOTOS POR PARTIDO, NULOS Y BLANCOS | B6: 2002 | C6: 2006 | D6: 2010 | E6: 2016
A8: JUNTAS | B8: 83 | C8: 63 | D8: 69 | E8: 76
A9: ELECTORADO | B9: 27388 | C9: 31380 | D9: 34544 | E9: 38953
A10: VOTOS RECIBIDOS | B10: 6663 | C10: 6854 | D10: 9420 | E10: 14868
A11: VOTOS VÁLIDOS | B11: 6334 | C11: 6603 | D11: 9007 | E11: 14344
A12: ACCESIBILIDAD SIN EXCLUSIÓN | B12: 0 | C12: 0 | D12: 2651 | E12: 1084
A13: ACCIÓN CANTONAL SIQUIRRES INDEPENDIENTE | B13: 1658 | C13: 1997 | D13: 773 | E13: 363
A14: ACCIÓN CIUDADANA | B14: 0 | C14: 436 | D14: 615 | E14: 690
A15: AUTÉNTICO SIQUIRREÑO | B15: 0 | C15: 0 | D15: 0 | E15: 2774
A16: COALICIÓN CAMBIO 2000 | B16: 804 | C16: 0 | D16: 0 | E16: 0
A17: FRENTE AMPLIO | B17: 0 | C17: 0 | D17: 877 | E17: 677
A18: FUERZA DEMOCRÁTICA | B18: 78 | C18: 0 | D18: 0 | E18: 0
A19: LIBERACIÓN NACIONAL | B19: 1290 | C19: 1954 | D19: 2233 | E19: 4497
A20: MOVIMIENTO LIBERTARIO | B20: 43 | C20: 178 | D20: 412 | E20: 383
A21: NUEVA GENERACIÓN | B21: 0 | C21: 0 | D21: 0 | E21: 483
A22: RECUPERANDO VALORES | B22: 0 | C22: 0 | D22: 0 | E22: 482
A23: RENOVACIÓN COSTARRICENSE | B23: 236 | C23: 0 | D23: 0 | E23: 1085
A24: REPUBLICANO SOCIAL CRISTIANO | B24: 0 | C24: 0 | D24: 0 | E24: 205
A25: UNIDAD SOCIAL CRISTIANA | B25: 2225 | C25: 1398 | D25: 1446 | E25: 1621
A26: UNIÓN NACIONAL | B26: 0 | C26: 210 | D26: 0 | E26: 0
A27: UNIÓN PARA EL CAMBIO | B27: 0 | C27: 430 | D27: 0 | E27: 0
A28: VOTOS NULOS | B28: 249 | C28: 197 | D28: 358 | E28: 417
A29: VOTOS EN BLANCO | B29: 80 | C29: 54 | D29: 55 | E29: 107
A31: Fuente: Cómputo de Votos Elecciones Municipales 2002, 2006, 2010 y 2016.

Sheet C90
A3: CUADRO 90 CANTÓN TALAMANCA : JUNTAS, ELECTORADO, VOTOS POR PARTIDO, NULOS Y BLANCOS
A4: PARA ALCALDÍAS, ELECCIONES MUNICIPALES 2002 - 2016
A6: JUNTAS, ELECTORADO, VOTOS POR PARTIDO, NULOS Y BLANCOS | B6: 2002 | C6: 2006 | D6: 2010 | E6: 2016
A8: JUNTAS | B8: 37 | C8: 30 | D8: 36 | E8: 38
A9: ELECTORADO | B9: 11082 | C9: 13239 | D9: 15458 | E9: 19165
A10: VOTOS RECIBIDOS | B10: 5298 | C10: 7108 | D10: 7214 | E10: 9197
A11: VOTOS VÁLIDOS | B11: 5022 | C11: 6879 | D11: 6919 | E11: 8838
A12: ACCIÓN CIUDADANA | B12: 162 | C12: 536 | D12: 387 | E12: 138
A13: FRENTE AMPLIO | B13: 0 | C13: 0 | D13: 0 | E13: 597
A14: FUERZA DEMOCRÁTICA | B14: 26 | C14: 0 | D14: 0 | E14: 0
A15: LIBERACIÓN NACIONAL | B15: 812 | C15: 1959 | D15: 4185 | E15: 2292
A16: MOVIMIENTO LIBERTARIO | B16: 1631 | C16: 471 | D16: 151 | E16: 1834
A17: RENOVACIÓN COSTARRICENSE | B17: 390 | C17: 0 | D17: 0 | E17: 256
A18: REPUBLICANO SOCIAL CRISTIANO | B18: 0 | C18: 0 | D18: 0 | E18: 662
A19: TALAMANCA UNIDA | B19: 0 | C19: 0 | D19: 219 | E19: 0
A20: UNIDAD SOCIAL CRISTIANA | B20: 2001 | C20: 3913 | D20: 1977 | E20: 3059
A21: VOTOS NULOS | B21: 195 | C21: 142 | D21: 249 | E21: 249
A22: VOTOS EN BLANCO | B22: 81 | C22: 87 | D22: 46 | E22: 110
A24: Fuente: Cómputo de Votos Elecciones Municipales 2002, 2006, 2010 y 2016.

Sheet C91
A3: CUADRO 91 CANTÓN MATINA : JUNTAS, ELECTORADO, VOTOS POR PARTIDO, NULOS Y BLANCOS
A4: PARA ALCALDÍAS, ELECCIONES MUNICIPALES 2002 - 2016
A6: JUNTAS, ELECTORADO, VOTOS POR PARTIDO, NULOS Y BLANCOS | B6: 2002 | C6: 2006 | D6: 2010 | E6: 2016
A8: JUNTAS | B8: 48 | C8: 32 | D8: 35 | E8: 39
A9: ELECTORADO | B9: 15232 | C9: 16768 | D9: 18313 | E9: 20908
A10: VOTOS RECIBIDOS | B10: 5655 | C10: 6261 | D10: 7848 | E10: 10637
A11: VOTOS VÁLIDOS | B11: 5344 | C11: 5921 | D11: 7570 | E11: 10181
A12: ACCESIBILIDAD SIN EXCLUSIÓN | B12: 0 | C12: 0 | D12: 0 | E12: 91
A13: ACCIÓN CIUDADANA | B13: 934 | C13: 77 | D13: 2503 | E13: 696
A14: FRENTE AMPLIO | B14: 0 | C14: 0 | D14: 438 | E14: 88
A15: FUERZA DEMOCRÁTICA | B15: 666 | C15: 860 | D15: 0 | E15: 0
A16: INTEGRACIÓN NACIONAL | B16: 0 | C16: 46 | D16: 0 | E16: 0
A17: LIBERACIÓN NACIONAL | B17: 739 | C17: 1491 | D17: 1336 | E17: 3263
A18: MOVIMIENTO LIBERTARIO | B18: 171 | C18: 539 | D18: 38 | E18: 196
A19: RENOVACIÓN COSTARRICENSE | B19: 1430 | C19: 1134 | D19: 2155 | E19: 1293
A20: REPUBLICANO SOCIAL CRISTIANO | B20: 0 | C20: 0 | D20: 0 | E20: 2205
A21: UNIDAD SOCIAL CRISTIANA | B21: 1404 | C21: 1232 | D21: 1100 | E21: 2349
A22: UNIÓN NACIONAL | B22: 0 | C22: 542 | D22: 0 | E22: 0
A23: VOTOS NULOS | B23: 267 | C23: 279 | D23: 234 | E23: 372
A24: VOTOS EN BLANCO | B24: 44 | C24: 61 | D24: 44 | E24: 84
A26: Fuente: Cómputo de Votos Elecciones Municipales 2002, 2006, 2010 y 2016.

Sheet C92
A3: CUADRO 92 CANTÓN GUÁCIMO : JUNTAS, ELECTORADO, VOTOS POR PARTIDO, NULOS Y BLANCOS
A4: PARA ALCALDÍAS, ELECCIONES MUNICIPALES 2002 - 2016
A6: JUNTAS, ELECTORADO, VOTOS POR PARTIDO, NULOS Y BLANCOS | B6: 2002 | C6: 2006 | D6: 2010 | E6: 2016
A8: JUNTAS | B8: 52 | C8: 37 | D8: 43 | E8: 49
A9: ELECTORADO | B9: 17929 | C9: 20615 | D9: 23557 | E9: 27679
A10: VOTOS RECIBIDOS | B10: 4841 | C10: 4965 | D10: 6557 | E10: 9563
A11: VOTOS VÁLIDOS | B11: 4631 | C11: 4836 | D11: 6371 | E11: 9270
A12: ACCIÓN CIUDADANA | B12: 643 | C12: 1047 | D12: 1561 | E12: 1668
A13: COALICIÓN CAMBIO 2000 | B13: 105 | C13: 0 | D13: 0 | E13: 0
A14: FRENTE AMPLIO | B14: 0 | C14: 0 | D14: 692 | E14: 665
A15: LIBERACIÓN NACIONAL | B15: 1765 | C15: 2739 | D15: 2846 | E15: 3496
A16: MOVIMIENTO LIBERTARIO | B16: 708 | C16: 1050 | D16: 0 | E16: 104
A17: RECUPERANDO VALORES | B17: 0 | C17: 0 | D17: 0 | E17: 936
A18: RENOVACIÓN COSTARRICENSE | B18: 0 | C18: 0 | D18: 719 | E18: 405
A19: REPUBLICANO SOCIAL CRISTIANO | B19: 0 | C19: 0 | D19: 0 | E19: 185
A20: UNIDAD SOCIAL CRISTIANA | B20: 1410 | C20: 0 | D20: 553 | E20: 1811
A21: VOTOS NULOS | B21: 139 | C21: 93 | D21: 158 | E21: 234
A22: VOTOS EN BLANCO | B22: 71 | C22: 36 | D22: 28 | E22: 59
A24: Fuente: Cómputo de Votos Elecciones Municipales 2002, 2006, 2010 y 2016.
